Department family,Entity,Date,Expense type,Expense area,Supplier,Transaction number, Amount ,Description
MOJ,LAA,02/12/2020,Legal Aid Civil Representation,LEGAL AID FUND,STUART GORDON SOLICITORS,2064947:3000000966710021,"25,078.53",Legal Aid Civil Representation
MOJ,LAA,02/12/2020,Legal Aid Civil Representation,LEGAL AID FUND,CADI DEWI,2064412:3000006439300010,"25,183.22",Legal Aid Civil Representation
MOJ,LAA,02/12/2020,Legal Aid Civil Representation,LEGAL AID FUND,CROCKETT LIMITED TA CROCKETT & CO SOLICITORS,2066772:3000004301410041,"25,203.27",Legal Aid Civil Representation
MOJ,LAA,02/12/2020,Legal Aid Civil Representation,LEGAL AID FUND,HALL SMITH WHITTINGHAM LLP,2068396:3000005814980030,"25,476.20",Legal Aid Civil Representation
MOJ,LAA,02/12/2020,Legal Aid Civil Representation,LEGAL AID FUND,WACE MORGAN SOLICITORS,2065285:3000005998210012,"25,505.28",Legal Aid Civil Representation
MOJ,LAA,02/12/2020,Legal Aid Civil Representation,LEGAL AID FUND,HANNE & CO,2063652:3000005180040016,"25,710.54",Legal Aid Civil Representation
MOJ,LAA,02/12/2020,Legal Aid Civil Representation,LEGAL AID FUND,LEGAL SERVICES FOR CHILDREN,2064948:3000005958030005,"25,841.20",Legal Aid Civil Representation
MOJ,LAA,02/12/2020,Legal Aid Civil Representation,LEGAL AID FUND,EDWARDS DUTHIE SHAMASH SOLICITORS,2067029:3000004397330012,"26,080.48",Legal Aid Civil Representation
MOJ,LAA,02/12/2020,Legal Aid Civil Representation,LEGAL AID FUND,JACKSON WEST SOLICITORS,2065321:3000002608230020,"26,205.80",Legal Aid Civil Representation
MOJ,LAA,02/12/2020,Legal Aid Civil Representation,LEGAL AID FUND,JOHN C R TUGHAN,2066081:3000004848500032,"26,293.68",Legal Aid Civil Representation
MOJ,LAA,02/12/2020,Legal Aid Civil Representation,LEGAL AID FUND,JOANNE F JENKINS,2067879:3000006205970013,"26,369.28",Legal Aid Civil Representation
MOJ,LAA,02/12/2020,Legal Aid Civil Representation,LEGAL AID FUND,PLUCK ANDREW & CO SOLICITORS,2068606:3000005041480011,"26,404.75",Legal Aid Civil Representation
MOJ,LAA,02/12/2020,Legal Aid Civil Representation,LEGAL AID FUND,S A CARR & CO,2065213:3000003968680014,"26,592.42",Legal Aid Civil Representation
MOJ,LAA,02/12/2020,Legal Aid Civil Representation,LEGAL AID FUND,ANDREW BROOK  SOLICITORS,2067700:3000005379320009,"26,911.35",Legal Aid Civil Representation
MOJ,LAA,02/12/2020,Legal Aid Civil Representation,LEGAL AID FUND,DAVIS & SIMMONDS & DONAGHEY,2066494:3000004416140013,"27,014.93",Legal Aid Civil Representation
MOJ,LAA,02/12/2020,Legal Aid Civil Representation,LEGAL AID FUND,SOLOMON LEVY & CO,2065145:3000005187050005,"27,304.39",Legal Aid Civil Representation
MOJ,LAA,02/12/2020,Legal Aid Civil Representation,LEGAL AID FUND,NICHOLAS HOWELL-JONES,2064737:3000006561620005,"27,323.11",Legal Aid Civil Representation
MOJ,LAA,02/12/2020,Legal Aid Civil Representation,LEGAL AID FUND,A & N CARE SOLICITORS,2064264:3000005153420026,"27,420.37",Legal Aid Civil Representation
MOJ,LAA,02/12/2020,Legal Aid Civil Representation,LEGAL AID FUND,JWP SOLICITORS,2068311:3000004173860008,"27,627.43",Legal Aid Civil Representation
MOJ,LAA,02/12/2020,Legal Aid Civil Representation,LEGAL AID FUND,TEMPERLEY TAYLOR LLP,2067696:3000004425520022,"27,884.05",Legal Aid Civil Representation
MOJ,LAA,02/12/2020,Legal Aid Civil Representation,LEGAL AID FUND,DUNCAN LEWIS SOLICITORS  LTD,2065003:3000004442680023,"27,931.10",Legal Aid Civil Representation
MOJ,LAA,02/12/2020,Legal Aid Civil Representation,LEGAL AID FUND,EDWARD DEVEREUX QC,2067570:3000006643360007,"27,941.76",Legal Aid Civil Representation
MOJ,LAA,02/12/2020,Legal Aid Civil Representation,LEGAL AID FUND,ATKINS HOPE SOLICITORS LTD,2063780:3000005579960016,"27,970.97",Legal Aid Civil Representation
MOJ,LAA,02/12/2020,Legal Aid Civil Representation,LEGAL AID FUND,WACE MORGAN SOLICITORS,2065285:3000004350000021,"28,096.89",Legal Aid Civil Representation
MOJ,LAA,02/12/2020,Legal Aid Civil Representation,LEGAL AID FUND,SIMPSON MILLAR SOLICITORS LLP,2068129:3000005088210009,"28,340.82",Legal Aid Civil Representation
MOJ,LAA,02/12/2020,Legal Aid Civil Representation,LEGAL AID FUND,AIDAN J W VINE QC,2064518:3000004285300019,"28,496.72",Legal Aid Civil Representation
MOJ,LAA,02/12/2020,Legal Aid Civil Representation,LEGAL AID FUND,JI SOLICITORS LTD,2065165:3000002234230006,"28,688.69",Legal Aid Civil Representation
MOJ,LAA,02/12/2020,Legal Aid Civil Representation,LEGAL AID FUND,FDR LAW,2065207:3000004688520034,"28,852.60",Legal Aid Civil Representation
MOJ,LAA,02/12/2020,Legal Aid Civil Representation,LEGAL AID FUND,PS LAW LLP,2064305:3000004131320031,"29,004.96",Legal Aid Civil Representation
MOJ,LAA,02/12/2020,Legal Aid Civil Representation,LEGAL AID FUND,MILES & PARTNERS LLP,2065234:3000005640610008,"29,039.36",Legal Aid Civil Representation
MOJ,LAA,02/12/2020,Legal Aid Civil Representation,LEGAL AID FUND,TYRER ROXBURGH SOLICITORS LLP,2065308:3000005830540027,"29,222.62",Legal Aid Civil Representation
MOJ,LAA,02/12/2020,Legal Aid Civil Representation,LEGAL AID FUND,ATKINS HOPE SOLICITORS LTD,2066983:3000004159580019,"29,674.66",Legal Aid Civil Representation
MOJ,LAA,02/12/2020,Legal Aid Civil Representation,LEGAL AID FUND,POWELL SPENCER AND PARTNERS,2065300:3000003504550049,"30,418.96",Legal Aid Civil Representation
MOJ,LAA,02/12/2020,Legal Aid Civil Representation,LEGAL AID FUND,COMPASS RESOLUTION LTD,2067584:156501740,"30,996.60",Legal Aid Civil Representation
MOJ,LAA,02/12/2020,Legal Aid Civil Representation,LEGAL AID FUND,SIMON J S POVOAS,2064552:3000006312920013,"31,019.81",Legal Aid Civil Representation
MOJ,LAA,02/12/2020,Legal Aid Civil Representation,LEGAL AID FUND,BURTON & DYSON LTD,2068493:3000004848500031,"31,502.25",Legal Aid Civil Representation
MOJ,LAA,02/12/2020,Legal Aid Civil Representation,LEGAL AID FUND,DAVID GRAY LLP,2068310:3000004554250019,"31,671.47",Legal Aid Civil Representation
MOJ,LAA,02/12/2020,Legal Aid Civil Representation,LEGAL AID FUND,CLARE HARLAND,2066338:3000005041480010,"31,922.10",Legal Aid Civil Representation
MOJ,LAA,02/12/2020,Legal Aid Civil Representation,LEGAL AID FUND,JOHN DELANEY & CO SOLICITORS,2068334:3000004823870002,"31,984.94",Legal Aid Civil Representation
MOJ,LAA,02/12/2020,Legal Aid Civil Representation,LEGAL AID FUND,JAMES A GOODWIN,2065959:3000004848500030,"32,493.84",Legal Aid Civil Representation
MOJ,LAA,02/12/2020,Legal Aid Civil Representation,LEGAL AID FUND,NOBLE SOLICITORS,2066734:3000004299690030,"33,103.07",Legal Aid Civil Representation
MOJ,LAA,02/12/2020,Legal Aid Civil Representation,LEGAL AID FUND,JOHN KER-REID,2064404:3000003731440015,"33,242.40",Legal Aid Civil Representation
MOJ,LAA,02/12/2020,Legal Aid Civil Representation,LEGAL AID FUND,JAMIE PRESLAND,2064645:3000004159580018,"34,087.56",Legal Aid Civil Representation
MOJ,LAA,02/12/2020,Legal Aid Civil Representation,LEGAL AID FUND,CAROLINE ELFORD,2066188:3000002116040056,"34,415.64",Legal Aid Civil Representation
MOJ,LAA,02/12/2020,Legal Aid Civil Representation,LEGAL AID FUND,NICOLA MCINTOSH,2066164:3000006529040003,"35,640.00",Legal Aid Civil Representation
MOJ,LAA,02/12/2020,Legal Aid Civil Representation,LEGAL AID FUND,MILES & PARTNERS LLP,2065234:3000004541380016,"36,227.35",Legal Aid Civil Representation
MOJ,LAA,02/12/2020,Legal Aid Civil Representation,LEGAL AID FUND,DANIELLS FAMILY LAW LTD,2065639:3000004285300018,"36,374.47",Legal Aid Civil Representation
MOJ,LAA,02/12/2020,Legal Aid Civil Representation,LEGAL AID FUND,JANET C BAZLEY QC,2066215:3000005579960017,"36,707.76",Legal Aid Civil Representation
MOJ,LAA,02/12/2020,Legal Aid Civil Representation,LEGAL AID FUND,WANSBROUGHS,2068717:3000003731440016,"36,938.88",Legal Aid Civil Representation
MOJ,LAA,02/12/2020,Legal Aid Civil Representation,LEGAL AID FUND,TOZERS LLP,2068505:3000005776920013,"37,035.88",Legal Aid Civil Representation
MOJ,LAA,02/12/2020,Legal Aid Civil Representation,LEGAL AID FUND,ANDREW K BAGCHI QC,2066225:3000004671890009,"39,042.00",Legal Aid Civil Representation
MOJ,LAA,02/12/2020,Legal Aid Civil Representation,LEGAL AID FUND,JONES MYERS LTD,2066762:3000004295800012,"39,607.82",Legal Aid Civil Representation
MOJ,LAA,02/12/2020,Legal Aid Civil Representation,LEGAL AID FUND,DAVIS & SIMMONDS & DONAGHEY,2067704:3000000346690016,"40,421.36",Legal Aid Civil Representation
MOJ,LAA,02/12/2020,Legal Aid Civil Representation,LEGAL AID FUND,FRANCESCA P D WILEY QC,2067948:3000005751140017,"41,556.48",Legal Aid Civil Representation
MOJ,LAA,02/12/2020,Legal Aid Civil Representation,LEGAL AID FUND,JOHN C R TUGHAN,2066081:3000003721110025,"42,708.96",Legal Aid Civil Representation
MOJ,LAA,02/12/2020,Legal Aid Civil Representation,LEGAL AID FUND,ANDREW K BAGCHI QC,2066225:3000006561620004,"45,910.80",Legal Aid Civil Representation
MOJ,LAA,02/12/2020,Legal Aid Civil Representation,LEGAL AID FUND,MICHAEL R BAILEY,2066033:3000004589710032,"46,143.96",Legal Aid Civil Representation
MOJ,LAA,02/12/2020,Legal Aid Civil Representation,LEGAL AID FUND,PAUL DODDS LAW,2066804:3000004461600007,"46,873.27",Legal Aid Civil Representation
MOJ,LAA,02/12/2020,Legal Aid Civil Representation,LEGAL AID FUND,BOYS & MAUGHAN,2063631:3000002334140036,"47,927.67",Legal Aid Civil Representation
MOJ,LAA,02/12/2020,Legal Aid Civil Representation,LEGAL AID FUND,JEARY & LEWIS LTD,2068694:3000001646020021,"47,993.62",Legal Aid Civil Representation
MOJ,LAA,02/12/2020,Legal Aid Civil Representation,LEGAL AID FUND,@CORNWALL LAW LLP,2068716:3000004538350010,"53,767.40",Legal Aid Civil Representation
MOJ,LAA,02/12/2020,Legal Aid Civil Representation,LEGAL AID FUND,DAVIS & SIMMONDS & DONAGHEY,2066494:3000003540340027,"54,904.47",Legal Aid Civil Representation
MOJ,LAA,02/12/2020,Legal Aid Civil Representation,LEGAL AID FUND,SARAH L FEARON,2067821:3000005358010018,"56,564.74",Legal Aid Civil Representation
MOJ,LAA,02/12/2020,Legal Aid Civil Representation,LEGAL AID FUND,DAVIS & SIMMONDS & DONAGHEY,2066494:3000003186140014,"56,709.00",Legal Aid Civil Representation
MOJ,LAA,02/12/2020,Legal Aid Civil Representation,LEGAL AID FUND,CHRISTOPHER F SHARP QC,2065859:3000004868650061,"58,432.01",Legal Aid Civil Representation
MOJ,LAA,02/12/2020,Legal Aid Civil Representation,LEGAL AID FUND,ALL FAMILY MATTERS SOLICITORS LTD,2064271:3000004393570020,"60,523.20",Legal Aid Civil Representation
MOJ,LAA,02/12/2020,Legal Aid Civil Representation,LEGAL AID FUND,FLG LTD,2064153:3000002107570016,"65,451.53",Legal Aid Civil Representation
MOJ,LAA,02/12/2020,Legal Aid Civil Representation,LEGAL AID FUND,STEPHEN CHIPPECK,2066129:3000002334140037,"65,793.60",Legal Aid Civil Representation
MOJ,LAA,02/12/2020,Legal Aid Civil Representation,LEGAL AID FUND,MARK J WATTERSON,2067628:3000003816580018,"78,284.88",Legal Aid Civil Representation
MOJ,LAA,02/12/2020,Legal Aid Civil Representation,LEGAL AID FUND,QUALITY SOLICITORS LOCKINGS,2066834:3000003816580019,"90,977.09",Legal Aid Civil Representation
MOJ,LAA,02/12/2020,Legal Aid Higher Crime,LEGAL AID FUND,HUNT & COOMBS LLP,2068533:156488953,"25,135.18",Legal Aid Higher Crime
MOJ,LAA,02/12/2020,Legal Aid Higher Crime,LEGAL AID FUND,IAN MCMEEKIN,2065852:156495491,"25,410.00",Legal Aid Higher Crime
MOJ,LAA,02/12/2020,Legal Aid Higher Crime,LEGAL AID FUND,ABR SOLICITORS,2068315:156495063,"25,639.94",Legal Aid Higher Crime
MOJ,LAA,02/12/2020,Legal Aid Higher Crime,LEGAL AID FUND,ST PAUL SOLICITORS,2065462:156495945,"26,309.42",Legal Aid Higher Crime
MOJ,LAA,02/12/2020,Legal Aid Higher Crime,LEGAL AID FUND,EDWARD FAIL BRADSHAW & WATERSON,2063651:156527480,"26,698.09",Legal Aid Higher Crime
MOJ,LAA,02/12/2020,Legal Aid Higher Crime,LEGAL AID FUND,NIGEL WELLER & CO,2068530:156528325,"26,698.09",Legal Aid Higher Crime
MOJ,LAA,02/12/2020,Legal Aid Higher Crime,LEGAL AID FUND,MIDDLEWEEKS LEGAL LTD,2066911:156516022,"26,893.52",Legal Aid Higher Crime
MOJ,LAA,02/12/2020,Legal Aid Higher Crime,LEGAL AID FUND,FREDERICK C HOOKWAY,2064304:156488822,"27,240.00",Legal Aid Higher Crime
MOJ,LAA,02/12/2020,Legal Aid Higher Crime,LEGAL AID FUND,SPERRIN  LAW LTD,2065560:156488138,"28,884.86",Legal Aid Higher Crime
MOJ,LAA,02/12/2020,Legal Aid Higher Crime,LEGAL AID FUND,LB & CO SOLICITORS,2064937:156528129,"29,007.78",Legal Aid Higher Crime
MOJ,LAA,02/12/2020,Legal Aid Higher Crime,LEGAL AID FUND,TUCKERS SOLICITORS LLP,2065202:156515611,"29,101.95",Legal Aid Higher Crime
MOJ,LAA,02/12/2020,Legal Aid Higher Crime,LEGAL AID FUND,PETHERBRIDGE BASSRA SOLICITORS LTD,2068314:156495453,"29,664.55",Legal Aid Higher Crime
MOJ,LAA,02/12/2020,Legal Aid Higher Crime,LEGAL AID FUND,HILL TWINE SOLICITORS,2065766:156508410,"29,958.26",Legal Aid Higher Crime
MOJ,LAA,02/12/2020,Legal Aid Higher Crime,LEGAL AID FUND,SVS SOLICITORS,2068208:156528210,"30,826.08",Legal Aid Higher Crime
MOJ,LAA,02/12/2020,Legal Aid Higher Crime,LEGAL AID FUND,WADDINGTON & SON,2068613:156527640,"31,740.96",Legal Aid Higher Crime
MOJ,LAA,02/12/2020,Legal Aid Higher Crime,LEGAL AID FUND,LLOYDS PR SOLICITORS,2068194:156528514,"31,757.33",Legal Aid Higher Crime
MOJ,LAA,02/12/2020,Legal Aid Higher Crime,LEGAL AID FUND,NIGEL J POWER QC,2066113:156527691,"32,580.00",Legal Aid Higher Crime
MOJ,LAA,02/12/2020,Legal Aid Higher Crime,LEGAL AID FUND,STEPHENSONS SOLICITORS LLP,2066916:156509124,"33,511.80",Legal Aid Higher Crime
MOJ,LAA,02/12/2020,Legal Aid Higher Crime,LEGAL AID FUND,PAUL M MENDELLE QC,2064775:156488137,"35,412.00",Legal Aid Higher Crime
MOJ,LAA,02/12/2020,Legal Aid Higher Crime,LEGAL AID FUND,CARLTON PLACE LAW,2065037:156516135,"35,422.21",Legal Aid Higher Crime
MOJ,LAA,02/12/2020,Legal Aid Higher Crime,LEGAL AID FUND,K LEGAL SOLICITORS,2066399:156508464,"35,597.46",Legal Aid Higher Crime
MOJ,LAA,02/12/2020,Legal Aid Higher Crime,LEGAL AID FUND,LAW 24,2064089:156495645,"35,666.23",Legal Aid Higher Crime
MOJ,LAA,02/12/2020,Legal Aid Higher Crime,LEGAL AID FUND,CROWE HUMBLE WESENCRAFT,2065038:156495478,"35,749.51",Legal Aid Higher Crime
MOJ,LAA,02/12/2020,Legal Aid Higher Crime,LEGAL AID FUND,CARR HEWITT,2064936:156496410,"35,861.82",Legal Aid Higher Crime
MOJ,LAA,02/12/2020,Legal Aid Higher Crime,LEGAL AID FUND,BJ & CO SOLICITORS LTD,2066592:156528720,"36,012.17",Legal Aid Higher Crime
MOJ,LAA,02/12/2020,Legal Aid Higher Crime,LEGAL AID FUND,HEDLEY SOLICITORS,2066390:156527307,"37,296.80",Legal Aid Higher Crime
MOJ,LAA,02/12/2020,Legal Aid Higher Crime,LEGAL AID FUND,CAIRNS L D NELSON QC,2064663:156528302,"38,196.00",Legal Aid Higher Crime
MOJ,LAA,02/12/2020,Legal Aid Higher Crime,LEGAL AID FUND,M & N SOLICITORS,2064977:156508400,"38,300.26",Legal Aid Higher Crime
MOJ,LAA,02/12/2020,Legal Aid Higher Crime,LEGAL AID FUND,ABBEY SOLICITORS,2068347:156499134,"38,446.29",Legal Aid Higher Crime
MOJ,LAA,02/12/2020,Legal Aid Higher Crime,LEGAL AID FUND,LINCOLNS SOLICITORS,2064803:156496088,"39,283.46",Legal Aid Higher Crime
MOJ,LAA,02/12/2020,Legal Aid Higher Crime,LEGAL AID FUND,DAMIAN F NOLAN,2064580:156499210,"43,200.00",Legal Aid Higher Crime
MOJ,LAA,02/12/2020,Legal Aid Higher Crime,LEGAL AID FUND,GEMMA K MAXWELL,2067435:156525064,"43,200.00",Legal Aid Higher Crime
MOJ,LAA,02/12/2020,Legal Aid Higher Crime,LEGAL AID FUND,DAVID J TOAL,2067720:156494359,"43,200.00",Legal Aid Higher Crime
MOJ,LAA,02/12/2020,Legal Aid Higher Crime,LEGAL AID FUND,SOUTHERNS SOLICITORS LTD,2065211:156495326,"43,351.18",Legal Aid Higher Crime
MOJ,LAA,02/12/2020,Legal Aid Higher Crime,LEGAL AID FUND,MANN & CO SOLICITORS LTD,2065019:156489117,"43,658.03",Legal Aid Higher Crime
MOJ,LAA,02/12/2020,Legal Aid Higher Crime,LEGAL AID FUND,FELICITY R GERRY QC,2066207:156528552,"45,156.00",Legal Aid Higher Crime
MOJ,LAA,02/12/2020,Legal Aid Higher Crime,LEGAL AID FUND,DAVID J WHITTAKER,2068168:156527962,"45,156.00",Legal Aid Higher Crime
MOJ,LAA,02/12/2020,Legal Aid Higher Crime,LEGAL AID FUND,STRAND LEGAL SERVICES LTD,2066513:156508330,"46,440.85",Legal Aid Higher Crime
MOJ,LAA,02/12/2020,Legal Aid Higher Crime,LEGAL AID FUND,FORRESTERS SOLICITORS LIMITED,2068610:156488695,"50,103.88",Legal Aid Higher Crime
MOJ,LAA,02/12/2020,Legal Aid Higher Crime,LEGAL AID FUND,COURTENAY GRIFFITHS QC,2067605:156527916,"50,676.00",Legal Aid Higher Crime
MOJ,LAA,02/12/2020,Legal Aid Higher Crime,LEGAL AID FUND,SVS SOLICITORS,2068208:156488960,"64,238.59",Legal Aid Higher Crime
MOJ,LAA,02/12/2020,Legal Aid Higher Crime,LEGAL AID FUND,SIMON BETHEL SOLICITORS LTD,2068274:156528450,"66,250.10",Legal Aid Higher Crime
MOJ,LAA,02/12/2020,Legal Aid Higher Crime,LEGAL AID FUND,MW SOLICITORS,2063974:156495911,"67,272.89",Legal Aid Higher Crime
MOJ,LAA,02/12/2020,Legal Aid Higher Crime,LEGAL AID FUND,LAW 24,2064089:156517327,"71,907.84",Legal Aid Higher Crime
MOJ,LAA,02/12/2020,Legal Aid Higher Crime,LEGAL AID FUND,HARWOOD SOLICITORS,2065673:156528153,"72,743.42",Legal Aid Higher Crime
MOJ,LAA,02/12/2020,Legal Aid Higher Crime,LEGAL AID FUND,KHAN SOLICITORS LTD,2068490:156508631,"73,201.66",Legal Aid Higher Crime
MOJ,LAA,02/12/2020,Legal Aid Higher Crime,LEGAL AID FUND,JACKSON LEES GROUP LTD,2067673:156488679,"78,758.35",Legal Aid Higher Crime
MOJ,LAA,02/12/2020,Legal Aid Higher Crime,LEGAL AID FUND,STEPHEN C MEADOWCROFT QC,2067722:156494360,"85,080.00",Legal Aid Higher Crime
MOJ,LAA,02/12/2020,Legal Aid Higher Crime,LEGAL AID FUND,SPERRIN  LAW LTD,2065560:156488760,"87,120.54",Legal Aid Higher Crime
MOJ,LAA,02/12/2020,Legal Aid Higher Crime,LEGAL AID FUND,BDH SOLICITORS LTD,2068630:156516376,"88,044.72",Legal Aid Higher Crime
MOJ,LAA,02/12/2020,Legal Aid Higher Crime,LEGAL AID FUND,THE CENTRAL LAW PRACTICE,2065021:156495963,"89,975.11",Legal Aid Higher Crime
MOJ,LAA,02/12/2020,Legal Aid Higher Crime,LEGAL AID FUND,K LEGAL SOLICITORS,2066399:156496348,"89,975.11",Legal Aid Higher Crime
MOJ,LAA,02/12/2020,Legal Aid Higher Crime,LEGAL AID FUND,BRYSONS SOLICITORS,2066587:156508127,"89,975.11",Legal Aid Higher Crime
MOJ,LAA,02/12/2020,Legal Aid Higher Crime,LEGAL AID FUND,BIRDS SOLICITORS LTD,2068288:156528196,"89,975.11",Legal Aid Higher Crime
MOJ,LAA,02/12/2020,Legal Aid Higher Crime,LEGAL AID FUND,AFTAB A JAFFERJEE QC,2068757:156172674,"91,960.00",Legal Aid Higher Crime
MOJ,LAA,02/12/2020,Legal Aid Higher Crime,LEGAL AID FUND,MAURICE ANDREWS SOLICITORS,2065089:156509004,"103,699.57",Legal Aid Higher Crime
MOJ,LAA,02/12/2020,Legal Aid Higher Crime,LEGAL AID FUND,SATCHELL MORAN SOLICITORS,2065572:156508718,"105,812.97",Legal Aid Higher Crime
MOJ,LAA,02/12/2020,Legal Aid Higher Crime,LEGAL AID FUND,ABBEY SOLICITORS,2068347:156502940,"183,167.67",Legal Aid Higher Crime
MOJ,LAA,02/12/2020,Legal Aid Legal Help,LEGAL AID FUND,BRIGHTON HOUSING TRUST,2068134:156499930,"25,573.36",Legal Aid Legal Help
MOJ,LAA,02/12/2020,Legal Aid Legal Help,LEGAL AID FUND,BISON SOLICITORS LTD,2067466:156503817,"25,657.98",Legal Aid Legal Help
MOJ,LAA,02/12/2020,Legal Aid Legal Help,LEGAL AID FUND,MILES & PARTNERS LLP,2065234:156499691,"25,910.43",Legal Aid Legal Help
MOJ,LAA,02/12/2020,Legal Aid Legal Help,LEGAL AID FUND,OAKMOUNT LAW SOLICITORS,2067160:156500286,"26,017.64",Legal Aid Legal Help
MOJ,LAA,02/12/2020,Legal Aid Legal Help,LEGAL AID FUND,PETER EDWARDS LAW LTD,2064991:156499322,"26,100.00",Legal Aid Legal Help
MOJ,LAA,02/12/2020,Legal Aid Legal Help,LEGAL AID FUND,OSBORNES SOLICITORS LLP,2066975:156499637,"26,232.86",Legal Aid Legal Help
MOJ,LAA,02/12/2020,Legal Aid Legal Help,LEGAL AID FUND,LEIGH DAY & CO,2068337:156499660,"26,282.64",Legal Aid Legal Help
MOJ,LAA,02/12/2020,Legal Aid Legal Help,LEGAL AID FUND,CORAM CHILDREN'S LEGAL CENTRE,2068225:156499848,"26,292.20",Legal Aid Legal Help
MOJ,LAA,02/12/2020,Legal Aid Legal Help,LEGAL AID FUND,LEVY & CO SOLICITORS LLP,2068230:156500074,"26,336.88",Legal Aid Legal Help
MOJ,LAA,02/12/2020,Legal Aid Legal Help,LEGAL AID FUND,HUNT & COOMBS LLP,2068533:156499512,"26,496.90",Legal Aid Legal Help
MOJ,LAA,02/12/2020,Legal Aid Legal Help,LEGAL AID FUND,PARKER RHODES HICKMOTTS,2064146:156500054,"26,615.88",Legal Aid Legal Help
MOJ,LAA,02/12/2020,Legal Aid Legal Help,LEGAL AID FUND,G T STEWART LTD,2064966:156500118,"26,833.32",Legal Aid Legal Help
MOJ,LAA,02/12/2020,Legal Aid Legal Help,LEGAL AID FUND,GUILE NICHOLAS-INC DONALD GALBRAITH & CO,2067474:156500103,"27,418.69",Legal Aid Legal Help
MOJ,LAA,02/12/2020,Legal Aid Legal Help,LEGAL AID FUND,YOUNG & CO SOLICITORS T/A SWAIN & CO,2066666:156499380,"27,900.00",Legal Aid Legal Help
MOJ,LAA,02/12/2020,Legal Aid Legal Help,LEGAL AID FUND,WOLTON & CO,2068289:156499439,"27,968.47",Legal Aid Legal Help
MOJ,LAA,02/12/2020,Legal Aid Legal Help,LEGAL AID FUND,CB LEGAL ADVISORY LTD T/A CB SOLICITORS,2065459:156499391,"28,300.00",Legal Aid Legal Help
MOJ,LAA,02/12/2020,Legal Aid Legal Help,LEGAL AID FUND,LUQMANI THOMPSON & PARTNERS,2065044:156499628,"28,842.78",Legal Aid Legal Help
MOJ,LAA,02/12/2020,Legal Aid Legal Help,LEGAL AID FUND,GARRATTS,2066681:156499704,"29,204.40",Legal Aid Legal Help
MOJ,LAA,02/12/2020,Legal Aid Legal Help,LEGAL AID FUND,AJM SOLICITORS,2065508:156500165,"29,354.76",Legal Aid Legal Help
MOJ,LAA,02/12/2020,Legal Aid Legal Help,LEGAL AID FUND,FISHER JONES GREENWOOD LLP,2064202:156500029,"29,360.99",Legal Aid Legal Help
MOJ,LAA,02/12/2020,Legal Aid Legal Help,LEGAL AID FUND,HOOLE & CO SOLICITORS,2068690:156499470,"29,674.64",Legal Aid Legal Help
MOJ,LAA,02/12/2020,Legal Aid Legal Help,LEGAL AID FUND,WILSON SOLICITORS LLP,2064199:156500069,"29,689.94",Legal Aid Legal Help
MOJ,LAA,02/12/2020,Legal Aid Legal Help,LEGAL AID FUND,BUTLER & CO,2064892:156499465,"30,325.44",Legal Aid Legal Help
MOJ,LAA,02/12/2020,Legal Aid Legal Help,LEGAL AID FUND,WILSON SOLICITORS LLP,2064198:156500068,"30,708.44",Legal Aid Legal Help
MOJ,LAA,02/12/2020,Legal Aid Legal Help,LEGAL AID FUND,FOUNTAIN SOLICITORS LTD,2065451:156500157,"30,746.32",Legal Aid Legal Help
MOJ,LAA,02/12/2020,Legal Aid Legal Help,LEGAL AID FUND,BHATIA BEST LTD,2068472:156499775,"31,135.55",Legal Aid Legal Help
MOJ,LAA,02/12/2020,Legal Aid Legal Help,LEGAL AID FUND,ALASTAIR BATEMAN & CO,2066594:156499594,"31,282.80",Legal Aid Legal Help
MOJ,LAA,02/12/2020,Legal Aid Legal Help,LEGAL AID FUND,STAR LEGAL LTD,2067089:156500268,"31,978.38",Legal Aid Legal Help
MOJ,LAA,02/12/2020,Legal Aid Legal Help,LEGAL AID FUND,NLS SOLICITORS,2066475:156499933,"32,060.87",Legal Aid Legal Help
MOJ,LAA,02/12/2020,Legal Aid Legal Help,LEGAL AID FUND,WIMBLEDON SOLICITORS,2066389:156499961,"32,540.64",Legal Aid Legal Help
MOJ,LAA,02/12/2020,Legal Aid Legal Help,LEGAL AID FUND,THALIWAL & VEJA SOLICITORS,2068319:156499778,"33,118.08",Legal Aid Legal Help
MOJ,LAA,02/12/2020,Legal Aid Legal Help,LEGAL AID FUND,IRWIN MITCHELL LLP,2066814:156499567,"34,896.17",Legal Aid Legal Help
MOJ,LAA,02/12/2020,Legal Aid Legal Help,LEGAL AID FUND,HALLIDAY REEVES SOLICITORS,2066468:156499923,"36,151.95",Legal Aid Legal Help
MOJ,LAA,02/12/2020,Legal Aid Legal Help,LEGAL AID FUND,TRP SOLICITORS LTD,2066566:156499425,"36,350.26",Legal Aid Legal Help
MOJ,LAA,02/12/2020,Legal Aid Legal Help,LEGAL AID FUND,T V EDWARDS LLP,2068624:156499325,"37,700.00",Legal Aid Legal Help
MOJ,LAA,02/12/2020,Legal Aid Legal Help,LEGAL AID FUND,ALBANY SOLICITORS,2066511:156499532,"38,110.85",Legal Aid Legal Help
MOJ,LAA,02/12/2020,Legal Aid Legal Help,LEGAL AID FUND,ELDER RAHIMI LIMITED,2066711:156499693,"39,115.07",Legal Aid Legal Help
MOJ,LAA,02/12/2020,Legal Aid Legal Help,LEGAL AID FUND,LEI DAT & BAIG SOLICITORS LTD,2068127:156499946,"39,360.61",Legal Aid Legal Help
MOJ,LAA,02/12/2020,Legal Aid Legal Help,LEGAL AID FUND,LAWANA & CO,2068234:156499631,"40,515.26",Legal Aid Legal Help
MOJ,LAA,02/12/2020,Legal Aid Legal Help,LEGAL AID FUND,DAVID GRAY LLP,2068310:156499761,"41,128.29",Legal Aid Legal Help
MOJ,LAA,02/12/2020,Legal Aid Legal Help,LEGAL AID FUND,THOMPSON & CO SOLICITORS LTD,2068587:156499327,"41,200.00",Legal Aid Legal Help
MOJ,LAA,02/12/2020,Legal Aid Legal Help,LEGAL AID FUND,GLEDHILL GILL SOLICITORS,2067011:156499446,"41,731.98",Legal Aid Legal Help
MOJ,LAA,02/12/2020,Legal Aid Legal Help,LEGAL AID FUND,BISON SOLICITORS LTD,2065526:156500163,"43,006.29",Legal Aid Legal Help
MOJ,LAA,02/12/2020,Legal Aid Legal Help,LEGAL AID FUND,FADIGA & CO LTD,2068586:156499328,"44,900.00",Legal Aid Legal Help
MOJ,LAA,02/12/2020,Legal Aid Legal Help,LEGAL AID FUND,PARAGON LAW LTD,2068344:156499374,"45,000.00",Legal Aid Legal Help
MOJ,LAA,02/12/2020,Legal Aid Legal Help,LEGAL AID FUND,DONOVAN NEWTON SOLICITORS,2066496:156499779,"48,681.74",Legal Aid Legal Help
MOJ,LAA,02/12/2020,Legal Aid Legal Help,LEGAL AID FUND,SOUTHERNS SOLICITORS LTD,2065211:156499722,"49,553.32",Legal Aid Legal Help
MOJ,LAA,02/12/2020,Legal Aid Legal Help,LEGAL AID FUND,APPLEMAN LEGAL,2067458:156500114,"50,446.10",Legal Aid Legal Help
MOJ,LAA,02/12/2020,Legal Aid Legal Help,LEGAL AID FUND,KESAR & CO SOLICITORS,2066393:156500078,"50,738.29",Legal Aid Legal Help
MOJ,LAA,02/12/2020,Legal Aid Legal Help,LEGAL AID FUND,BISON SOLICITORS LTD,2065527:156500162,"52,851.46",Legal Aid Legal Help
MOJ,LAA,02/12/2020,Legal Aid Legal Help,LEGAL AID FUND,HODGE JONES & ALLEN SOLICITORS LTD,2065296:156499672,"53,144.87",Legal Aid Legal Help
MOJ,LAA,02/12/2020,Legal Aid Legal Help,LEGAL AID FUND,WILSON SOLICITORS LLP,2066729:156503814,"57,511.78",Legal Aid Legal Help
MOJ,LAA,02/12/2020,Legal Aid Legal Help,LEGAL AID FUND,DUNCAN LEWIS SOLICITORS  LTD,2065733:156499390,"59,300.00",Legal Aid Legal Help
MOJ,LAA,02/12/2020,Legal Aid Legal Help,LEGAL AID FUND,BARNES HARRILD & DYER,2064176:156500019,"59,323.42",Legal Aid Legal Help
MOJ,LAA,02/12/2020,Legal Aid Legal Help,LEGAL AID FUND,SIMPSON MILLAR SOLICITORS LLP,2066838:156499625,"60,772.15",Legal Aid Legal Help
MOJ,LAA,02/12/2020,Legal Aid Legal Help,LEGAL AID FUND,CARTWRIGHT KING LTD,2066654:156499802,"62,467.84",Legal Aid Legal Help
MOJ,LAA,02/12/2020,Legal Aid Legal Help,LEGAL AID FUND,TURPIN & MILLER LLP,2066608:156499837,"67,692.73",Legal Aid Legal Help
MOJ,LAA,02/12/2020,Legal Aid Legal Help,LEGAL AID FUND,ABBOTSTONE LAW LLP,2067462:156500110,"67,909.89",Legal Aid Legal Help
MOJ,LAA,02/12/2020,Legal Aid Legal Help,LEGAL AID FUND,JACKSON LEES GROUP LTD,2067673:156500084,"73,154.04",Legal Aid Legal Help
MOJ,LAA,02/12/2020,Legal Aid Legal Help,LEGAL AID FUND,DUNCAN LEWIS SOLICITORS  LTD,2065002:156503810,"79,400.00",Legal Aid Legal Help
MOJ,LAA,02/12/2020,Legal Aid Legal Help,LEGAL AID FUND,BARNES HARRILD & DYER,2065325:156499645,"89,238.85",Legal Aid Legal Help
MOJ,LAA,02/12/2020,Legal Aid Legal Help,LEGAL AID FUND,GUILE NICHOLAS-INC DONALD GALBRAITH & CO,2066478:156499331,"90,000.00",Legal Aid Legal Help
MOJ,LAA,02/12/2020,Legal Aid Legal Help,LEGAL AID FUND,BISON SOLICITORS LTD,2067466:156503815,"91,000.00",Legal Aid Legal Help
MOJ,LAA,02/12/2020,Legal Aid Legal Help,LEGAL AID FUND,WILSON SOLICITORS LLP,2066729:156503813,"92,000.00",Legal Aid Legal Help
MOJ,LAA,02/12/2020,Legal Aid Legal Help,LEGAL AID FUND,BURKE NIAZI  LTD,2066934:156503811,"93,000.00",Legal Aid Legal Help
MOJ,LAA,02/12/2020,Legal Aid Legal Help,LEGAL AID FUND,G T STEWART LTD,2067694:156499974,"93,084.65",Legal Aid Legal Help
MOJ,LAA,02/12/2020,Legal Aid Legal Help,LEGAL AID FUND,DUNCAN LEWIS SOLICITORS  LTD,2065002:156503809,"94,000.00",Legal Aid Legal Help
MOJ,LAA,02/12/2020,Legal Aid Legal Help,LEGAL AID FUND,DUNCAN LEWIS SOLICITORS  LTD,2065002:156503738,"95,000.00",Legal Aid Legal Help
MOJ,LAA,02/12/2020,Legal Aid Legal Help,LEGAL AID FUND,DUNCAN LEWIS SOLICITORS  LTD,2065003:156503736,"96,000.00",Legal Aid Legal Help
MOJ,LAA,02/12/2020,Legal Aid Legal Help,LEGAL AID FUND,DUNCAN LEWIS SOLICITORS  LTD,2065003:156503735,"97,000.00",Legal Aid Legal Help
MOJ,LAA,02/12/2020,Legal Aid Legal Help,LEGAL AID FUND,DUNCAN LEWIS SOLICITORS  LTD,2065003:156503734,"98,000.00",Legal Aid Legal Help
MOJ,LAA,02/12/2020,Legal Aid Legal Help,LEGAL AID FUND,DUNCAN LEWIS SOLICITORS  LTD,2065003:156503733,"99,000.00",Legal Aid Legal Help
MOJ,LAA,02/12/2020,Legal Aid Lower Crime,LEGAL AID FUND,LEVALES SOLICITORS LLP,2064816:156501283,"25,004.28",Legal Aid Lower Crime
MOJ,LAA,02/12/2020,Legal Aid Lower Crime,LEGAL AID FUND,JOSEPH HILL & CO,2068526:156500773,"25,162.77",Legal Aid Lower Crime
MOJ,LAA,02/12/2020,Legal Aid Lower Crime,LEGAL AID FUND,W M B LAW LTD,2068379:156501151,"25,184.65",Legal Aid Lower Crime
MOJ,LAA,02/12/2020,Legal Aid Lower Crime,LEGAL AID FUND,REEDS SOLICITORS LLP,2063980:156501451,"25,256.56",Legal Aid Lower Crime
MOJ,LAA,02/12/2020,Legal Aid Lower Crime,LEGAL AID FUND,POWELL SPENCER AND PARTNERS,2065300:156500343,"25,300.00",Legal Aid Lower Crime
MOJ,LAA,02/12/2020,Legal Aid Lower Crime,LEGAL AID FUND,PENFOLD & MCPHERSON LTD,2066879:156501083,"25,369.56",Legal Aid Lower Crime
MOJ,LAA,02/12/2020,Legal Aid Lower Crime,LEGAL AID FUND,TUCKERS SOLICITORS LLP,2067358:156501450,"25,464.69",Legal Aid Lower Crime
MOJ,LAA,02/12/2020,Legal Aid Lower Crime,LEGAL AID FUND,DAVIES & JONES SOLICITORS,2065347:156500302,"25,500.00",Legal Aid Lower Crime
MOJ,LAA,02/12/2020,Legal Aid Lower Crime,LEGAL AID FUND,DEVAS KEOGH JAMES SOLICITORS LTD,2068625:156500716,"25,504.13",Legal Aid Lower Crime
MOJ,LAA,02/12/2020,Legal Aid Lower Crime,LEGAL AID FUND,DAVID AKE & CO,2066760:156500955,"25,625.92",Legal Aid Lower Crime
MOJ,LAA,02/12/2020,Legal Aid Lower Crime,LEGAL AID FUND,STEVEN YOUNG & CO INC ROWBIS,2066664:156501124,"25,705.46",Legal Aid Lower Crime
MOJ,LAA,02/12/2020,Legal Aid Lower Crime,LEGAL AID FUND,EDWARDS DUTHIE SHAMASH SOLICITORS,2067029:156501367,"25,755.61",Legal Aid Lower Crime
MOJ,LAA,02/12/2020,Legal Aid Lower Crime,LEGAL AID FUND,TANG BENTLEY & JACKSON LIMITED,2067340:156501480,"25,838.22",Legal Aid Lower Crime
MOJ,LAA,02/12/2020,Legal Aid Lower Crime,LEGAL AID FUND,COBLEYS SOLICITORS LTD,2065048:156500868,"25,856.44",Legal Aid Lower Crime
MOJ,LAA,02/12/2020,Legal Aid Lower Crime,LEGAL AID FUND,DE MAIDS SOLICITORS & ADVOCATES,2066866:156500303,"26,000.00",Legal Aid Lower Crime
MOJ,LAA,02/12/2020,Legal Aid Lower Crime,LEGAL AID FUND,LLOYDS PR SOLICITORS,2068194:156500677,"26,034.28",Legal Aid Lower Crime
MOJ,LAA,02/12/2020,Legal Aid Lower Crime,LEGAL AID FUND,MARTIN MURRAY & ASSOCIATES,2063664:156530728,"26,101.25",Legal Aid Lower Crime
MOJ,LAA,02/12/2020,Legal Aid Lower Crime,LEGAL AID FUND,TUCKERS SOLICITORS LLP,2068185:156500829,"26,312.68",Legal Aid Lower Crime
MOJ,LAA,02/12/2020,Legal Aid Lower Crime,LEGAL AID FUND,GRECH GOODEN SOLICITORS LTD,2068223:156500611,"26,473.94",Legal Aid Lower Crime
MOJ,LAA,02/12/2020,Legal Aid Lower Crime,LEGAL AID FUND,HOWARDS & HENRY'S SOLICITORS LTD,2067397:156501502,"26,502.13",Legal Aid Lower Crime
MOJ,LAA,02/12/2020,Legal Aid Lower Crime,LEGAL AID FUND,PEPPERELLS SOLICITORS,2064829:156501227,"26,569.75",Legal Aid Lower Crime
MOJ,LAA,02/12/2020,Legal Aid Lower Crime,LEGAL AID FUND,STEPHEN RIMMER LLP,2066676:156500475,"26,600.00",Legal Aid Lower Crime
MOJ,LAA,02/12/2020,Legal Aid Lower Crime,LEGAL AID FUND,JAMES MURRAY SOLICITORS,2068386:156500862,"26,613.43",Legal Aid Lower Crime
MOJ,LAA,02/12/2020,Legal Aid Lower Crime,LEGAL AID FUND,MICHAEL PURDON,2065193:156500902,"26,911.18",Legal Aid Lower Crime
MOJ,LAA,02/12/2020,Legal Aid Lower Crime,LEGAL AID FUND,GARTSIDES,2068740:156500587,"26,963.09",Legal Aid Lower Crime
MOJ,LAA,02/12/2020,Legal Aid Lower Crime,LEGAL AID FUND,NELSON GUEST & PARTNERS,2063672:156500766,"26,975.04",Legal Aid Lower Crime
MOJ,LAA,02/12/2020,Legal Aid Lower Crime,LEGAL AID FUND,JORDANS LLP,2066764:156500922,"27,058.41",Legal Aid Lower Crime
MOJ,LAA,02/12/2020,Legal Aid Lower Crime,LEGAL AID FUND,HUMPHRYS DAWSON,2066625:156500618,"27,175.33",Legal Aid Lower Crime
MOJ,LAA,02/12/2020,Legal Aid Lower Crime,LEGAL AID FUND,JSP LAW LTD,2064071:156501380,"27,216.45",Legal Aid Lower Crime
MOJ,LAA,02/12/2020,Legal Aid Lower Crime,LEGAL AID FUND,THE JOHNSON PARTNERSHIP,2065731:156501362,"27,247.63",Legal Aid Lower Crime
MOJ,LAA,02/12/2020,Legal Aid Lower Crime,LEGAL AID FUND,MARTIN MURRAY & ASSOCIATES,2063663:156500490,"27,300.00",Legal Aid Lower Crime
MOJ,LAA,02/12/2020,Legal Aid Lower Crime,LEGAL AID FUND,WATSON WOODHOUSE LTD,2065198:156500386,"27,300.00",Legal Aid Lower Crime
MOJ,LAA,02/12/2020,Legal Aid Lower Crime,LEGAL AID FUND,HASKELL & CO,2066564:156501045,"27,304.64",Legal Aid Lower Crime
MOJ,LAA,02/12/2020,Legal Aid Lower Crime,LEGAL AID FUND,BISHOP & LIGHT SOLICITORS LTD,2067017:156501058,"27,319.91",Legal Aid Lower Crime
MOJ,LAA,02/12/2020,Legal Aid Lower Crime,LEGAL AID FUND,HAY & KILNER LLP,2066792:156500898,"27,619.14",Legal Aid Lower Crime
MOJ,LAA,02/12/2020,Legal Aid Lower Crime,LEGAL AID FUND,ANDREW STORCH SOLICITORS LTD,2065175:156500493,"27,700.00",Legal Aid Lower Crime
MOJ,LAA,02/12/2020,Legal Aid Lower Crime,LEGAL AID FUND,T S LAW LTD,2068411:156500359,"28,000.00",Legal Aid Lower Crime
MOJ,LAA,02/12/2020,Legal Aid Lower Crime,LEGAL AID FUND,ALLEN HOOLE LTD,2068485:156500504,"28,000.00",Legal Aid Lower Crime
MOJ,LAA,02/12/2020,Legal Aid Lower Crime,LEGAL AID FUND,APPLEBY SHAW LTD,2063956:156501549,"28,020.21",Legal Aid Lower Crime
MOJ,LAA,02/12/2020,Legal Aid Lower Crime,LEGAL AID FUND,LLM SOLICITORS (LONDON) LTD,2064864:156501307,"28,065.95",Legal Aid Lower Crime
MOJ,LAA,02/12/2020,Legal Aid Lower Crime,LEGAL AID FUND,GOODHAND & FORSYTH SOLICITORS,2064859:156501243,"28,116.50",Legal Aid Lower Crime
MOJ,LAA,02/12/2020,Legal Aid Lower Crime,LEGAL AID FUND,M K LAW SOLICITORS LTD,2067677:156501444,"28,500.00",Legal Aid Lower Crime
MOJ,LAA,02/12/2020,Legal Aid Lower Crime,LEGAL AID FUND,CLARKE KIERNAN LLP,2065034:156501043,"28,500.68",Legal Aid Lower Crime
MOJ,LAA,02/12/2020,Legal Aid Lower Crime,LEGAL AID FUND,HGH CRIMINAL DEFENCE SOLICITORS,2066423:156501251,"28,970.63",Legal Aid Lower Crime
MOJ,LAA,02/12/2020,Legal Aid Lower Crime,LEGAL AID FUND,OBW PERERA LTD,2068365:156500333,"29,000.00",Legal Aid Lower Crime
MOJ,LAA,02/12/2020,Legal Aid Lower Crime,LEGAL AID FUND,LESLIE FRANKS SOLICITORS LTD,2066526:156500819,"29,152.33",Legal Aid Lower Crime
MOJ,LAA,02/12/2020,Legal Aid Lower Crime,LEGAL AID FUND,SANSBURY DOUGLAS,2064828:156500548,"29,400.00",Legal Aid Lower Crime
MOJ,LAA,02/12/2020,Legal Aid Lower Crime,LEGAL AID FUND,CARTWRIGHT KING LTD,2066652:156500660,"29,515.89",Legal Aid Lower Crime
MOJ,LAA,02/12/2020,Legal Aid Lower Crime,LEGAL AID FUND,RILEY HAYES & CO,2066739:156501193,"29,607.56",Legal Aid Lower Crime
MOJ,LAA,02/12/2020,Legal Aid Lower Crime,LEGAL AID FUND,POOLE ALCOCK LLP,2065133:156500995,"29,730.95",Legal Aid Lower Crime
MOJ,LAA,02/12/2020,Legal Aid Lower Crime,LEGAL AID FUND,GRAHAME STOWE BATESON,2067446:156500957,"29,803.13",Legal Aid Lower Crime
MOJ,LAA,02/12/2020,Legal Aid Lower Crime,LEGAL AID FUND,TEESSIDE LAW LTD,2065820:156501366,"29,839.47",Legal Aid Lower Crime
MOJ,LAA,02/12/2020,Legal Aid Lower Crime,LEGAL AID FUND,TAYLOR HALDANE BARLEX LLP,2064049:156501447,"29,844.13",Legal Aid Lower Crime
MOJ,LAA,02/12/2020,Legal Aid Lower Crime,LEGAL AID FUND,NEEDHAM POULIER LTD,2065036:156500845,"29,896.07",Legal Aid Lower Crime
MOJ,LAA,02/12/2020,Legal Aid Lower Crime,LEGAL AID FUND,TUCKERS SOLICITORS LLP,2067484:156500558,"30,000.00",Legal Aid Lower Crime
MOJ,LAA,02/12/2020,Legal Aid Lower Crime,LEGAL AID FUND,SUSSEX DEFENCE SOLICITORS,2068187:156500552,"30,000.00",Legal Aid Lower Crime
MOJ,LAA,02/12/2020,Legal Aid Lower Crime,LEGAL AID FUND,ASGHAR & CO SOLICITORS LTD,2067020:156500835,"30,061.47",Legal Aid Lower Crime
MOJ,LAA,02/12/2020,Legal Aid Lower Crime,LEGAL AID FUND,COX BURLEY SOLICITORS,2066487:156501094,"30,077.54",Legal Aid Lower Crime
MOJ,LAA,02/12/2020,Legal Aid Lower Crime,LEGAL AID FUND,ALLEN HOOLE LTD,2063989:156501521,"30,137.04",Legal Aid Lower Crime
MOJ,LAA,02/12/2020,Legal Aid Lower Crime,LEGAL AID FUND,WOOLLCOMBE YONGE LLP,2067013:156501102,"30,395.66",Legal Aid Lower Crime
MOJ,LAA,02/12/2020,Legal Aid Lower Crime,LEGAL AID FUND,BELMORES SOLICITORS LTD,2064888:156500696,"30,406.18",Legal Aid Lower Crime
MOJ,LAA,02/12/2020,Legal Aid Lower Crime,LEGAL AID FUND,BLACKFORDS LLP,2066977:156500757,"30,908.18",Legal Aid Lower Crime
MOJ,LAA,02/12/2020,Legal Aid Lower Crime,LEGAL AID FUND,CRIMINAL DEFENCE MILTON KEYNES LTD,2068266:156500487,"31,000.00",Legal Aid Lower Crime
MOJ,LAA,02/12/2020,Legal Aid Lower Crime,LEGAL AID FUND,FORBES SOLICITORS,2068401:156500446,"31,000.00",Legal Aid Lower Crime
MOJ,LAA,02/12/2020,Legal Aid Lower Crime,LEGAL AID FUND,KEANEY WHITEHEAD PARTNERSHIP,2068214:156500872,"31,001.51",Legal Aid Lower Crime
MOJ,LAA,02/12/2020,Legal Aid Lower Crime,LEGAL AID FUND,HOWELL HYLTON LTD,2066685:156501093,"31,215.67",Legal Aid Lower Crime
MOJ,LAA,02/12/2020,Legal Aid Lower Crime,LEGAL AID FUND,VYMAN SOLICITORS LTD,2066637:156501040,"31,257.44",Legal Aid Lower Crime
MOJ,LAA,02/12/2020,Legal Aid Lower Crime,LEGAL AID FUND,I B B LAW LLP,2068352:156500352,"31,500.00",Legal Aid Lower Crime
MOJ,LAA,02/12/2020,Legal Aid Lower Crime,LEGAL AID FUND,K LEGAL SOLICITORS,2066399:156501313,"31,806.28",Legal Aid Lower Crime
MOJ,LAA,02/12/2020,Legal Aid Lower Crime,LEGAL AID FUND,VHS FLETCHERS,2064080:156501376,"31,854.49",Legal Aid Lower Crime
MOJ,LAA,02/12/2020,Legal Aid Lower Crime,LEGAL AID FUND,MW SOLICITORS,2064104:156501685,"31,860.39",Legal Aid Lower Crime
MOJ,LAA,02/12/2020,Legal Aid Lower Crime,LEGAL AID FUND,MARTIN MURRAY & ASSOCIATES,2063664:156500351,"32,400.00",Legal Aid Lower Crime
MOJ,LAA,02/12/2020,Legal Aid Lower Crime,LEGAL AID FUND,THE JOHNSON PARTNERSHIP,2065732:156501361,"32,438.60",Legal Aid Lower Crime
MOJ,LAA,02/12/2020,Legal Aid Lower Crime,LEGAL AID FUND,BOND JOSEPH,2066597:156501052,"32,487.48",Legal Aid Lower Crime
MOJ,LAA,02/12/2020,Legal Aid Lower Crime,LEGAL AID FUND,BAL DHALIWAL SOLICITORS,2068374:156500723,"32,490.39",Legal Aid Lower Crime
MOJ,LAA,02/12/2020,Legal Aid Lower Crime,LEGAL AID FUND,SHARMA LAW SOLICITORS,2065590:156501589,"32,510.53",Legal Aid Lower Crime
MOJ,LAA,02/12/2020,Legal Aid Lower Crime,LEGAL AID FUND,HILL TWINE SOLICITORS,2065766:156501360,"32,586.26",Legal Aid Lower Crime
MOJ,LAA,02/12/2020,Legal Aid Lower Crime,LEGAL AID FUND,THOMAS BOYD WHYTE SOLICITORS,2066984:156500769,"32,657.56",Legal Aid Lower Crime
MOJ,LAA,02/12/2020,Legal Aid Lower Crime,LEGAL AID FUND,ROBERT LIZAR,2066930:156501035,"32,663.54",Legal Aid Lower Crime
MOJ,LAA,02/12/2020,Legal Aid Lower Crime,LEGAL AID FUND,ROWE SPARKES SOLICITORS LTD,2064879:156501071,"32,843.76",Legal Aid Lower Crime
MOJ,LAA,02/12/2020,Legal Aid Lower Crime,LEGAL AID FUND,JOHN DELANEY & CO SOLICITORS,2068334:156500429,"33,000.00",Legal Aid Lower Crime
MOJ,LAA,02/12/2020,Legal Aid Lower Crime,LEGAL AID FUND,REEDS SOLICITORS LLP,2067372:156501448,"33,210.03",Legal Aid Lower Crime
MOJ,LAA,02/12/2020,Legal Aid Lower Crime,LEGAL AID FUND,ROSS SOLICITORS LTD,2068661:156500511,"33,300.00",Legal Aid Lower Crime
MOJ,LAA,02/12/2020,Legal Aid Lower Crime,LEGAL AID FUND,SUNDIP MURRIA SOLICITORS,2064928:156500539,"33,400.00",Legal Aid Lower Crime
MOJ,LAA,02/12/2020,Legal Aid Lower Crime,LEGAL AID FUND,TURNOCKS DEFENCE SOLICITORS LTD,2065273:156501162,"33,459.92",Legal Aid Lower Crime
MOJ,LAA,02/12/2020,Legal Aid Lower Crime,LEGAL AID FUND,ZMS LEGAL LTD TA ZMS SOLICITORS,2066567:156500638,"33,502.49",Legal Aid Lower Crime
MOJ,LAA,02/12/2020,Legal Aid Lower Crime,LEGAL AID FUND,MCSORLEY LEWIS LAW LTD,2068747:156500605,"33,735.30",Legal Aid Lower Crime
MOJ,LAA,02/12/2020,Legal Aid Lower Crime,LEGAL AID FUND,LLOYDS PR SOLICITORS,2066639:156500672,"33,779.01",Legal Aid Lower Crime
MOJ,LAA,02/12/2020,Legal Aid Lower Crime,LEGAL AID FUND,JOHN ONIONS SOLICITORS,2066885:156501141,"33,786.17",Legal Aid Lower Crime
MOJ,LAA,02/12/2020,Legal Aid Lower Crime,LEGAL AID FUND,BREYDONS SOLICITORS LTD,2067445:156501270,"33,818.03",Legal Aid Lower Crime
MOJ,LAA,02/12/2020,Legal Aid Lower Crime,LEGAL AID FUND,GOODALL BARNETT JAMES SOLICITORS,2066939:156500474,"34,000.00",Legal Aid Lower Crime
MOJ,LAA,02/12/2020,Legal Aid Lower Crime,LEGAL AID FUND,DRISCOLL YOUNG SOLICITORS LTD,2065023:156500589,"34,504.37",Legal Aid Lower Crime
MOJ,LAA,02/12/2020,Legal Aid Lower Crime,LEGAL AID FUND,EBR ATTRIDGE LLP,2064941:156500750,"34,821.64",Legal Aid Lower Crime
MOJ,LAA,02/12/2020,Legal Aid Lower Crime,LEGAL AID FUND,THE JOHNSON PARTNERSHIP,2065100:156500647,"34,993.53",Legal Aid Lower Crime
MOJ,LAA,02/12/2020,Legal Aid Lower Crime,LEGAL AID FUND,CONNOR ROSS-BROWN SOLICITORS,2064273:156500557,"35,000.00",Legal Aid Lower Crime
MOJ,LAA,02/12/2020,Legal Aid Lower Crime,LEGAL AID FUND,HENNESSY & HAMMUDI,2066539:156500495,"35,000.00",Legal Aid Lower Crime
MOJ,LAA,02/12/2020,Legal Aid Lower Crime,LEGAL AID FUND,LANSBURY WORTHINGTON LTD,2068623:156500337,"35,000.00",Legal Aid Lower Crime
MOJ,LAA,02/12/2020,Legal Aid Lower Crime,LEGAL AID FUND,HENRY HYAMS LTD,2066767:156500954,"35,750.42",Legal Aid Lower Crime
MOJ,LAA,02/12/2020,Legal Aid Lower Crime,LEGAL AID FUND,WESSEX SOLICITORS CHAMBERS,2068258:156500546,"35,800.00",Legal Aid Lower Crime
MOJ,LAA,02/12/2020,Legal Aid Lower Crime,LEGAL AID FUND,PAUL ROBINSON SOLICITORS LLP,2063952:156501551,"36,167.10",Legal Aid Lower Crime
MOJ,LAA,02/12/2020,Legal Aid Lower Crime,LEGAL AID FUND,GRAHAM & CO SOLICITORS LTD,2065543:156501626,"36,232.02",Legal Aid Lower Crime
MOJ,LAA,02/12/2020,Legal Aid Lower Crime,LEGAL AID FUND,BURTON COPELAND LLP,2066708:156501033,"36,361.16",Legal Aid Lower Crime
MOJ,LAA,02/12/2020,Legal Aid Lower Crime,LEGAL AID FUND,REECE THOMAS WATSON LTD,2064084:156501421,"37,041.03",Legal Aid Lower Crime
MOJ,LAA,02/12/2020,Legal Aid Lower Crime,LEGAL AID FUND,HPJV SOLICITORS,2065258:156500588,"37,133.50",Legal Aid Lower Crime
MOJ,LAA,02/12/2020,Legal Aid Lower Crime,LEGAL AID FUND,OSLERS SOLICITORS,2068272:156500707,"37,352.49",Legal Aid Lower Crime
MOJ,LAA,02/12/2020,Legal Aid Lower Crime,LEGAL AID FUND,EVANS HAYES BURNELL SOLICITORS LTD,2065624:156501461,"37,457.40",Legal Aid Lower Crime
MOJ,LAA,02/12/2020,Legal Aid Lower Crime,LEGAL AID FUND,VHS FLETCHERS,2065083:156500649,"37,989.28",Legal Aid Lower Crime
MOJ,LAA,02/12/2020,Legal Aid Lower Crime,LEGAL AID FUND,LAWRENCE & CO SOLICITORS CDS LLP,2066831:156500367,"38,000.00",Legal Aid Lower Crime
MOJ,LAA,02/12/2020,Legal Aid Lower Crime,LEGAL AID FUND,REEDS SOLICITORS LLP,2065567:156501608,"38,596.45",Legal Aid Lower Crime
MOJ,LAA,02/12/2020,Legal Aid Lower Crime,LEGAL AID FUND,CHURCHERS SOLICITORS LLP,2066550:156501074,"38,692.96",Legal Aid Lower Crime
MOJ,LAA,02/12/2020,Legal Aid Lower Crime,LEGAL AID FUND,REEVES  & CO SOLICITORS,2068213:156501047,"38,960.30",Legal Aid Lower Crime
MOJ,LAA,02/12/2020,Legal Aid Lower Crime,LEGAL AID FUND,HOWELLS LLP,2066851:156500411,"39,500.00",Legal Aid Lower Crime
MOJ,LAA,02/12/2020,Legal Aid Lower Crime,LEGAL AID FUND,LEWIS NEDAS LAW LTD,2065550:156500570,"40,000.00",Legal Aid Lower Crime
MOJ,LAA,02/12/2020,Legal Aid Lower Crime,LEGAL AID FUND,M K LAW SOLICITORS LTD,2066431:156501272,"40,000.00",Legal Aid Lower Crime
MOJ,LAA,02/12/2020,Legal Aid Lower Crime,LEGAL AID FUND,DEVONALD GRIFFITHS JOHN,2066686:156500300,"40,000.00",Legal Aid Lower Crime
MOJ,LAA,02/12/2020,Legal Aid Lower Crime,LEGAL AID FUND,HARRIS CUFFARO & NICHOLS,2068627:156500329,"40,200.00",Legal Aid Lower Crime
MOJ,LAA,02/12/2020,Legal Aid Lower Crime,LEGAL AID FUND,PANESAR & CO SOLICITORS,2065033:156500691,"40,484.60",Legal Aid Lower Crime
MOJ,LAA,02/12/2020,Legal Aid Lower Crime,LEGAL AID FUND,GOMER WILLIAMS,2068741:156500599,"40,704.07",Legal Aid Lower Crime
MOJ,LAA,02/12/2020,Legal Aid Lower Crime,LEGAL AID FUND,QUALITYSOLICITORS JONES ROBERTSON,2065052:156500968,"40,839.18",Legal Aid Lower Crime
MOJ,LAA,02/12/2020,Legal Aid Lower Crime,LEGAL AID FUND,WANNOPS LLP,2066432:156501335,"40,911.51",Legal Aid Lower Crime
MOJ,LAA,02/12/2020,Legal Aid Lower Crime,LEGAL AID FUND,HINE SOLICITORS,2063985:156501525,"40,963.72",Legal Aid Lower Crime
MOJ,LAA,02/12/2020,Legal Aid Lower Crime,LEGAL AID FUND,G T STEWART LTD,2064812:156501260,"41,172.92",Legal Aid Lower Crime
MOJ,LAA,02/12/2020,Legal Aid Lower Crime,LEGAL AID FUND,CARR & CO,2065161:156500421,"42,300.00",Legal Aid Lower Crime
MOJ,LAA,02/12/2020,Legal Aid Lower Crime,LEGAL AID FUND,SONN MACMILLAN WALKER LTD,2063668:156500338,"42,900.00",Legal Aid Lower Crime
MOJ,LAA,02/12/2020,Legal Aid Lower Crime,LEGAL AID FUND,DUNCAN LEWIS SOLICITORS  LTD,2065002:156500357,"43,400.00",Legal Aid Lower Crime
MOJ,LAA,02/12/2020,Legal Aid Lower Crime,LEGAL AID FUND,PURE LAW CRIMINAL DEFENCE,2064031:156501465,"43,778.27",Legal Aid Lower Crime
MOJ,LAA,02/12/2020,Legal Aid Lower Crime,LEGAL AID FUND,ABR SOLICITORS,2068315:156500958,"44,047.00",Legal Aid Lower Crime
MOJ,LAA,02/12/2020,Legal Aid Lower Crime,LEGAL AID FUND,ABV SOLICITORS,2064913:156500354,"44,200.00",Legal Aid Lower Crime
MOJ,LAA,02/12/2020,Legal Aid Lower Crime,LEGAL AID FUND,TAYLOR HALDANE BARLEX LLP,2065979:156501345,"44,280.26",Legal Aid Lower Crime
MOJ,LAA,02/12/2020,Legal Aid Lower Crime,LEGAL AID FUND,ALBIN & CO LTD,2067342:156501478,"44,754.04",Legal Aid Lower Crime
MOJ,LAA,02/12/2020,Legal Aid Lower Crime,LEGAL AID FUND,RENSHAW DERRICK & CO,2067026:156501095,"44,811.49",Legal Aid Lower Crime
MOJ,LAA,02/12/2020,Legal Aid Lower Crime,LEGAL AID FUND,OLD BAILEY SOLICITORS LTD,2064839:156501261,"45,303.49",Legal Aid Lower Crime
MOJ,LAA,02/12/2020,Legal Aid Lower Crime,LEGAL AID FUND,KESAR & CO SOLICITORS,2066393:156501315,"45,463.20",Legal Aid Lower Crime
MOJ,LAA,02/12/2020,Legal Aid Lower Crime,LEGAL AID FUND,JACKSON LEES GROUP LTD,2067673:156501349,"45,465.57",Legal Aid Lower Crime
MOJ,LAA,02/12/2020,Legal Aid Lower Crime,LEGAL AID FUND,T V EDWARDS LLP,2068624:156500796,"45,663.84",Legal Aid Lower Crime
MOJ,LAA,02/12/2020,Legal Aid Lower Crime,LEGAL AID FUND,HORSMAN SOLICITORS LTD,2065209:156501048,"45,893.63",Legal Aid Lower Crime
MOJ,LAA,02/12/2020,Legal Aid Lower Crime,LEGAL AID FUND,J D SPICER ZEB,2065299:156500770,"45,998.78",Legal Aid Lower Crime
MOJ,LAA,02/12/2020,Legal Aid Lower Crime,LEGAL AID FUND,CROWE HUMBLE WESENCRAFT,2065038:156500905,"46,578.91",Legal Aid Lower Crime
MOJ,LAA,02/12/2020,Legal Aid Lower Crime,LEGAL AID FUND,THE JOHNSON PARTNERSHIP,2065654:156501417,"47,144.39",Legal Aid Lower Crime
MOJ,LAA,02/12/2020,Legal Aid Lower Crime,LEGAL AID FUND,NOBLE SOLICITORS,2066433:156501228,"47,464.52",Legal Aid Lower Crime
MOJ,LAA,02/12/2020,Legal Aid Lower Crime,LEGAL AID FUND,THE JOHNSON PARTNERSHIP,2064826:156501209,"47,666.48",Legal Aid Lower Crime
MOJ,LAA,02/12/2020,Legal Aid Lower Crime,LEGAL AID FUND,HAYWOOD LUNN & ALLEN LTD,2067333:156501485,"48,754.05",Legal Aid Lower Crime
MOJ,LAA,02/12/2020,Legal Aid Lower Crime,LEGAL AID FUND,HOWARD & BYRNE SOLICITORS,2068285:156500420,"50,000.00",Legal Aid Lower Crime
MOJ,LAA,02/12/2020,Legal Aid Lower Crime,LEGAL AID FUND,EBR ATTRIDGE LLP,2064942:156500747,"50,420.75",Legal Aid Lower Crime
MOJ,LAA,02/12/2020,Legal Aid Lower Crime,LEGAL AID FUND,J D SOLICITORS,2063943:156501555,"50,698.23",Legal Aid Lower Crime
MOJ,LAA,02/12/2020,Legal Aid Lower Crime,LEGAL AID FUND,BAILEY NICHOLSON GRAYSON,2068434:156500340,"50,800.00",Legal Aid Lower Crime
MOJ,LAA,02/12/2020,Legal Aid Lower Crime,LEGAL AID FUND,WELLS BURCOMBE LLP,2068184:156500676,"51,649.69",Legal Aid Lower Crime
MOJ,LAA,02/12/2020,Legal Aid Lower Crime,LEGAL AID FUND,STUART MILLER SOLICITORS LTD,2065205:156500815,"52,663.58",Legal Aid Lower Crime
MOJ,LAA,02/12/2020,Legal Aid Lower Crime,LEGAL AID FUND,GWB HARTHILLS LLP,2068304:156500932,"53,511.04",Legal Aid Lower Crime
MOJ,LAA,02/12/2020,Legal Aid Lower Crime,LEGAL AID FUND,USMANI KING LTD,2066607:156500682,"53,692.30",Legal Aid Lower Crime
MOJ,LAA,02/12/2020,Legal Aid Lower Crime,LEGAL AID FUND,SHELLEY & CO,2066733:156500722,"53,994.97",Legal Aid Lower Crime
MOJ,LAA,02/12/2020,Legal Aid Lower Crime,LEGAL AID FUND,REEDS SOLICITORS LLP,2065126:156501088,"58,105.41",Legal Aid Lower Crime
MOJ,LAA,02/12/2020,Legal Aid Lower Crime,LEGAL AID FUND,WILLIAMSONS SOLICITORS LTD,2065250:156500430,"58,600.00",Legal Aid Lower Crime
MOJ,LAA,02/12/2020,Legal Aid Lower Crime,LEGAL AID FUND,WALKER LAW LTD,2065626:156501637,"59,403.23",Legal Aid Lower Crime
MOJ,LAA,02/12/2020,Legal Aid Lower Crime,LEGAL AID FUND,CITY LAW CHAMBERS LTD,2068205:156500689,"59,661.53",Legal Aid Lower Crime
MOJ,LAA,02/12/2020,Legal Aid Lower Crime,LEGAL AID FUND,GAMMON PIERCY & GAIGER LLP,2066987:156501068,"61,305.26",Legal Aid Lower Crime
MOJ,LAA,02/12/2020,Legal Aid Lower Crime,LEGAL AID FUND,DALTON HOLMES GRAY,2068418:156500825,"63,882.56",Legal Aid Lower Crime
MOJ,LAA,02/12/2020,Legal Aid Lower Crime,LEGAL AID FUND,JERMAN SAMUELS & PEARSON LLP,2064013:156500563,"65,000.00",Legal Aid Lower Crime
MOJ,LAA,02/12/2020,Legal Aid Lower Crime,LEGAL AID FUND,BHATIA BEST LTD,2068472:156500306,"67,600.00",Legal Aid Lower Crime
MOJ,LAA,02/12/2020,Legal Aid Lower Crime,LEGAL AID FUND,G T STEWART LTD,2064966:156500831,"75,301.50",Legal Aid Lower Crime
MOJ,LAA,02/12/2020,Legal Aid Lower Crime,LEGAL AID FUND,H P GOWER SOLICITORS,2064872:156501299,"76,242.67",Legal Aid Lower Crime
MOJ,LAA,02/12/2020,Legal Aid Lower Crime,LEGAL AID FUND,RMNJ SOLICITORS,2065135:156500858,"81,442.07",Legal Aid Lower Crime
MOJ,LAA,02/12/2020,Legal Aid Lower Crime,LEGAL AID FUND,HODGE JONES & ALLEN SOLICITORS LTD,2065296:156500814,"83,415.33",Legal Aid Lower Crime
MOJ,LAA,02/12/2020,Legal Aid Lower Crime,LEGAL AID FUND,PURCELL PARKER LTD,2066738:156500529,"90,000.00",Legal Aid Lower Crime
MOJ,LAA,02/12/2020,Legal Aid Lower Crime,LEGAL AID FUND,BIRDS SOLICITORS LTD,2068288:156500346,"90,000.00",Legal Aid Lower Crime
MOJ,LAA,02/12/2020,Legal Aid Lower Crime,LEGAL AID FUND,REEDS SOLICITORS LLP,2065571:156501604,"91,931.67",Legal Aid Lower Crime
MOJ,LAA,02/12/2020,Legal Aid Lower Crime,LEGAL AID FUND,CARTER OSBORNE LTD,2065114:156500645,"97,870.55",Legal Aid Lower Crime
MOJ,LAA,02/12/2020,Legal Aid Lower Crime,LEGAL AID FUND,YOUNG & CO SOLICITORS T/A SWAIN & CO,2066665:156500485,"100,000.00",Legal Aid Lower Crime
MOJ,LAA,02/12/2020,Legal Aid Lower Crime,LEGAL AID FUND,CARTERS SOLICITORS,2066571:156500828,"104,509.89",Legal Aid Lower Crime
MOJ,LAA,02/12/2020,Legal Aid Lower Crime,LEGAL AID FUND,WELLS BURCOMBE LLP,2066403:156501273,"106,228.82",Legal Aid Lower Crime
MOJ,LAA,02/12/2020,Legal Aid Lower Crime,LEGAL AID FUND,INSTALAW,2064095:156501418,"118,886.97",Legal Aid Lower Crime
MOJ,LAA,02/12/2020,Legal Aid Lower Crime,LEGAL AID FUND,THE JOHNSON PARTNERSHIP,2065102:156500643,"140,221.64",Legal Aid Lower Crime
MOJ,LAA,02/12/2020,Legal Aid Lower Crime,LEGAL AID FUND,CARRINGTONS SOLICITORS,2066521:156500650,"146,796.76",Legal Aid Lower Crime
MOJ,LAA,02/12/2020,Legal Aid Lower Crime,LEGAL AID FUND,TUCKERS SOLICITORS LLP,2065202:156500462,"155,000.00",Legal Aid Lower Crime
MOJ,LAA,02/12/2020,Legal Aid Lower Crime,LEGAL AID FUND,TUCKERS SOLICITORS LLP,2065203:156500366,"155,000.00",Legal Aid Lower Crime
MOJ,LAA,04/12/2020,EXP - PURCHASE OF GOODS/SERVICES - OFFICE RELATED - Reprographics,LEGAL AID FUND,CORPORATE DOCUMENT SERVICES LTD,246891,"49,638.15",Reprographics and printing services
MOJ,LAA,08/12/2020,EXP - PURCHASE OF GOODS/SERVICES - OTHER - Central Funds - Other,LEGAL AID FUND,JD SPICER ZEB,M1116282/147920,"25,920.00",Court costs
MOJ,LAA,09/12/2020,EXP - MISCELLANEOUS EXPENDITURE - Compensation - Adverse legal costs,LEGAL AID FUND,EVERYS SOLICITORS,LAA-SOP4-EVE-014,"38,198.17",Legal services
MOJ,LAA,09/12/2020,Legal Aid Civil Representation,LEGAL AID FUND,DAVID BARNEY & CO,2070187:3000005149360017,"25,011.34",Legal Aid Civil Representation
MOJ,LAA,09/12/2020,Legal Aid Civil Representation,LEGAL AID FUND,FRANCIS SOLICITORS LTD,2071958:3000006112710009,"25,165.17",Legal Aid Civil Representation
MOJ,LAA,09/12/2020,Legal Aid Civil Representation,LEGAL AID FUND,RUBIN LEWIS O'BRIEN LLP,2070326:3000005097220040,"25,200.00",Legal Aid Civil Representation
MOJ,LAA,09/12/2020,Legal Aid Civil Representation,LEGAL AID FUND,DAVID BARNEY & CO,2070187:3000005147250013,"25,236.15",Legal Aid Civil Representation
MOJ,LAA,09/12/2020,Legal Aid Civil Representation,LEGAL AID FUND,LILLYWHITE WILLIAMS & CO,2070370:3000004231130010,"25,460.64",Legal Aid Civil Representation
MOJ,LAA,09/12/2020,Legal Aid Civil Representation,LEGAL AID FUND,BLACKWHITE SOLICITORS LTD,2069977:3000001993740007,"25,504.92",Legal Aid Civil Representation
MOJ,LAA,09/12/2020,Legal Aid Civil Representation,LEGAL AID FUND,COPPER STONE SOLICITORS LTD,2072775:3000004517410008,"25,512.27",Legal Aid Civil Representation
MOJ,LAA,09/12/2020,Legal Aid Civil Representation,LEGAL AID FUND,STUART MARTIN,2071172:3000006680080010,"25,646.62",Legal Aid Civil Representation
MOJ,LAA,09/12/2020,Legal Aid Civil Representation,LEGAL AID FUND,TOZERS LLP,2071633:3000004874180010,"25,649.01",Legal Aid Civil Representation
MOJ,LAA,09/12/2020,Legal Aid Civil Representation,LEGAL AID FUND,FOYS SOLICITORS,2070556:3000005236250005,"25,733.47",Legal Aid Civil Representation
MOJ,LAA,09/12/2020,Legal Aid Civil Representation,LEGAL AID FUND,ANN P MAY,2072131:3000005930040032,"25,801.82",Legal Aid Civil Representation
MOJ,LAA,09/12/2020,Legal Aid Civil Representation,LEGAL AID FUND,CREIGHTON & PARTNERS SOLICITORS LTD,2072812:3000004378780011,"25,932.76",Legal Aid Civil Representation
MOJ,LAA,09/12/2020,Legal Aid Civil Representation,LEGAL AID FUND,ROSEWOOD SOLICITORS LTD,2072008:3000006428410017,"26,006.40",Legal Aid Civil Representation
MOJ,LAA,09/12/2020,Legal Aid Civil Representation,LEGAL AID FUND,WBW SOLICITORS LLP,2070438:3000003737130033,"26,174.62",Legal Aid Civil Representation
MOJ,LAA,09/12/2020,Legal Aid Civil Representation,LEGAL AID FUND,CHARLOTTE H G WORSLEY,2071216:3000006231860007,"26,204.18",Legal Aid Civil Representation
MOJ,LAA,09/12/2020,Legal Aid Civil Representation,LEGAL AID FUND,MILES & PARTNERS LLP,2070311:3000004666420011,"26,344.39",Legal Aid Civil Representation
MOJ,LAA,09/12/2020,Legal Aid Civil Representation,LEGAL AID FUND,KING STREET SOLICITORS LLP,2072843:3000005967930013,"26,463.14",Legal Aid Civil Representation
MOJ,LAA,09/12/2020,Legal Aid Civil Representation,LEGAL AID FUND,SIMPSON MILLAR SOLICITORS LLP,2071569:3000005759110009,"26,584.51",Legal Aid Civil Representation
MOJ,LAA,09/12/2020,Legal Aid Civil Representation,LEGAL AID FUND,G T STEWART LTD,2070098:3000005403500009,"26,585.49",Legal Aid Civil Representation
MOJ,LAA,09/12/2020,Legal Aid Civil Representation,LEGAL AID FUND,COCKS LLOYD,2071661:3000004479000032,"26,720.50",Legal Aid Civil Representation
MOJ,LAA,09/12/2020,Legal Aid Civil Representation,LEGAL AID FUND,BEVIRS,2073096:3000004996670010,"26,746.04",Legal Aid Civil Representation
MOJ,LAA,09/12/2020,Legal Aid Civil Representation,LEGAL AID FUND,KRISTINA P A HOPPER,2070666:3000003411970010,"26,838.00",Legal Aid Civil Representation
MOJ,LAA,09/12/2020,Legal Aid Civil Representation,LEGAL AID FUND,WILLISCROFT & CO SOLICITORS,2070048:3000002302940040,"26,983.22",Legal Aid Civil Representation
MOJ,LAA,09/12/2020,Legal Aid Civil Representation,LEGAL AID FUND,ARRON THOMAS,2071175:3000005829290022,"27,043.20",Legal Aid Civil Representation
MOJ,LAA,09/12/2020,Legal Aid Civil Representation,LEGAL AID FUND,NOBLE SOLICITORS,2070216:3000004666610033,"27,237.60",Legal Aid Civil Representation
MOJ,LAA,09/12/2020,Legal Aid Civil Representation,LEGAL AID FUND,LEGAL SERVICES FOR CHILDREN,2071408:3000005401750004,"27,555.89",Legal Aid Civil Representation
MOJ,LAA,09/12/2020,Legal Aid Civil Representation,LEGAL AID FUND,FORBES SOLICITORS,2071513:3000004493250021,"28,339.04",Legal Aid Civil Representation
MOJ,LAA,09/12/2020,Legal Aid Civil Representation,LEGAL AID FUND,BEU SOLICITORS,2069141:3000005085280004,"28,456.20",Legal Aid Civil Representation
MOJ,LAA,09/12/2020,Legal Aid Civil Representation,LEGAL AID FUND,FRANCESCA V STEELS,2070559:3000003755840044,"28,684.80",Legal Aid Civil Representation
MOJ,LAA,09/12/2020,Legal Aid Civil Representation,LEGAL AID FUND,JNP LEGAL LTD,2071710:3000004226160032,"28,725.39",Legal Aid Civil Representation
MOJ,LAA,09/12/2020,Legal Aid Civil Representation,LEGAL AID FUND,EVERETT TOMLIN LLOYD & PRATT,2070363:3000005586070019,"28,908.12",Legal Aid Civil Representation
MOJ,LAA,09/12/2020,Legal Aid Civil Representation,LEGAL AID FUND,D S LEGAL,2069463:3000004723610033,"29,346.88",Legal Aid Civil Representation
MOJ,LAA,09/12/2020,Legal Aid Civil Representation,LEGAL AID FUND,JACKSON QUINN,2070081:3000003683390016,"29,562.49",Legal Aid Civil Representation
MOJ,LAA,09/12/2020,Legal Aid Civil Representation,LEGAL AID FUND,LEGAL SERVICES FOR CHILDREN,2071408:3000006269640003,"29,875.11",Legal Aid Civil Representation
MOJ,LAA,09/12/2020,Legal Aid Civil Representation,LEGAL AID FUND,LISA M WILSON,2070885:3000004304360030,"30,407.40",Legal Aid Civil Representation
MOJ,LAA,09/12/2020,Legal Aid Civil Representation,LEGAL AID FUND,HOGANS SOLICITORS LTD,2072868:3000004694080018,"30,702.19",Legal Aid Civil Representation
MOJ,LAA,09/12/2020,Legal Aid Civil Representation,LEGAL AID FUND,LEWIS RODGERS LTD,2072832:3000005086090007,"31,245.24",Legal Aid Civil Representation
MOJ,LAA,09/12/2020,Legal Aid Civil Representation,LEGAL AID FUND,NEIL S MERCER,2072175:3000005875990018,"31,966.08",Legal Aid Civil Representation
MOJ,LAA,09/12/2020,Legal Aid Civil Representation,LEGAL AID FUND,MORRISON SPOWART LTD,2071531:3000004530760036,"32,965.19",Legal Aid Civil Representation
MOJ,LAA,09/12/2020,Legal Aid Civil Representation,LEGAL AID FUND,PATRICK LAWRENCE PARTNERSHIP LLP,2071507:3000006273430008,"33,600.00",Legal Aid Civil Representation
MOJ,LAA,09/12/2020,Legal Aid Civil Representation,LEGAL AID FUND,KATHRYN M KOROL,2072697:3000004740270027,"34,076.16",Legal Aid Civil Representation
MOJ,LAA,09/12/2020,Legal Aid Civil Representation,LEGAL AID FUND,JONATHAN SAMPSON,2069812:3000006749200010,"34,418.64",Legal Aid Civil Representation
MOJ,LAA,09/12/2020,Legal Aid Civil Representation,LEGAL AID FUND,KINGSFORDS SOLICITORS LTD,2071748:3000002337700022,"34,442.46",Legal Aid Civil Representation
MOJ,LAA,09/12/2020,Legal Aid Civil Representation,LEGAL AID FUND,OWEN HUW THOMAS,2072210:3000005212200020,"37,896.00",Legal Aid Civil Representation
MOJ,LAA,09/12/2020,Legal Aid Civil Representation,LEGAL AID FUND,SARAH POPE,2069449:3000003490920024,"37,985.56",Legal Aid Civil Representation
MOJ,LAA,09/12/2020,Legal Aid Civil Representation,LEGAL AID FUND,CHILD LAW PARTNERSHIP LTD,2070139:3000004798350003,"38,968.29",Legal Aid Civil Representation
MOJ,LAA,09/12/2020,Legal Aid Civil Representation,LEGAL AID FUND,RHYS M JONES,2071048:3000005607820011,"39,532.32",Legal Aid Civil Representation
MOJ,LAA,09/12/2020,Legal Aid Civil Representation,LEGAL AID FUND,BDH SOLICITORS LTD,2073080:3000005535260017,"39,595.87",Legal Aid Civil Representation
MOJ,LAA,09/12/2020,Legal Aid Civil Representation,LEGAL AID FUND,KELCEY & HALL SOLICITORS,2072970:3000003490920023,"41,056.34",Legal Aid Civil Representation
MOJ,LAA,09/12/2020,Legal Aid Civil Representation,LEGAL AID FUND,HAY & KILNER LLP,2071610:3000004645890029,"44,462.96",Legal Aid Civil Representation
MOJ,LAA,09/12/2020,Legal Aid Civil Representation,LEGAL AID FUND,FMW LAW LTD,2071692:3000004923160012,"47,245.98",Legal Aid Civil Representation
MOJ,LAA,09/12/2020,Legal Aid Civil Representation,LEGAL AID FUND,TIMUR HUSSEIN,2071250:3000004541380015,"47,253.79",Legal Aid Civil Representation
MOJ,LAA,09/12/2020,Legal Aid Civil Representation,LEGAL AID FUND,SIMON L BICKLER QC,2072392:3000004050490012,"48,543.86",Legal Aid Civil Representation
MOJ,LAA,09/12/2020,Legal Aid Civil Representation,LEGAL AID FUND,CHARLES N H PURSS,2072503:3000002337700023,"49,680.00",Legal Aid Civil Representation
MOJ,LAA,09/12/2020,Legal Aid Civil Representation,LEGAL AID FUND,PAMELA SCRIVEN QC,2070865:3000004081890018,"50,025.60",Legal Aid Civil Representation
MOJ,LAA,09/12/2020,Legal Aid Civil Representation,LEGAL AID FUND,JOHANNE E DELAHUNTY QC,2069591:3000006401670010,"50,702.16",Legal Aid Civil Representation
MOJ,LAA,09/12/2020,Legal Aid Civil Representation,LEGAL AID FUND,BDH SOLICITORS LTD,2073080:3000004057020010,"52,870.32",Legal Aid Civil Representation
MOJ,LAA,09/12/2020,Legal Aid Higher Crime,LEGAL AID FUND,THOMAS L SCHOFIELD,2071152:156534591,"25,338.00",Legal Aid Higher Crime
MOJ,LAA,09/12/2020,Legal Aid Higher Crime,LEGAL AID FUND,PETER J COOPER,2071325:156543650,"26,034.00",Legal Aid Higher Crime
MOJ,LAA,09/12/2020,Legal Aid Higher Crime,LEGAL AID FUND,CHURCHERS SOLICITORS LLP,2071358:156543818,"26,305.05",Legal Aid Higher Crime
MOJ,LAA,09/12/2020,Legal Aid Higher Crime,LEGAL AID FUND,ASKEWS LEGAL LLP,2072721:156561961,"26,893.52",Legal Aid Higher Crime
MOJ,LAA,09/12/2020,Legal Aid Higher Crime,LEGAL AID FUND,PETER D WRIGHT QC,2069760:156552823,"27,564.00",Legal Aid Higher Crime
MOJ,LAA,09/12/2020,Legal Aid Higher Crime,LEGAL AID FUND,PETER HUNTER,2069385:156535396,"27,702.00",Legal Aid Higher Crime
MOJ,LAA,09/12/2020,Legal Aid Higher Crime,LEGAL AID FUND,TIMOTHY A FORTE,2071035:156581608,"28,398.00",Legal Aid Higher Crime
MOJ,LAA,09/12/2020,Legal Aid Higher Crime,LEGAL AID FUND,ADRIAN M LANGDALE,2072394:156552103,"28,560.00",Legal Aid Higher Crime
MOJ,LAA,09/12/2020,Legal Aid Higher Crime,LEGAL AID FUND,HUSSAIN SOLICITORS LTD,2072888:156535570,"28,776.48",Legal Aid Higher Crime
MOJ,LAA,09/12/2020,Legal Aid Higher Crime,LEGAL AID FUND,JAMES T N SCOBIE QC,2070752:156535576,"28,956.00",Legal Aid Higher Crime
MOJ,LAA,09/12/2020,Legal Aid Higher Crime,LEGAL AID FUND,BUXTON RYAN & CO,2071518:156535128,"29,664.55",Legal Aid Higher Crime
MOJ,LAA,09/12/2020,Legal Aid Higher Crime,LEGAL AID FUND,NINA S GRAHAME QC,2069763:156561569,"29,844.00",Legal Aid Higher Crime
MOJ,LAA,09/12/2020,Legal Aid Higher Crime,LEGAL AID FUND,DONALD RACE & NEWTON SOLICITORS,2073019:156535170,"31,249.70",Legal Aid Higher Crime
MOJ,LAA,09/12/2020,Legal Aid Higher Crime,LEGAL AID FUND,SEAN KIVDEH,2069716:156582167,"31,536.00",Legal Aid Higher Crime
MOJ,LAA,09/12/2020,Legal Aid Higher Crime,LEGAL AID FUND,NOBLE SOLICITORS,2070000:156552670,"34,120.32",Legal Aid Higher Crime
MOJ,LAA,09/12/2020,Legal Aid Higher Crime,LEGAL AID FUND,GARRATTS,2070136:156544949,"34,926.83",Legal Aid Higher Crime
MOJ,LAA,09/12/2020,Legal Aid Higher Crime,LEGAL AID FUND,REEDS SOLICITORS LLP,2069233:156535703,"35,597.46",Legal Aid Higher Crime
MOJ,LAA,09/12/2020,Legal Aid Higher Crime,LEGAL AID FUND,O'KEEFFE SOLICITORS,2073162:156552028,"36,600.32",Legal Aid Higher Crime
MOJ,LAA,09/12/2020,Legal Aid Higher Crime,LEGAL AID FUND,BUTT SOLICITORS,2071405:156581222,"36,698.10",Legal Aid Higher Crime
MOJ,LAA,09/12/2020,Legal Aid Higher Crime,LEGAL AID FUND,COLIN C AYLOTT,2069659:156535237,"36,804.00",Legal Aid Higher Crime
MOJ,LAA,09/12/2020,Legal Aid Higher Crime,LEGAL AID FUND,CHRISTOPHER M HENLEY,2069656:156535353,"38,196.00",Legal Aid Higher Crime
MOJ,LAA,09/12/2020,Legal Aid Higher Crime,LEGAL AID FUND,BIRDS SOLICITORS LTD,2070069:156580232,"42,611.16",Legal Aid Higher Crime
MOJ,LAA,09/12/2020,Legal Aid Higher Crime,LEGAL AID FUND,LEE R HUGHES,2070532:156586168,"43,200.00",Legal Aid Higher Crime
MOJ,LAA,09/12/2020,Legal Aid Higher Crime,LEGAL AID FUND,RICHARD S VARDON,2071207:156542318,"43,200.00",Legal Aid Higher Crime
MOJ,LAA,09/12/2020,Legal Aid Higher Crime,LEGAL AID FUND,GERARD P DORAN,2072201:156586346,"43,200.00",Legal Aid Higher Crime
MOJ,LAA,09/12/2020,Legal Aid Higher Crime,LEGAL AID FUND,PAUL R KELEHER QC,2072630:156552559,"43,764.00",Legal Aid Higher Crime
MOJ,LAA,09/12/2020,Legal Aid Higher Crime,LEGAL AID FUND,PETER J DOYLE QC,2072669:156552368,"45,156.00",Legal Aid Higher Crime
MOJ,LAA,09/12/2020,Legal Aid Higher Crime,LEGAL AID FUND,ABR SOLICITORS,2069991:156552110,"45,774.86",Legal Aid Higher Crime
MOJ,LAA,09/12/2020,Legal Aid Higher Crime,LEGAL AID FUND,BMS SOLICITORS,2071975:156552365,"46,440.85",Legal Aid Higher Crime
MOJ,LAA,09/12/2020,Legal Aid Higher Crime,LEGAL AID FUND,CLIFTON SOLICITORS & ADVOCATES,2071983:156580891,"50,377.19",Legal Aid Higher Crime
MOJ,LAA,09/12/2020,Legal Aid Higher Crime,LEGAL AID FUND,JEREMY P WAINWRIGHT,2072648:156535940,"50,724.00",Legal Aid Higher Crime
MOJ,LAA,09/12/2020,Legal Aid Higher Crime,LEGAL AID FUND,TAIT FARRIER GRAHAM LLP,2070251:156581475,"53,801.81",Legal Aid Higher Crime
MOJ,LAA,09/12/2020,Legal Aid Higher Crime,LEGAL AID FUND,RACHEL R V A BRAND QC,2072453:156562633,"54,852.00",Legal Aid Higher Crime
MOJ,LAA,09/12/2020,Legal Aid Higher Crime,LEGAL AID FUND,SIMON CSOKA,2071209:156551929,"56,236.80",Legal Aid Higher Crime
MOJ,LAA,09/12/2020,Legal Aid Higher Crime,LEGAL AID FUND,NOBLE SOLICITORS,2070000:156553040,"56,520.38",Legal Aid Higher Crime
MOJ,LAA,09/12/2020,Legal Aid Higher Crime,LEGAL AID FUND,SALHAN & CO LTD,2072820:156581605,"57,724.32",Legal Aid Higher Crime
MOJ,LAA,09/12/2020,Legal Aid Higher Crime,LEGAL AID FUND,GORDON SHINE & COMPANY SOLICITORS,2070366:156581534,"58,536.46",Legal Aid Higher Crime
MOJ,LAA,09/12/2020,Legal Aid Higher Crime,LEGAL AID FUND,CARSON KAYE SOLICITORS,2070671:156581252,"58,975.69",Legal Aid Higher Crime
MOJ,LAA,09/12/2020,Legal Aid Higher Crime,LEGAL AID FUND,G T STEWART LTD,2070098:156535141,"61,345.87",Legal Aid Higher Crime
MOJ,LAA,09/12/2020,Legal Aid Higher Crime,LEGAL AID FUND,CARSON KAYE SOLICITORS,2070671:156581984,"69,362.14",Legal Aid Higher Crime
MOJ,LAA,09/12/2020,Legal Aid Higher Crime,LEGAL AID FUND,WILLIAM HARBAGE QC,2069784:156580822,"70,164.00",Legal Aid Higher Crime
MOJ,LAA,09/12/2020,Legal Aid Higher Crime,LEGAL AID FUND,K LEGAL SOLICITORS,2069986:156535807,"72,372.67",Legal Aid Higher Crime
MOJ,LAA,09/12/2020,Legal Aid Higher Crime,LEGAL AID FUND,ASKEWS LEGAL LLP,2072721:156553137,"82,102.68",Legal Aid Higher Crime
MOJ,LAA,09/12/2020,Legal Aid Higher Crime,LEGAL AID FUND,RICHARD M LITTLER,2069641:156577721,"85,080.00",Legal Aid Higher Crime
MOJ,LAA,09/12/2020,Legal Aid Higher Crime,LEGAL AID FUND,RICHARD M LITTLER,2069641:156577722,"85,080.00",Legal Aid Higher Crime
MOJ,LAA,09/12/2020,Legal Aid Higher Crime,LEGAL AID FUND,RICHARD J WRIGHT QC,2071218:156548226,"85,080.00",Legal Aid Higher Crime
MOJ,LAA,09/12/2020,Legal Aid Higher Crime,LEGAL AID FUND,NICHOLAS R JOHNSON QC,2069696:156542317,"85,863.00",Legal Aid Higher Crime
MOJ,LAA,09/12/2020,Legal Aid Higher Crime,LEGAL AID FUND,SVS SOLICITORS,2071431:156561935,"89,975.11",Legal Aid Higher Crime
MOJ,LAA,09/12/2020,Legal Aid Higher Crime,LEGAL AID FUND,ZMS LEGAL LTD TA ZMS SOLICITORS,2071371:156582308,"107,574.07",Legal Aid Higher Crime
MOJ,LAA,09/12/2020,Legal Aid Lower Crime,LEGAL AID FUND,BERRY & LAMBERTS SOLICITORS,2073153:156586584,"27,173.86",Legal Aid Lower Crime
MOJ,LAA,09/12/2020,Legal Aid Lower Crime,LEGAL AID FUND,WATSON WOODHOUSE LTD,2070271:156586494,"44,427.85",Legal Aid Lower Crime
MOJ,LAA,10/12/2020,EXP - MISCELLANEOUS EXPENDITURE - Litigator,Central Funds,ELLIOT MATHER LLP,M1142625/157567,"31,225.20",Legal services
MOJ,LAA,11/12/2020,EXP - PURCHASE OF GOODS/SERVICES - OTHER - Translation / Interpreting Services,Central Funds,THEBIGWORD INTERPRETING SERVICES LTD,90632286,"1,064,919.24",Translation and interpreting services
MOJ,LAA,14/12/2020,EXP - PURCHASE OF GOODS/SERVICES - OTHER - Central Funds - Other,Central Funds,EDMONDS MARSHALL MCMAHON,M1103592/157735,"580,949.26",Court costs
MOJ,LAA,16/12/2020,EXP - MISCELLANEOUS EXPENDITURE - Litigator,Central Funds,LLOYDS PR SOLICITORS,M1137072/157816,"65,936.32",Legal services
MOJ,LAA,16/12/2020,EXP - PURCHASE OF GOODS/SERVICES - OFFICE RELATED - Reprographics,Centralised Costs,CORPORATE DOCUMENT SERVICES LTD,243692,"45,594.25",Reprographics and printing services
MOJ,LAA,16/12/2020,Legal Aid Civil Representation,LEGAL AID FUND,WILLIAM G LINDSAY,2076588:3000002302940041,"25,056.00",Legal Aid Civil Representation
MOJ,LAA,16/12/2020,Legal Aid Civil Representation,LEGAL AID FUND,GRAHAM A CROSTHWAITE,2076460:3000005909560016,"25,090.56",Legal Aid Civil Representation
MOJ,LAA,16/12/2020,Legal Aid Civil Representation,LEGAL AID FUND,G T STEWART LTD,2077044:3000004589710034,"25,117.15",Legal Aid Civil Representation
MOJ,LAA,16/12/2020,Legal Aid Civil Representation,LEGAL AID FUND,LEWIS RODGERS LTD,2073856:3000002164890010,"25,237.01",Legal Aid Civil Representation
MOJ,LAA,16/12/2020,Legal Aid Civil Representation,LEGAL AID FUND,TALLENTS SOLICITORS,2077260:3000004114730018,"25,676.95",Legal Aid Civil Representation
MOJ,LAA,16/12/2020,Legal Aid Civil Representation,LEGAL AID FUND,TALLENTS SOLICITORS,2077261:3000004837230008,"25,773.09",Legal Aid Civil Representation
MOJ,LAA,16/12/2020,Legal Aid Civil Representation,LEGAL AID FUND,GRACELAND SOLICITORS,2077063:3000003641470006,"25,840.20",Legal Aid Civil Representation
MOJ,LAA,16/12/2020,Legal Aid Civil Representation,LEGAL AID FUND,HOGANS SOLICITORS LTD,2074381:3000005653480030,"26,243.96",Legal Aid Civil Representation
MOJ,LAA,16/12/2020,Legal Aid Civil Representation,LEGAL AID FUND,KATE BURNELL,2075682:3000005796260009,"26,579.14",Legal Aid Civil Representation
MOJ,LAA,16/12/2020,Legal Aid Civil Representation,LEGAL AID FUND,BOYS & MAUGHAN,2074674:3000005026160025,"26,907.48",Legal Aid Civil Representation
MOJ,LAA,16/12/2020,Legal Aid Civil Representation,LEGAL AID FUND,PETER ROTHERY,2075508:3000003230460022,"27,684.91",Legal Aid Civil Representation
MOJ,LAA,16/12/2020,Legal Aid Civil Representation,LEGAL AID FUND,HANNE & CO,2074693:3000005016470016,"27,890.68",Legal Aid Civil Representation
MOJ,LAA,16/12/2020,Legal Aid Civil Representation,LEGAL AID FUND,CATHERINE L RIMMER,2075677:3000003674720023,"28,209.60",Legal Aid Civil Representation
MOJ,LAA,16/12/2020,Legal Aid Civil Representation,LEGAL AID FUND,MONICA D P FORD,2073791:3000005885220006,"28,329.12",Legal Aid Civil Representation
MOJ,LAA,16/12/2020,Legal Aid Civil Representation,LEGAL AID FUND,DAVIS & SIMMONDS & DONAGHEY,2077103:3000000582100015,"28,523.01",Legal Aid Civil Representation
MOJ,LAA,16/12/2020,Legal Aid Civil Representation,LEGAL AID FUND,RICHARD A ANELAY QC,2076516:3000006648300004,"28,641.60",Legal Aid Civil Representation
MOJ,LAA,16/12/2020,Legal Aid Civil Representation,LEGAL AID FUND,EDWARDS DUTHIE SHAMASH SOLICITORS,2076021:3000005365610013,"28,728.78",Legal Aid Civil Representation
MOJ,LAA,16/12/2020,Legal Aid Civil Representation,LEGAL AID FUND,JI SOLICITORS LTD,2075963:3000001593710002,"28,971.38",Legal Aid Civil Representation
MOJ,LAA,16/12/2020,Legal Aid Civil Representation,LEGAL AID FUND,IRWIN MITCHELL LLP,2077237:3000005785890017,"29,036.00",Legal Aid Civil Representation
MOJ,LAA,16/12/2020,Legal Aid Civil Representation,LEGAL AID FUND,PHILCOX GRAY & CO,2074694:3000005956830005,"29,156.40",Legal Aid Civil Representation
MOJ,LAA,16/12/2020,Legal Aid Civil Representation,LEGAL AID FUND,WILSONS SOLICITORS (UK) LTD,2075110:3000004183720009,"29,667.11",Legal Aid Civil Representation
MOJ,LAA,16/12/2020,Legal Aid Civil Representation,LEGAL AID FUND,JWP SOLICITORS,2075065:3000006760640012,"29,831.23",Legal Aid Civil Representation
MOJ,LAA,16/12/2020,Legal Aid Civil Representation,LEGAL AID FUND,H E THOMAS & CO,2074689:3000006821190009,"29,845.08",Legal Aid Civil Representation
MOJ,LAA,16/12/2020,Legal Aid Civil Representation,LEGAL AID FUND,DANIELLS FAMILY LAW LTD,2074959:3000004299210007,"30,531.84",Legal Aid Civil Representation
MOJ,LAA,16/12/2020,Legal Aid Civil Representation,LEGAL AID FUND,HATCH BRENNER LLP,2075825:3000004933690019,"31,754.26",Legal Aid Civil Representation
MOJ,LAA,16/12/2020,Legal Aid Civil Representation,LEGAL AID FUND,TYRER ROXBURGH SOLICITORS LLP,2077332:3000003411970011,"32,146.08",Legal Aid Civil Representation
MOJ,LAA,16/12/2020,Legal Aid Civil Representation,LEGAL AID FUND,KATE BURNELL,2075682:3000004688520033,"32,254.20",Legal Aid Civil Representation
MOJ,LAA,16/12/2020,Legal Aid Civil Representation,LEGAL AID FUND,HOWARD & CO,2074464:3000003806420026,"32,404.42",Legal Aid Civil Representation
MOJ,LAA,16/12/2020,Legal Aid Civil Representation,LEGAL AID FUND,JOHN KER-REID,2076721:3000004589710033,"32,788.80",Legal Aid Civil Representation
MOJ,LAA,16/12/2020,Legal Aid Civil Representation,LEGAL AID FUND,EATON SMITH LLP,2075957:3000004351270041,"32,926.10",Legal Aid Civil Representation
MOJ,LAA,16/12/2020,Legal Aid Civil Representation,LEGAL AID FUND,DUNCAN LEWIS SOLICITORS  LTD,2076385:3000004294100037,"34,675.76",Legal Aid Civil Representation
MOJ,LAA,16/12/2020,Legal Aid Civil Representation,LEGAL AID FUND,PHILCOX GRAY & CO,2074694:3000003416060025,"35,384.72",Legal Aid Civil Representation
MOJ,LAA,16/12/2020,Legal Aid Civil Representation,LEGAL AID FUND,KATE BURNELL,2075682:3000003674720021,"35,586.14",Legal Aid Civil Representation
MOJ,LAA,16/12/2020,Legal Aid Civil Representation,LEGAL AID FUND,TAYLOR HALDANE BARLEX LLP,2077177:3000004348570034,"35,605.77",Legal Aid Civil Representation
MOJ,LAA,16/12/2020,Legal Aid Civil Representation,LEGAL AID FUND,CARTWRIGHT KING LTD,2076274:3000005610220018,"36,406.74",Legal Aid Civil Representation
MOJ,LAA,16/12/2020,Legal Aid Civil Representation,LEGAL AID FUND,PEPPERELLS SOLICITORS,2075722:3000005318990021,"36,672.17",Legal Aid Civil Representation
MOJ,LAA,16/12/2020,Legal Aid Civil Representation,LEGAL AID FUND,WILKINSON WOODWARD.,2075849:3000006102690018,"37,164.67",Legal Aid Civil Representation
MOJ,LAA,16/12/2020,Legal Aid Civil Representation,LEGAL AID FUND,RIDLEY & HALL LEGAL LTD,2074407:3000004081890019,"37,350.59",Legal Aid Civil Representation
MOJ,LAA,16/12/2020,Legal Aid Civil Representation,LEGAL AID FUND,CAROLINE R BUDDEN,2076511:3000004296400045,"38,814.84",Legal Aid Civil Representation
MOJ,LAA,16/12/2020,Legal Aid Civil Representation,LEGAL AID FUND,Susan Sampson,2077399:3000004613970009,"39,562.76",Legal Aid Civil Representation
MOJ,LAA,16/12/2020,Legal Aid Civil Representation,LEGAL AID FUND,DEIRDRE FOTTRELL QC,2074171:3000002744230016,"40,176.00",Legal Aid Civil Representation
MOJ,LAA,16/12/2020,Legal Aid Civil Representation,LEGAL AID FUND,FLG LTD,2075053:3000003071330014,"40,631.73",Legal Aid Civil Representation
MOJ,LAA,16/12/2020,Legal Aid Civil Representation,LEGAL AID FUND,FARLEYS SOLICITORS LLP,2074984:3000005337660004,"40,955.00",Legal Aid Civil Representation
MOJ,LAA,16/12/2020,Legal Aid Civil Representation,LEGAL AID FUND,BDH SOLICITORS LTD,2075919:3000003833320012,"41,361.83",Legal Aid Civil Representation
MOJ,LAA,16/12/2020,Legal Aid Civil Representation,LEGAL AID FUND,WILLISCROFT & CO SOLICITORS,2075784:3000002302940042,"42,337.28",Legal Aid Civil Representation
MOJ,LAA,16/12/2020,Legal Aid Civil Representation,LEGAL AID FUND,EMMA L V BURDEN,2075597:3000005820840017,"43,725.48",Legal Aid Civil Representation
MOJ,LAA,16/12/2020,Legal Aid Civil Representation,LEGAL AID FUND,WADDINGTON & SON,2074635:3000003230460023,"45,152.41",Legal Aid Civil Representation
MOJ,LAA,16/12/2020,Legal Aid Civil Representation,LEGAL AID FUND,MASON BAGGOTT & GARTON,2077253:3000003755840046,"50,284.80",Legal Aid Civil Representation
MOJ,LAA,16/12/2020,Legal Aid Civil Representation,LEGAL AID FUND,NICHOLAS W STONOR,2075649:3000005535260019,"54,270.00",Legal Aid Civil Representation
MOJ,LAA,16/12/2020,Legal Aid Civil Representation,LEGAL AID FUND,MSB SOLICITORS LTD,2074627:3000003907080015,"74,068.16",Legal Aid Civil Representation
MOJ,LAA,16/12/2020,Legal Aid Civil Representation,LEGAL AID FUND,GAYNOR HALL,2076387:3000003755840045,"79,545.89",Legal Aid Civil Representation
MOJ,LAA,16/12/2020,Legal Aid Higher Crime,LEGAL AID FUND,RICHARD BUTCHER,2076744:156605241,"25,405.00",Legal Aid Higher Crime
MOJ,LAA,16/12/2020,Legal Aid Higher Crime,LEGAL AID FUND,KAYDERS SOLICITORS,2077186:156628496,"25,546.50",Legal Aid Higher Crime
MOJ,LAA,16/12/2020,Legal Aid Higher Crime,LEGAL AID FUND,CHRISTOPHER MANTLE & CO LTD,2074338:156597867,"25,668.41",Legal Aid Higher Crime
MOJ,LAA,16/12/2020,Legal Aid Higher Crime,LEGAL AID FUND,HOWELL & CO.,2077018:156612741,"25,867.34",Legal Aid Higher Crime
MOJ,LAA,16/12/2020,Legal Aid Higher Crime,LEGAL AID FUND,JASVIR S MANN,2076734:156597886,"26,310.00",Legal Aid Higher Crime
MOJ,LAA,16/12/2020,Legal Aid Higher Crime,LEGAL AID FUND,KRISTINA HARRISON SOLICITORS,2077362:156605769,"27,552.47",Legal Aid Higher Crime
MOJ,LAA,16/12/2020,Legal Aid Higher Crime,LEGAL AID FUND,BARK & CO,2075905:156626535,"27,701.92",Legal Aid Higher Crime
MOJ,LAA,16/12/2020,Legal Aid Higher Crime,LEGAL AID FUND,NEENA CRINNION,2074018:156597842,"27,720.00",Legal Aid Higher Crime
MOJ,LAA,16/12/2020,Legal Aid Higher Crime,LEGAL AID FUND,DUNCAN LEWIS SOLICITORS  LTD,2077159:156605863,"27,947.52",Legal Aid Higher Crime
MOJ,LAA,16/12/2020,Legal Aid Higher Crime,LEGAL AID FUND,MELVILLE BARROW LTD,2074385:156625848,"28,380.27",Legal Aid Higher Crime
MOJ,LAA,16/12/2020,Legal Aid Higher Crime,LEGAL AID FUND,VHS FLETCHERS,2074510:156630136,"28,846.03",Legal Aid Higher Crime
MOJ,LAA,16/12/2020,Legal Aid Higher Crime,LEGAL AID FUND,LAMBERT TAYLOR AND GREGORY,2077217:156590406,"28,950.22",Legal Aid Higher Crime
MOJ,LAA,16/12/2020,Legal Aid Higher Crime,LEGAL AID FUND,HOWARDS & HENRY'S SOLICITORS LTD,2074352:156597617,"30,614.23",Legal Aid Higher Crime
MOJ,LAA,16/12/2020,Legal Aid Higher Crime,LEGAL AID FUND,ANEURIN BREWER,2075692:156589986,"31,401.96",Legal Aid Higher Crime
MOJ,LAA,16/12/2020,Legal Aid Higher Crime,LEGAL AID FUND,K LEGAL SOLICITORS,2075637:156612426,"31,502.68",Legal Aid Higher Crime
MOJ,LAA,16/12/2020,Legal Aid Higher Crime,LEGAL AID FUND,CUNNINGHAMS LYTHGOE CAPLIN LTD,2077130:156597975,"32,539.02",Legal Aid Higher Crime
MOJ,LAA,16/12/2020,Legal Aid Higher Crime,LEGAL AID FUND,MATTHEW J ROWCLIFFE,2073615:156589578,"33,018.00",Legal Aid Higher Crime
MOJ,LAA,16/12/2020,Legal Aid Higher Crime,LEGAL AID FUND,GERALD ARMSTRONG,2077229:156629954,"33,493.87",Legal Aid Higher Crime
MOJ,LAA,16/12/2020,Legal Aid Higher Crime,LEGAL AID FUND,HAYGARTH JONES,2074602:156613290,"33,716.89",Legal Aid Higher Crime
MOJ,LAA,16/12/2020,Legal Aid Higher Crime,LEGAL AID FUND,A & M SOLICITORS LTD,2076312:156590170,"33,716.89",Legal Aid Higher Crime
MOJ,LAA,16/12/2020,Legal Aid Higher Crime,LEGAL AID FUND,EDWARD FAIL BRADSHAW & WATERSON,2074690:156613381,"36,306.64",Legal Aid Higher Crime
MOJ,LAA,16/12/2020,Legal Aid Higher Crime,LEGAL AID FUND,MARK JONES & PARTNERS LTD,2077147:156590136,"37,296.80",Legal Aid Higher Crime
MOJ,LAA,16/12/2020,Legal Aid Higher Crime,LEGAL AID FUND,OLLIERS SOLICITORS LTD,2077180:156628528,"37,296.80",Legal Aid Higher Crime
MOJ,LAA,16/12/2020,Legal Aid Higher Crime,LEGAL AID FUND,ANDREW D LANGDON,2076789:156598109,"38,700.00",Legal Aid Higher Crime
MOJ,LAA,16/12/2020,Legal Aid Higher Crime,LEGAL AID FUND,I B B LAW LLP,2075774:156613244,"39,153.34",Legal Aid Higher Crime
MOJ,LAA,16/12/2020,Legal Aid Higher Crime,LEGAL AID FUND,STEPHEN MOSES,2074089:156590008,"39,588.00",Legal Aid Higher Crime
MOJ,LAA,16/12/2020,Legal Aid Higher Crime,LEGAL AID FUND,LAW24 LTD,2076174:156597839,"40,000.00",Legal Aid Higher Crime
MOJ,LAA,16/12/2020,Legal Aid Higher Crime,LEGAL AID FUND,RICHARD H CHRISTIE QC,2075470:156589364,"40,932.00",Legal Aid Higher Crime
MOJ,LAA,16/12/2020,Legal Aid Higher Crime,LEGAL AID FUND,SPERRIN  LAW LTD,2076324:156606461,"41,624.23",Legal Aid Higher Crime
MOJ,LAA,16/12/2020,Legal Aid Higher Crime,LEGAL AID FUND,K LEGAL SOLICITORS,2075637:156598272,"42,052.23",Legal Aid Higher Crime
MOJ,LAA,16/12/2020,Legal Aid Higher Crime,LEGAL AID FUND,GARETH P BELLIS,2073735:156633495,"43,200.00",Legal Aid Higher Crime
MOJ,LAA,16/12/2020,Legal Aid Higher Crime,LEGAL AID FUND,MARY PRIOR,2074147:156589373,"45,156.00",Legal Aid Higher Crime
MOJ,LAA,16/12/2020,Legal Aid Higher Crime,LEGAL AID FUND,NARITA BAHRA,2076946:156628908,"45,156.00",Legal Aid Higher Crime
MOJ,LAA,16/12/2020,Legal Aid Higher Crime,LEGAL AID FUND,JEREMY S DEIN QC,2076978:156605385,"45,156.00",Legal Aid Higher Crime
MOJ,LAA,16/12/2020,Legal Aid Higher Crime,LEGAL AID FUND,LAWRENCE & CO SOLICITORS CDS LLP,2077263:156598244,"45,577.79",Legal Aid Higher Crime
MOJ,LAA,16/12/2020,Legal Aid Higher Crime,LEGAL AID FUND,MAGUIRES SOLICITORS LTD,2077082:156597933,"46,093.09",Legal Aid Higher Crime
MOJ,LAA,16/12/2020,Legal Aid Higher Crime,LEGAL AID FUND,SINGLETON WINN CONNELL,2075947:156629206,"46,440.85",Legal Aid Higher Crime
MOJ,LAA,16/12/2020,Legal Aid Higher Crime,LEGAL AID FUND,ENNON & CO LTD,2077027:156590465,"48,520.01",Legal Aid Higher Crime
MOJ,LAA,16/12/2020,Legal Aid Higher Crime,LEGAL AID FUND,HGH CRIMINAL DEFENCE SOLICITORS,2077102:156590629,"51,185.51",Legal Aid Higher Crime
MOJ,LAA,16/12/2020,Legal Aid Higher Crime,LEGAL AID FUND,SAHOTA & SAHOTA SOLICITORS,2073678:156629299,"52,704.13",Legal Aid Higher Crime
MOJ,LAA,16/12/2020,Legal Aid Higher Crime,LEGAL AID FUND,SHAFI SOLICITORS LLP,2075176:156629345,"52,704.13",Legal Aid Higher Crime
MOJ,LAA,16/12/2020,Legal Aid Higher Crime,LEGAL AID FUND,MESSRS WATERFORDS SOLICITORS,2077308:156629267,"57,197.39",Legal Aid Higher Crime
MOJ,LAA,16/12/2020,Legal Aid Higher Crime,LEGAL AID FUND,PETER R DONNISON,2073635:156633932,"59,600.00",Legal Aid Higher Crime
MOJ,LAA,16/12/2020,Legal Aid Higher Crime,LEGAL AID FUND,ANYA L HORWOOD,2076522:156634610,"59,600.00",Legal Aid Higher Crime
MOJ,LAA,16/12/2020,Legal Aid Higher Crime,LEGAL AID FUND,KAMRANS SOLICITORS,2077134:156590467,"60,834.32",Legal Aid Higher Crime
MOJ,LAA,16/12/2020,Legal Aid Higher Crime,LEGAL AID FUND,KEANEY & CO SOLICITORS,2073672:156629535,"61,514.26",Legal Aid Higher Crime
MOJ,LAA,16/12/2020,Legal Aid Higher Crime,LEGAL AID FUND,ASHMANS SOLICITORS LTD,2076279:156629398,"61,538.54",Legal Aid Higher Crime
MOJ,LAA,16/12/2020,Legal Aid Higher Crime,LEGAL AID FUND,QUALITYSOLICITORS EDWARD HUGHES,2074325:156598035,"67,726.70",Legal Aid Higher Crime
MOJ,LAA,16/12/2020,Legal Aid Higher Crime,LEGAL AID FUND,HODGE JONES & ALLEN SOLICITORS LTD,2077327:156629674,"67,726.70",Legal Aid Higher Crime
MOJ,LAA,16/12/2020,Legal Aid Higher Crime,LEGAL AID FUND,JOHN S CAMMEGH,2075604:156598196,"70,164.00",Legal Aid Higher Crime
MOJ,LAA,16/12/2020,Legal Aid Higher Crime,LEGAL AID FUND,SPERRIN  LAW LTD,2076324:156630057,"70,194.06",Legal Aid Higher Crime
MOJ,LAA,16/12/2020,Legal Aid Higher Crime,LEGAL AID FUND,HUGH A MCKEE,2074258:156634447,"72,200.00",Legal Aid Higher Crime
MOJ,LAA,16/12/2020,Legal Aid Higher Crime,LEGAL AID FUND,MARK G SHARMAN,2075466:156594426,"72,200.00",Legal Aid Higher Crime
MOJ,LAA,16/12/2020,Legal Aid Higher Crime,LEGAL AID FUND,CHURCHERS SOLICITORS LLP,2077083:156629702,"72,393.34",Legal Aid Higher Crime
MOJ,LAA,16/12/2020,Legal Aid Higher Crime,LEGAL AID FUND,BAINS SOLICITORS,2077183:156598077,"79,768.80",Legal Aid Higher Crime
MOJ,LAA,16/12/2020,Legal Aid Higher Crime,LEGAL AID FUND,KENYON MCATEER SOLICITORS,2074341:156605577,"84,943.99",Legal Aid Higher Crime
MOJ,LAA,16/12/2020,Legal Aid Higher Crime,LEGAL AID FUND,STEVEN G SWIFT,2073773:156634609,"86,320.01",Legal Aid Higher Crime
MOJ,LAA,16/12/2020,Legal Aid Higher Crime,LEGAL AID FUND,DANIEL O JONES,2075689:156610368,"86,320.01",Legal Aid Higher Crime
MOJ,LAA,16/12/2020,Legal Aid Higher Crime,LEGAL AID FUND,G T STEWART LTD,2076315:156597910,"89,975.11",Legal Aid Higher Crime
MOJ,LAA,16/12/2020,Legal Aid Higher Crime,LEGAL AID FUND,MORGAN HAS SOLICITORS,2073561:156605853,"96,938.25",Legal Aid Higher Crime
MOJ,LAA,16/12/2020,Legal Aid Higher Crime,LEGAL AID FUND,CLARKE KIERNAN LLP,2074380:156590726,"98,716.91",Legal Aid Higher Crime
MOJ,LAA,16/12/2020,Legal Aid Legal Help,LEGAL AID FUND,DIRECT HELP & ADVICE LTD,2074415:156625934,"29,207.35",Legal Aid Legal Help
MOJ,LAA,16/12/2020,Legal Aid Legal Help,LEGAL AID FUND,STEPHENSONS SOLICITORS LLP,2074648:156626393,"31,848.44",Legal Aid Legal Help
MOJ,LAA,16/12/2020,Legal Aid Legal Help,LEGAL AID FUND,EQUALITY & EMPLOYMENT LAW CENTRE LTD,2074427:156625943,"31,859.20",Legal Aid Legal Help
MOJ,LAA,16/12/2020,Legal Aid Legal Help,LEGAL AID FUND,SIMPSON MILLAR SOLICITORS LLP,2075616:156626320,"44,105.96",Legal Aid Legal Help
MOJ,LAA,16/12/2020,Legal Aid Legal Help,LEGAL AID FUND,CORAM CHILDREN'S LEGAL CENTRE,2075887:156625774,"56,110.47",Legal Aid Legal Help
MOJ,LAA,16/12/2020,Legal Aid Legal Help,LEGAL AID FUND,SIMPSON MILLAR SOLICITORS LLP,2075616:156626391,"111,146.67",Legal Aid Legal Help
MOJ,LAA,16/12/2020,Legal Aid Lower Crime,LEGAL AID FUND,THE JOHNSON PARTNERSHIP,2074524:156603873,"31,226.30",Legal Aid Lower Crime
MOJ,LAA,21/12/2020,EXP - PURCHASE OF GOODS/SERVICES - NON-PO INVOICES PENDING REALLOCATION,Property Costs - Bristol,GOVERNMENT PROPERTY AGENCY GPA,00000001/5151,"50,187.00",Property related costs
MOJ,LAA,21/12/2020,EXP - PURCHASE OF GOODS/SERVICES - NON-PO INVOICES PENDING REALLOCATION,Property Costs - Cambridge,MONTAGU EVANS LLP,0387-278180,"64,923.30",Property related costs
MOJ,LAA,22/12/2020,EXP - PURCHASE OF GOODS/SERVICES - NON-PO INVOICES PENDING REALLOCATION,Property Costs - Cambridge,MONTAGU EVANS LLP,0387-294522,"66,631.50",Property related costs
MOJ,LAA,22/12/2020,EXP - PURCHASE OF GOODS/SERVICES - SUPPORT - APPLICATION MAINTENANCE AND SUPPORT,Crime Processing - Legacy Crime - Nottingham,IBM DIRECT( UNITED KINGDOM) LTD,5812201185,"59,083.20",Information technology related costs
MOJ,LAA,23/12/2020,EXP - MISCELLANEOUS EXPENDITURE - Litigator,Central Funds,MESSRS RAHMAN RAVELLI,M1130332/158290,"43,773.19",Legal services
MOJ,LAA,23/12/2020,EXP - PURCHASE OF GOODS/SERVICES - NON-PO INVOICES PENDING REALLOCATION,Property Costs - Cambridge,MONTAGU EVANS LLP,0387-282789,"117,569.94",Property related costs
MOJ,LAA,23/12/2020,EXP - PURCHASE OF GOODS/SERVICES - OTHER - Central Funds - Other,Central Funds,KNIGHTS PLC,M1139046/158297,"36,028.68",Court costs
MOJ,LAA,23/12/2020,EXP - PURCHASE OF GOODS/SERVICES - OTHER - Central Funds - Other,Central Funds,KNIGHTS PLC,M1138883/158298,"168,585.89",Court costs
MOJ,LAA,23/12/2020,Legal Aid Civil Representation,LEGAL AID FUND,STEVEN ASHWORTH,2078125:3000006088910019,"25,031.11",Legal Aid Civil Representation
MOJ,LAA,23/12/2020,Legal Aid Civil Representation,LEGAL AID FUND,PETER EDWARDS LAW LTD,2079854:3000003835080005,"25,080.29",Legal Aid Civil Representation
MOJ,LAA,23/12/2020,Legal Aid Civil Representation,LEGAL AID FUND,LACEYS,2082474:3000005027490017,"25,088.31",Legal Aid Civil Representation
MOJ,LAA,23/12/2020,Legal Aid Civil Representation,LEGAL AID FUND,STEPHANIE J HARRISON QC,2079263:156658254,"25,149.10",Legal Aid Civil Representation
MOJ,LAA,23/12/2020,Legal Aid Civil Representation,LEGAL AID FUND,QUALITY SOLICITORS J A HUGHES,2078809:3000006468710013,"25,208.61",Legal Aid Civil Representation
MOJ,LAA,23/12/2020,Legal Aid Civil Representation,LEGAL AID FUND,GANS & CO SOLICITORS LLP,2082103:3000006381840003,"25,271.50",Legal Aid Civil Representation
MOJ,LAA,23/12/2020,Legal Aid Civil Representation,LEGAL AID FUND,JOHN BARKERS SOLICITORS,2079925:3000005725020039,"25,306.80",Legal Aid Civil Representation
MOJ,LAA,23/12/2020,Legal Aid Civil Representation,LEGAL AID FUND,DUNCAN LEWIS SOLICITORS  LTD,2077913:3000005644050021,"25,506.38",Legal Aid Civil Representation
MOJ,LAA,23/12/2020,Legal Aid Civil Representation,LEGAL AID FUND,TRUEMANS SOLICITORS,2081195:3000004076810007,"25,588.40",Legal Aid Civil Representation
MOJ,LAA,23/12/2020,Legal Aid Civil Representation,LEGAL AID FUND,TEMPERLEY TAYLOR LLP,2078041:3000004744520008,"25,604.21",Legal Aid Civil Representation
MOJ,LAA,23/12/2020,Legal Aid Civil Representation,LEGAL AID FUND,ELLIOT MATHER LLP,2081112:3000003627910005,"25,668.69",Legal Aid Civil Representation
MOJ,LAA,23/12/2020,Legal Aid Civil Representation,LEGAL AID FUND,THE COMMUNITY LAW PARTNERSHIP LTD,2081037:3000003225790023,"25,841.59",Legal Aid Civil Representation
MOJ,LAA,23/12/2020,Legal Aid Civil Representation,LEGAL AID FUND,MAKIN DIXON SOLICITORS LTD,2077951:3000003235820072,"25,863.22",Legal Aid Civil Representation
MOJ,LAA,23/12/2020,Legal Aid Civil Representation,LEGAL AID FUND,DAFYDD GRIFFITHS,2078151:3000005867740013,"25,920.00",Legal Aid Civil Representation
MOJ,LAA,23/12/2020,Legal Aid Civil Representation,LEGAL AID FUND,BLACKETT HART & PRATT LLP,2079901:3000006004860009,"25,967.27",Legal Aid Civil Representation
MOJ,LAA,23/12/2020,Legal Aid Civil Representation,LEGAL AID FUND,STERNBERG REED SOLICITORS,2081405:3000005600130017,"26,075.70",Legal Aid Civil Representation
MOJ,LAA,23/12/2020,Legal Aid Civil Representation,LEGAL AID FUND,LISA BARRACLOUGH,2078074:3000004271520029,"26,366.63",Legal Aid Civil Representation
MOJ,LAA,23/12/2020,Legal Aid Civil Representation,LEGAL AID FUND,PHILCOX GRAY & CO,2081300:3000004995290015,"26,824.82",Legal Aid Civil Representation
MOJ,LAA,23/12/2020,Legal Aid Civil Representation,LEGAL AID FUND,QUALITY SOLICITORS LOCKINGS,2079937:3000005353630029,"26,977.46",Legal Aid Civil Representation
MOJ,LAA,23/12/2020,Legal Aid Civil Representation,LEGAL AID FUND,IRWIN MITCHELL LLP,2078704:3000005265180017,"27,307.35",Legal Aid Civil Representation
MOJ,LAA,23/12/2020,Legal Aid Civil Representation,LEGAL AID FUND,RKB LAW,2079007:3000005440440015,"27,400.22",Legal Aid Civil Representation
MOJ,LAA,23/12/2020,Legal Aid Civil Representation,LEGAL AID FUND,FMW LAW LTD,2079962:3000001112400008,"27,416.40",Legal Aid Civil Representation
MOJ,LAA,23/12/2020,Legal Aid Civil Representation,LEGAL AID FUND,STILWELL & SINGLETON,2081279:3000004170140032,"27,618.90",Legal Aid Civil Representation
MOJ,LAA,23/12/2020,Legal Aid Civil Representation,LEGAL AID FUND,M B LAW LTD,2077759:3000004671890014,"27,632.16",Legal Aid Civil Representation
MOJ,LAA,23/12/2020,Legal Aid Civil Representation,LEGAL AID FUND,COPPER STONE SOLICITORS LTD,2082123:3000005821450006,"27,640.87",Legal Aid Civil Representation
MOJ,LAA,23/12/2020,Legal Aid Civil Representation,LEGAL AID FUND,LISA E EDMUNDS,2081847:3000004784620034,"27,655.10",Legal Aid Civil Representation
MOJ,LAA,23/12/2020,Legal Aid Civil Representation,LEGAL AID FUND,YASMIN KAUSER,2080501:3000006164330013,"27,707.04",Legal Aid Civil Representation
MOJ,LAA,23/12/2020,Legal Aid Civil Representation,LEGAL AID FUND,T V EDWARDS LLP,2082407:3000006473790004,"27,786.60",Legal Aid Civil Representation
MOJ,LAA,23/12/2020,Legal Aid Civil Representation,LEGAL AID FUND,HALL SMITH WHITTINGHAM LLP,2079815:3000005344620045,"27,797.49",Legal Aid Civil Representation
MOJ,LAA,23/12/2020,Legal Aid Civil Representation,LEGAL AID FUND,FRASER HOLLANDS SOLICITORS,2077886:3000002114300012,"28,042.49",Legal Aid Civil Representation
MOJ,LAA,23/12/2020,Legal Aid Civil Representation,LEGAL AID FUND,AMANDA J MEUSZ,2080492:3000003825290029,"28,065.52",Legal Aid Civil Representation
MOJ,LAA,23/12/2020,Legal Aid Civil Representation,LEGAL AID FUND,BOYS & MAUGHAN,2081278:3000003266210022,"28,184.29",Legal Aid Civil Representation
MOJ,LAA,23/12/2020,Legal Aid Civil Representation,LEGAL AID FUND,MILES & PARTNERS LLP,2078711:3000004516760018,"28,199.61",Legal Aid Civil Representation
MOJ,LAA,23/12/2020,Legal Aid Civil Representation,LEGAL AID FUND,MONICA D P FORD,2081707:3000002114300011,"28,230.12",Legal Aid Civil Representation
MOJ,LAA,23/12/2020,Legal Aid Civil Representation,LEGAL AID FUND,G T STEWART LTD,2079694:3000002703170040,"28,581.63",Legal Aid Civil Representation
MOJ,LAA,23/12/2020,Legal Aid Civil Representation,LEGAL AID FUND,SIMPSON MILLAR SOLICITORS LLP,2079958:3000005868470006,"28,799.79",Legal Aid Civil Representation
MOJ,LAA,23/12/2020,Legal Aid Civil Representation,LEGAL AID FUND,DAVID K J AGEROS,2079322:3000005924770006,"28,800.00",Legal Aid Civil Representation
MOJ,LAA,23/12/2020,Legal Aid Civil Representation,LEGAL AID FUND,FAIRBROTHER & DARLOW,2081172:3000005839480008,"29,251.34",Legal Aid Civil Representation
MOJ,LAA,23/12/2020,Legal Aid Civil Representation,LEGAL AID FUND,CLAIRE L M WILLS-GOLDINGHAM,2078142:3000004271520030,"29,260.56",Legal Aid Civil Representation
MOJ,LAA,23/12/2020,Legal Aid Civil Representation,LEGAL AID FUND,HARRIS TEMPERLEY LLP,2081150:3000005384290008,"29,531.07",Legal Aid Civil Representation
MOJ,LAA,23/12/2020,Legal Aid Civil Representation,LEGAL AID FUND,MAUREEN OBI-EZEKPAZU,2080849:3000002703170041,"29,897.18",Legal Aid Civil Representation
MOJ,LAA,23/12/2020,Legal Aid Civil Representation,LEGAL AID FUND,EDWARDS DUTHIE SHAMASH SOLICITORS,2082465:3000005560570012,"29,902.58",Legal Aid Civil Representation
MOJ,LAA,23/12/2020,Legal Aid Civil Representation,LEGAL AID FUND,EMILY DAVIES,2079289:3000004731380022,"29,904.00",Legal Aid Civil Representation
MOJ,LAA,23/12/2020,Legal Aid Civil Representation,LEGAL AID FUND,JOHNSON ASTILLS,2081805:3000004194770022,"30,034.94",Legal Aid Civil Representation
MOJ,LAA,23/12/2020,Legal Aid Civil Representation,LEGAL AID FUND,WILLSONS SOLICITORS,2078468:3000004795510028,"31,806.11",Legal Aid Civil Representation
MOJ,LAA,23/12/2020,Legal Aid Civil Representation,LEGAL AID FUND,COMPASS RESOLUTION LTD,2081645:156685163,"32,005.80",Legal Aid Civil Representation
MOJ,LAA,23/12/2020,Legal Aid Civil Representation,LEGAL AID FUND,FLG LTD,2077906:3000003804550017,"32,728.02",Legal Aid Civil Representation
MOJ,LAA,23/12/2020,Legal Aid Civil Representation,LEGAL AID FUND,SCOTT RICHARDS,2082538:3000005445080014,"33,065.27",Legal Aid Civil Representation
MOJ,LAA,23/12/2020,Legal Aid Civil Representation,LEGAL AID FUND,ALISON C PRYOR,2077976:3000006710110009,"33,518.88",Legal Aid Civil Representation
MOJ,LAA,23/12/2020,Legal Aid Civil Representation,LEGAL AID FUND,LAWRENCE D MESSLING,2080424:3000002527640052,"33,652.80",Legal Aid Civil Representation
MOJ,LAA,23/12/2020,Legal Aid Civil Representation,LEGAL AID FUND,REX A HOWLING QC,2081671:3000007772070004,"34,182.00",Legal Aid Civil Representation
MOJ,LAA,23/12/2020,Legal Aid Civil Representation,LEGAL AID FUND,CAROLYN BLAND,2081993:3000005889350012,"34,607.52",Legal Aid Civil Representation
MOJ,LAA,23/12/2020,Legal Aid Civil Representation,LEGAL AID FUND,KATE FENWICK,2081627:3000003817370014,"34,608.60",Legal Aid Civil Representation
MOJ,LAA,23/12/2020,Legal Aid Civil Representation,LEGAL AID FUND,AWH LEGAL LTD,2082439:3000004304360032,"34,614.90",Legal Aid Civil Representation
MOJ,LAA,23/12/2020,Legal Aid Civil Representation,LEGAL AID FUND,NKUMBE EKANEY QC,2081912:3000006088910018,"34,927.20",Legal Aid Civil Representation
MOJ,LAA,23/12/2020,Legal Aid Civil Representation,LEGAL AID FUND,BIRNBERG PEIRCE LTD,2079846:156658178,"35,065.13",Legal Aid Civil Representation
MOJ,LAA,23/12/2020,Legal Aid Civil Representation,LEGAL AID FUND,PLUCK ANDREW & CO SOLICITORS,2081228:3000004789410014,"35,068.38",Legal Aid Civil Representation
MOJ,LAA,23/12/2020,Legal Aid Civil Representation,LEGAL AID FUND,MAKIN DIXON SOLICITORS LTD,2077950:3000004403580015,"35,544.54",Legal Aid Civil Representation
MOJ,LAA,23/12/2020,Legal Aid Civil Representation,LEGAL AID FUND,CATHERINE J MASON,2078250:3000005085840029,"35,640.00",Legal Aid Civil Representation
MOJ,LAA,23/12/2020,Legal Aid Civil Representation,LEGAL AID FUND,KIERAN CLARKE GREEN LTD,2079944:3000004864440006,"35,662.85",Legal Aid Civil Representation
MOJ,LAA,23/12/2020,Legal Aid Civil Representation,LEGAL AID FUND,GEMMA FARRINGTON,2078069:3000006710110008,"36,659.95",Legal Aid Civil Representation
MOJ,LAA,23/12/2020,Legal Aid Civil Representation,LEGAL AID FUND,ISON HARRISON LTD,2082259:3000005085840030,"36,664.45",Legal Aid Civil Representation
MOJ,LAA,23/12/2020,Legal Aid Civil Representation,LEGAL AID FUND,BIRNBERG PEIRCE LTD,2079846:156658400,"37,630.85",Legal Aid Civil Representation
MOJ,LAA,23/12/2020,Legal Aid Civil Representation,LEGAL AID FUND,LUMB & MACGILL,2082238:3000006114360019,"37,932.62",Legal Aid Civil Representation
MOJ,LAA,23/12/2020,Legal Aid Civil Representation,LEGAL AID FUND,MILES & PARTNERS LLP,2078711:3000004192510030,"40,950.07",Legal Aid Civil Representation
MOJ,LAA,23/12/2020,Legal Aid Civil Representation,LEGAL AID FUND,AFG LAW LIMITED,2077877:3000005041630020,"41,153.27",Legal Aid Civil Representation
MOJ,LAA,23/12/2020,Legal Aid Civil Representation,LEGAL AID FUND,BIRNBERG PEIRCE LTD,2079846:156658253,"41,339.12",Legal Aid Civil Representation
MOJ,LAA,23/12/2020,Legal Aid Civil Representation,LEGAL AID FUND,CHURCHERS SOLICITORS LLP,2078658:3000003795450028,"41,659.44",Legal Aid Civil Representation
MOJ,LAA,23/12/2020,Legal Aid Civil Representation,LEGAL AID FUND,MICHELLE CHRISTIE,2080879:3000003804550014,"41,954.12",Legal Aid Civil Representation
MOJ,LAA,23/12/2020,Legal Aid Civil Representation,LEGAL AID FUND,REEDS SOLICITORS LLP,2077902:3000003634570023,"43,296.61",Legal Aid Civil Representation
MOJ,LAA,23/12/2020,Legal Aid Civil Representation,LEGAL AID FUND,HOWARD & CO,2081166:3000002457780023,"46,238.44",Legal Aid Civil Representation
MOJ,LAA,23/12/2020,Legal Aid Civil Representation,LEGAL AID FUND,DAVID  LIDBURY,2081879:3000004706430029,"48,000.00",Legal Aid Civil Representation
MOJ,LAA,23/12/2020,Legal Aid Civil Representation,LEGAL AID FUND,DAMIAN WOODWARD-CARLTON,2081954:3000006445520023,"48,600.00",Legal Aid Civil Representation
MOJ,LAA,23/12/2020,Legal Aid Civil Representation,LEGAL AID FUND,BIRNBERG PEIRCE LTD,2079846:156658326,"49,205.69",Legal Aid Civil Representation
MOJ,LAA,23/12/2020,Legal Aid Civil Representation,LEGAL AID FUND,MORECROFTS LLP,2081095:3000004589750023,"51,129.38",Legal Aid Civil Representation
MOJ,LAA,23/12/2020,Legal Aid Civil Representation,LEGAL AID FUND,S A CARR & CO,2082393:3000003825290030,"54,127.96",Legal Aid Civil Representation
MOJ,LAA,23/12/2020,Legal Aid Civil Representation,LEGAL AID FUND,JULIA CHEETHAM,2081952:3000005889350011,"58,135.32",Legal Aid Civil Representation
MOJ,LAA,23/12/2020,Legal Aid Civil Representation,LEGAL AID FUND,KAMA MELLY,2080495:3000005085840031,"62,370.00",Legal Aid Civil Representation
MOJ,LAA,23/12/2020,Legal Aid Civil Representation,LEGAL AID FUND,SMITH DAWSON,2080050:3000003735340011,"62,953.72",Legal Aid Civil Representation
MOJ,LAA,23/12/2020,Legal Aid Civil Representation,LEGAL AID FUND,NATIONAL FAMILY MEDIATION,2079654:156685199,"76,869.90",Legal Aid Civil Representation
MOJ,LAA,23/12/2020,Legal Aid Civil Representation,LEGAL AID FUND,SWITALSKI'S SOLICITORS LTD,2082121:3000003704050020,"79,564.03",Legal Aid Civil Representation
MOJ,LAA,23/12/2020,Legal Aid Civil Representation,LEGAL AID FUND,NICHOLAS W STONOR,2080788:3000006212570023,"80,127.60",Legal Aid Civil Representation
MOJ,LAA,23/12/2020,Legal Aid Higher Crime,LEGAL AID FUND,ADAM LAW SOLICITORS LTD,2080247:156644450,"25,473.62",Legal Aid Higher Crime
MOJ,LAA,23/12/2020,Legal Aid Higher Crime,LEGAL AID FUND,ASHCOTT SOLICITORS LTD,2078420:156677851,"25,479.56",Legal Aid Higher Crime
MOJ,LAA,23/12/2020,Legal Aid Higher Crime,LEGAL AID FUND,ANDREW J O'BYRNE QC,2082011:156637608,"25,668.00",Legal Aid Higher Crime
MOJ,LAA,23/12/2020,Legal Aid Higher Crime,LEGAL AID FUND,THOMAS J D MITCHELL,2079509:156652918,"25,704.00",Legal Aid Higher Crime
MOJ,LAA,23/12/2020,Legal Aid Higher Crime,LEGAL AID FUND,LAW24 LTD,2078971:156677583,"25,736.52",Legal Aid Higher Crime
MOJ,LAA,23/12/2020,Legal Aid Higher Crime,LEGAL AID FUND,MSB SOLICITORS LTD,2081223:156677028,"26,391.43",Legal Aid Higher Crime
MOJ,LAA,23/12/2020,Legal Aid Higher Crime,LEGAL AID FUND,IMRAN KHAN & PARTNERS,2081326:156676363,"26,538.81",Legal Aid Higher Crime
MOJ,LAA,23/12/2020,Legal Aid Higher Crime,LEGAL AID FUND,ANTHONY J V HAWKS,2080427:156660030,"26,616.00",Legal Aid Higher Crime
MOJ,LAA,23/12/2020,Legal Aid Higher Crime,LEGAL AID FUND,ALDERSON LAW LLP,2079145:156677133,"26,951.65",Legal Aid Higher Crime
MOJ,LAA,23/12/2020,Legal Aid Higher Crime,LEGAL AID FUND,FARLEYS SOLICITORS LLP,2082443:156637697,"27,706.44",Legal Aid Higher Crime
MOJ,LAA,23/12/2020,Legal Aid Higher Crime,LEGAL AID FUND,RICHARD BROWN & CO,2082306:156645373,"28,835.93",Legal Aid Higher Crime
MOJ,LAA,23/12/2020,Legal Aid Higher Crime,LEGAL AID FUND,TUCKERS SOLICITORS LLP,2082381:156658251,"29,203.20",Legal Aid Higher Crime
MOJ,LAA,23/12/2020,Legal Aid Higher Crime,LEGAL AID FUND,HEDLEY SOLICITORS,2079612:156661006,"29,664.55",Legal Aid Higher Crime
MOJ,LAA,23/12/2020,Legal Aid Higher Crime,LEGAL AID FUND,HENSCOTT SOLICITORS,2082267:156676394,"29,664.55",Legal Aid Higher Crime
MOJ,LAA,23/12/2020,Legal Aid Higher Crime,LEGAL AID FUND,SIMON CSOKA,2079565:156659992,"29,844.00",Legal Aid Higher Crime
MOJ,LAA,23/12/2020,Legal Aid Higher Crime,LEGAL AID FUND,BERNARD RICHMOND QC,2080425:156637258,"29,844.00",Legal Aid Higher Crime
MOJ,LAA,23/12/2020,Legal Aid Higher Crime,LEGAL AID FUND,SVS SOLICITORS,2080970:156653337,"30,125.71",Legal Aid Higher Crime
MOJ,LAA,23/12/2020,Legal Aid Higher Crime,LEGAL AID FUND,MARK ANDREWS & CO,2078818:156677430,"30,130.21",Legal Aid Higher Crime
MOJ,LAA,23/12/2020,Legal Aid Higher Crime,LEGAL AID FUND,MICHAEL HENDERSON & CO LTD,2078632:156676756,"30,279.23",Legal Aid Higher Crime
MOJ,LAA,23/12/2020,Legal Aid Higher Crime,LEGAL AID FUND,RH LAW LLP,2081249:156660401,"30,594.59",Legal Aid Higher Crime
MOJ,LAA,23/12/2020,Legal Aid Higher Crime,LEGAL AID FUND,HE LAW LTD-ADVOCATE,2081747:156660229,"30,996.00",Legal Aid Higher Crime
MOJ,LAA,23/12/2020,Legal Aid Higher Crime,LEGAL AID FUND,ROBERT LIZAR,2078433:156652271,"32,069.21",Legal Aid Higher Crime
MOJ,LAA,23/12/2020,Legal Aid Higher Crime,LEGAL AID FUND,SATYANAND S BEHARRYLAL QC,2080553:156644663,"33,329.65",Legal Aid Higher Crime
MOJ,LAA,23/12/2020,Legal Aid Higher Crime,LEGAL AID FUND,DPP LAW LTD,2080992:156652462,"33,442.35",Legal Aid Higher Crime
MOJ,LAA,23/12/2020,Legal Aid Higher Crime,LEGAL AID FUND,MICHAEL P HAYTON,2081909:156636947,"33,972.00",Legal Aid Higher Crime
MOJ,LAA,23/12/2020,Legal Aid Higher Crime,LEGAL AID FUND,COBLEYS SOLICITORS LTD,2080991:156677796,"34,059.01",Legal Aid Higher Crime
MOJ,LAA,23/12/2020,Legal Aid Higher Crime,LEGAL AID FUND,TANVEER A QURESHI,2082050:156682586,"34,780.01",Legal Aid Higher Crime
MOJ,LAA,23/12/2020,Legal Aid Higher Crime,LEGAL AID FUND,CARTER OSBORNE LTD,2081130:156676814,"35,597.46",Legal Aid Higher Crime
MOJ,LAA,23/12/2020,Legal Aid Higher Crime,LEGAL AID FUND,SIMON BETHEL SOLICITORS LTD,2082113:156629372,"36,000.00",Legal Aid Higher Crime
MOJ,LAA,23/12/2020,Legal Aid Higher Crime,LEGAL AID FUND,SKR LEGAL SOLICITORS,2078383:156676369,"36,443.89",Legal Aid Higher Crime
MOJ,LAA,23/12/2020,Legal Aid Higher Crime,LEGAL AID FUND,HETHERINGTONS SOLICITORS LTD,2079628:156636892,"37,633.98",Legal Aid Higher Crime
MOJ,LAA,23/12/2020,Legal Aid Higher Crime,LEGAL AID FUND,MARK JONES & PARTNERS LTD,2081024:156674441,"37,787.02",Legal Aid Higher Crime
MOJ,LAA,23/12/2020,Legal Aid Higher Crime,LEGAL AID FUND,KEITH A MITCHELL,2079311:156677063,"38,610.00",Legal Aid Higher Crime
MOJ,LAA,23/12/2020,Legal Aid Higher Crime,LEGAL AID FUND,RUPERT J BOWERS,2080648:156644404,"38,700.00",Legal Aid Higher Crime
MOJ,LAA,23/12/2020,Legal Aid Higher Crime,LEGAL AID FUND,ADAM D DAVIS QC,2081823:156644418,"39,588.00",Legal Aid Higher Crime
MOJ,LAA,23/12/2020,Legal Aid Higher Crime,LEGAL AID FUND,MIRANDA J MOORE QC,2078164:156660281,"40,092.00",Legal Aid Higher Crime
MOJ,LAA,23/12/2020,Legal Aid Higher Crime,LEGAL AID FUND,CHARTER SOLICITORS,2081552:156652909,"46,113.27",Legal Aid Higher Crime
MOJ,LAA,23/12/2020,Legal Aid Higher Crime,LEGAL AID FUND,SPERRIN  LAW LTD,2080300:156660506,"46,579.58",Legal Aid Higher Crime
MOJ,LAA,23/12/2020,Legal Aid Higher Crime,LEGAL AID FUND,KINGSMAN SOLICITORS LTD,2079046:156645067,"50,090.03",Legal Aid Higher Crime
MOJ,LAA,23/12/2020,Legal Aid Higher Crime,LEGAL AID FUND,ALTAF SOLICITORS LTD,2080937:156676342,"50,090.03",Legal Aid Higher Crime
MOJ,LAA,23/12/2020,Legal Aid Higher Crime,LEGAL AID FUND,CUNNINGHAMS LYTHGOE CAPLIN LTD,2078586:156673275,"50,303.46",Legal Aid Higher Crime
MOJ,LAA,23/12/2020,Legal Aid Higher Crime,LEGAL AID FUND,S SATHA & CO LTD,2078688:156637243,"52,704.13",Legal Aid Higher Crime
MOJ,LAA,23/12/2020,Legal Aid Higher Crime,LEGAL AID FUND,NICHOLAS M BARRACLOUGH,2080674:156656820,"55,080.00",Legal Aid Higher Crime
MOJ,LAA,23/12/2020,Legal Aid Higher Crime,LEGAL AID FUND,CLIFTON SOLICITORS & ADVOCATES,2079108:156660523,"57,196.88",Legal Aid Higher Crime
MOJ,LAA,23/12/2020,Legal Aid Higher Crime,LEGAL AID FUND,DONALD RACE & NEWTON SOLICITORS,2082454:156637249,"58,725.41",Legal Aid Higher Crime
MOJ,LAA,23/12/2020,Legal Aid Higher Crime,LEGAL AID FUND,PHILLIP ASTBURY,2080819:156642729,"59,600.00",Legal Aid Higher Crime
MOJ,LAA,23/12/2020,Legal Aid Higher Crime,LEGAL AID FUND,IAN HENERY SOLICITORS LTD,2078474:156673276,"60,059.15",Legal Aid Higher Crime
MOJ,LAA,23/12/2020,Legal Aid Higher Crime,LEGAL AID FUND,SPERRIN  LAW LTD,2080300:156661058,"67,726.70",Legal Aid Higher Crime
MOJ,LAA,23/12/2020,Legal Aid Higher Crime,LEGAL AID FUND,CARTWRIGHT KING LTD,2080372:156677447,"68,560.95",Legal Aid Higher Crime
MOJ,LAA,23/12/2020,Legal Aid Higher Crime,LEGAL AID FUND,ALTAF SOLICITORS LTD,2080937:156661086,"80,460.57",Legal Aid Higher Crime
MOJ,LAA,23/12/2020,Legal Aid Higher Crime,LEGAL AID FUND,ANGELA TAYLOR CRIMINAL SOLICITORS,2079804:156636845,"89,975.11",Legal Aid Higher Crime
MOJ,LAA,23/12/2020,Legal Aid Higher Crime,LEGAL AID FUND,DUNCAN LEWIS SOLICITORS  LTD,2079822:156652863,"89,975.11",Legal Aid Higher Crime
MOJ,LAA,23/12/2020,Legal Aid Higher Crime,LEGAL AID FUND,BRAY & BRAY,2079928:156652809,"99,635.87",Legal Aid Higher Crime
MOJ,LAA,23/12/2020,Legal Aid Higher Crime,LEGAL AID FUND,CHURCHERS SOLICITORS LLP,2080960:156645196,"105,857.75",Legal Aid Higher Crime
MOJ,LAA,23/12/2020,Legal Aid Higher Crime,LEGAL AID FUND,IMRAN KHAN & PARTNERS,2081326:156645192,"107,574.07",Legal Aid Higher Crime
MOJ,LAA,23/12/2020,Legal Aid Higher Crime,LEGAL AID FUND,KEANEY & CO SOLICITORS,2081553:156677313,"129,088.88",Legal Aid Higher Crime
MOJ,LAA,23/12/2020,Legal Aid Legal Help,LEGAL AID FUND,CJCH SOLICITORS,2080355:156683564,"25,146.24",Legal Aid Legal Help
MOJ,LAA,23/12/2020,Legal Aid Legal Help,LEGAL AID FUND,J D SPICER ZEB,2078780:156683118,"25,971.27",Legal Aid Legal Help
MOJ,LAA,23/12/2020,Legal Aid Legal Help,LEGAL AID FUND,PETER EDWARDS LAW LTD,2079854:156682800,"26,100.00",Legal Aid Legal Help
MOJ,LAA,23/12/2020,Legal Aid Legal Help,LEGAL AID FUND,ABBOTTS MARTIN,2081347:156683664,"26,252.60",Legal Aid Legal Help
MOJ,LAA,23/12/2020,Legal Aid Legal Help,LEGAL AID FUND,THALIWAL & VEJA SOLICITORS,2082246:156683241,"26,475.12",Legal Aid Legal Help
MOJ,LAA,23/12/2020,Legal Aid Legal Help,LEGAL AID FUND,BIRNBERG PEIRCE LTD,2079846:156683140,"26,495.55",Legal Aid Legal Help
MOJ,LAA,23/12/2020,Legal Aid Legal Help,LEGAL AID FUND,WILSON SOLICITORS LLP,2077930:156683516,"26,615.95",Legal Aid Legal Help
MOJ,LAA,23/12/2020,Legal Aid Legal Help,LEGAL AID FUND,ALASTAIR BATEMAN & CO,2081061:156683057,"26,923.20",Legal Aid Legal Help
MOJ,LAA,23/12/2020,Legal Aid Legal Help,LEGAL AID FUND,STAR LEGAL LTD,2078855:156683715,"27,339.30",Legal Aid Legal Help
MOJ,LAA,23/12/2020,Legal Aid Legal Help,LEGAL AID FUND,MENTAL HEALTH LEGAL REPRESENTATION LTD,2078442:156683243,"27,868.50",Legal Aid Legal Help
MOJ,LAA,23/12/2020,Legal Aid Legal Help,LEGAL AID FUND,YOUNG & CO SOLICITORS T/A SWAIN & CO,2082209:156682858,"27,900.00",Legal Aid Legal Help
MOJ,LAA,23/12/2020,Legal Aid Legal Help,LEGAL AID FUND,CB LEGAL ADVISORY LTD T/A CB SOLICITORS,2078990:156682869,"28,300.00",Legal Aid Legal Help
MOJ,LAA,23/12/2020,Legal Aid Legal Help,LEGAL AID FUND,G T STEWART LTD,2078039:156683424,"28,523.63",Legal Aid Legal Help
MOJ,LAA,23/12/2020,Legal Aid Legal Help,LEGAL AID FUND,DAVID GRAY LLP,2082236:156683223,"28,790.40",Legal Aid Legal Help
MOJ,LAA,23/12/2020,Legal Aid Legal Help,LEGAL AID FUND,BATLEY LAW LTD,2081343:156683655,"29,487.08",Legal Aid Legal Help
MOJ,LAA,23/12/2020,Legal Aid Legal Help,LEGAL AID FUND,DONOVAN NEWTON SOLICITORS,2080923:156683242,"30,850.32",Legal Aid Legal Help
MOJ,LAA,23/12/2020,Legal Aid Legal Help,LEGAL AID FUND,ABR SOLICITORS,2082242:156683304,"31,175.22",Legal Aid Legal Help
MOJ,LAA,23/12/2020,Legal Aid Legal Help,LEGAL AID FUND,ISLINGTON LAW CENTRE,2079777:156683358,"31,263.42",Legal Aid Legal Help
MOJ,LAA,23/12/2020,Legal Aid Legal Help,LEGAL AID FUND,HAMPSHIRE LAW,2077706:156683579,"31,485.55",Legal Aid Legal Help
MOJ,LAA,23/12/2020,Legal Aid Legal Help,LEGAL AID FUND,IRIS LAW SOLICITORS,2079597:156683397,"31,769.30",Legal Aid Legal Help
MOJ,LAA,23/12/2020,Legal Aid Legal Help,LEGAL AID FUND,BUTLER & CO,2079717:156682951,"32,826.60",Legal Aid Legal Help
MOJ,LAA,23/12/2020,Legal Aid Legal Help,LEGAL AID FUND,FISHER JONES GREENWOOD LLP,2077945:156683475,"33,688.19",Legal Aid Legal Help
MOJ,LAA,23/12/2020,Legal Aid Legal Help,LEGAL AID FUND,GLEDHILL GILL SOLICITORS,2082542:156682930,"34,772.52",Legal Aid Legal Help
MOJ,LAA,23/12/2020,Legal Aid Legal Help,LEGAL AID FUND,BARNES HARRILD & DYER,2081630:156683463,"35,058.30",Legal Aid Legal Help
MOJ,LAA,23/12/2020,Legal Aid Legal Help,LEGAL AID FUND,BINDMANS LLP,2079808:156683139,"36,041.45",Legal Aid Legal Help
MOJ,LAA,23/12/2020,Legal Aid Legal Help,LEGAL AID FUND,FOUNTAIN SOLICITORS LTD,2078980:156683606,"36,208.19",Legal Aid Legal Help
MOJ,LAA,23/12/2020,Legal Aid Legal Help,LEGAL AID FUND,LEVY & CO SOLICITORS LLP,2080950:156683524,"36,274.80",Legal Aid Legal Help
MOJ,LAA,23/12/2020,Legal Aid Legal Help,LEGAL AID FUND,TURPIN & MILLER LLP,2081034:156683291,"37,141.32",Legal Aid Legal Help
MOJ,LAA,23/12/2020,Legal Aid Legal Help,LEGAL AID FUND,HACKNEY COMMUNITY LAW CENTRE,2079784:156683330,"37,380.95",Legal Aid Legal Help
MOJ,LAA,23/12/2020,Legal Aid Legal Help,LEGAL AID FUND,T V EDWARDS LLP,2082407:156682803,"37,700.00",Legal Aid Legal Help
MOJ,LAA,23/12/2020,Legal Aid Legal Help,LEGAL AID FUND,SOUTHERNS SOLICITORS LTD,2082391:156683181,"37,700.42",Legal Aid Legal Help
MOJ,LAA,23/12/2020,Legal Aid Legal Help,LEGAL AID FUND,OSBORNES SOLICITORS LLP,2082509:156683104,"38,980.58",Legal Aid Legal Help
MOJ,LAA,23/12/2020,Legal Aid Legal Help,LEGAL AID FUND,BHATIA BEST LTD,2081089:156683238,"39,320.89",Legal Aid Legal Help
MOJ,LAA,23/12/2020,Legal Aid Legal Help,LEGAL AID FUND,LAWANA & CO,2080954:156683098,"40,251.36",Legal Aid Legal Help
MOJ,LAA,23/12/2020,Legal Aid Legal Help,LEGAL AID FUND,HODGE JONES & ALLEN SOLICITORS LTD,2078778:156683138,"40,540.81",Legal Aid Legal Help
MOJ,LAA,23/12/2020,Legal Aid Legal Help,LEGAL AID FUND,THOMPSON & CO SOLICITORS LTD,2082456:156682805,"41,200.00",Legal Aid Legal Help
MOJ,LAA,23/12/2020,Legal Aid Legal Help,LEGAL AID FUND,AJM SOLICITORS,2080172:156683695,"42,032.70",Legal Aid Legal Help
MOJ,LAA,23/12/2020,Legal Aid Legal Help,LEGAL AID FUND,BARNES HARRILD & DYER,2080053:156683111,"43,291.48",Legal Aid Legal Help
MOJ,LAA,23/12/2020,Legal Aid Legal Help,LEGAL AID FUND,APPLEMAN LEGAL,2080367:156683560,"44,662.87",Legal Aid Legal Help
MOJ,LAA,23/12/2020,Legal Aid Legal Help,LEGAL AID FUND,FADIGA & CO LTD,2082455:156682806,"44,900.00",Legal Aid Legal Help
MOJ,LAA,23/12/2020,Legal Aid Legal Help,LEGAL AID FUND,PARAGON LAW LTD,2078537:156682852,"45,000.00",Legal Aid Legal Help
MOJ,LAA,23/12/2020,Legal Aid Legal Help,LEGAL AID FUND,LEI DAT & BAIG SOLICITORS LTD,2079642:156683399,"46,947.80",Legal Aid Legal Help
MOJ,LAA,23/12/2020,Legal Aid Legal Help,LEGAL AID FUND,SIMPSON MILLAR SOLICITORS LLP,2079958:156683091,"48,749.23",Legal Aid Legal Help
MOJ,LAA,23/12/2020,Legal Aid Legal Help,LEGAL AID FUND,FIRST CONTINENTAL SOLICITORS LTD,2081437:156683692,"49,186.80",Legal Aid Legal Help
MOJ,LAA,23/12/2020,Legal Aid Legal Help,LEGAL AID FUND,BISON SOLICITORS LTD,2080182:156683612,"49,555.12",Legal Aid Legal Help
MOJ,LAA,23/12/2020,Legal Aid Legal Help,LEGAL AID FUND,WILSON SOLICITORS LLP,2077929:156683515,"52,421.53",Legal Aid Legal Help
MOJ,LAA,23/12/2020,Legal Aid Legal Help,LEGAL AID FUND,BISON SOLICITORS LTD,2080181:156683613,"55,561.83",Legal Aid Legal Help
MOJ,LAA,23/12/2020,Legal Aid Legal Help,LEGAL AID FUND,DUNCAN LEWIS SOLICITORS  LTD,2079123:156682868,"59,300.00",Legal Aid Legal Help
MOJ,LAA,23/12/2020,Legal Aid Legal Help,LEGAL AID FUND,KESAR & CO SOLICITORS,2079615:156683531,"69,251.03",Legal Aid Legal Help
MOJ,LAA,23/12/2020,Legal Aid Legal Help,LEGAL AID FUND,CARTWRIGHT KING LTD,2082196:156683262,"70,730.61",Legal Aid Legal Help
MOJ,LAA,23/12/2020,Legal Aid Legal Help,LEGAL AID FUND,ABBOTSTONE LAW LLP,2079195:156683557,"76,587.45",Legal Aid Legal Help
MOJ,LAA,23/12/2020,Legal Aid Legal Help,LEGAL AID FUND,GUILE NICHOLAS-INC DONALD GALBRAITH & CO,2080905:156682809,"90,000.00",Legal Aid Legal Help
MOJ,LAA,23/12/2020,Legal Aid Lower Crime,LEGAL AID FUND,BISHOP & LIGHT SOLICITORS LTD,2082554:156684484,"25,194.92",Legal Aid Lower Crime
MOJ,LAA,23/12/2020,Legal Aid Lower Crime,LEGAL AID FUND,GARTSIDES,2078731:156684027,"25,271.34",Legal Aid Lower Crime
MOJ,LAA,23/12/2020,Legal Aid Lower Crime,LEGAL AID FUND,POWELL SPENCER AND PARTNERS,2078782:156683789,"25,300.00",Legal Aid Lower Crime
MOJ,LAA,23/12/2020,Legal Aid Lower Crime,LEGAL AID FUND,NOBLE SOLICITORS,2081581:156684889,"25,413.92",Legal Aid Lower Crime
MOJ,LAA,23/12/2020,Legal Aid Lower Crime,LEGAL AID FUND,CARTWRIGHT KING LTD,2082195:156684095,"25,424.88",Legal Aid Lower Crime
MOJ,LAA,23/12/2020,Legal Aid Lower Crime,LEGAL AID FUND,COBLEYS SOLICITORS LTD,2080991:156684292,"25,436.58",Legal Aid Lower Crime
MOJ,LAA,23/12/2020,Legal Aid Lower Crime,LEGAL AID FUND,MESSRS WATERFORDS SOLICITORS,2079992:156684217,"25,443.85",Legal Aid Lower Crime
MOJ,LAA,23/12/2020,Legal Aid Lower Crime,LEGAL AID FUND,HOWELL HYLTON LTD,2078568:156684520,"25,465.11",Legal Aid Lower Crime
MOJ,LAA,23/12/2020,Legal Aid Lower Crime,LEGAL AID FUND,MICHAEL CULSHAW & CO LTD,2079735:156684378,"25,482.03",Legal Aid Lower Crime
MOJ,LAA,23/12/2020,Legal Aid Lower Crime,LEGAL AID FUND,DAVIES & JONES SOLICITORS,2079973:156683749,"25,500.00",Legal Aid Lower Crime
MOJ,LAA,23/12/2020,Legal Aid Lower Crime,LEGAL AID FUND,CARTWRIGHT KING LTD,2082194:156684096,"25,506.47",Legal Aid Lower Crime
MOJ,LAA,23/12/2020,Legal Aid Lower Crime,LEGAL AID FUND,HAYWOOD LUNN & ALLEN LTD,2077827:156684908,"25,540.15",Legal Aid Lower Crime
MOJ,LAA,23/12/2020,Legal Aid Lower Crime,LEGAL AID FUND,STEVEN YOUNG & CO INC ROWBIS,2082207:156684549,"25,579.28",Legal Aid Lower Crime
MOJ,LAA,23/12/2020,Legal Aid Lower Crime,LEGAL AID FUND,DAVID SEDGWICK SOLICITORS LTD,2080899:156684014,"25,730.61",Legal Aid Lower Crime
MOJ,LAA,23/12/2020,Legal Aid Lower Crime,LEGAL AID FUND,DE MAIDS SOLICITORS & ADVOCATES,2081193:156683750,"26,000.00",Legal Aid Lower Crime
MOJ,LAA,23/12/2020,Legal Aid Lower Crime,LEGAL AID FUND,JAMES MURRAY SOLICITORS,2079805:156684286,"26,201.95",Legal Aid Lower Crime
MOJ,LAA,23/12/2020,Legal Aid Lower Crime,LEGAL AID FUND,LEVY & CO SOLICITORS LLP,2080950:156684126,"26,280.38",Legal Aid Lower Crime
MOJ,LAA,23/12/2020,Legal Aid Lower Crime,LEGAL AID FUND,REEDS SOLICITORS LLP,2081777:156684775,"26,344.07",Legal Aid Lower Crime
MOJ,LAA,23/12/2020,Legal Aid Lower Crime,LEGAL AID FUND,JSP LAW LTD,2080386:156684809,"26,397.31",Legal Aid Lower Crime
MOJ,LAA,23/12/2020,Legal Aid Lower Crime,LEGAL AID FUND,SHARMA LAW SOLICITORS,2080241:156685009,"26,436.22",Legal Aid Lower Crime
MOJ,LAA,23/12/2020,Legal Aid Lower Crime,LEGAL AID FUND,ASHLEY SMITH & CO LTD,2079821:156684245,"26,448.15",Legal Aid Lower Crime
MOJ,LAA,23/12/2020,Legal Aid Lower Crime,LEGAL AID FUND,RICHARD GRIFFITHS & CO,2081092:156684551,"26,465.85",Legal Aid Lower Crime
MOJ,LAA,23/12/2020,Legal Aid Lower Crime,LEGAL AID FUND,JOHN FULLER & PARTNERS,2080947:156684110,"26,483.18",Legal Aid Lower Crime
MOJ,LAA,23/12/2020,Legal Aid Lower Crime,LEGAL AID FUND,GOODALL BARNETT JAMES SOLICITORS,2081173:156683916,"26,500.00",Legal Aid Lower Crime
MOJ,LAA,23/12/2020,Legal Aid Lower Crime,LEGAL AID FUND,STEPHEN RIMMER LLP,2078559:156683917,"26,600.00",Legal Aid Lower Crime
MOJ,LAA,23/12/2020,Legal Aid Lower Crime,LEGAL AID FUND,WALKER LAHIVE,2081099:156684530,"26,621.35",Legal Aid Lower Crime
MOJ,LAA,23/12/2020,Legal Aid Lower Crime,LEGAL AID FUND,TUCKERS SOLICITORS LLP,2077853:156684873,"26,676.64",Legal Aid Lower Crime
MOJ,LAA,23/12/2020,Legal Aid Lower Crime,LEGAL AID FUND,BAINS SOLICITORS,2079860:156684080,"26,791.73",Legal Aid Lower Crime
MOJ,LAA,23/12/2020,Legal Aid Lower Crime,LEGAL AID FUND,SVS SOLICITORS,2080970:156684505,"26,828.26",Legal Aid Lower Crime
MOJ,LAA,23/12/2020,Legal Aid Lower Crime,LEGAL AID FUND,WATSON WOODHOUSE LTD,2082376:156683830,"27,300.00",Legal Aid Lower Crime
MOJ,LAA,23/12/2020,Legal Aid Lower Crime,LEGAL AID FUND,HINE SOLICITORS,2080409:156685082,"27,355.74",Legal Aid Lower Crime
MOJ,LAA,23/12/2020,Legal Aid Lower Crime,LEGAL AID FUND,STEPHENSONS SOLICITORS LLP,2081247:156684407,"27,492.48",Legal Aid Lower Crime
MOJ,LAA,23/12/2020,Legal Aid Lower Crime,LEGAL AID FUND,DEVAS KEOGH JAMES SOLICITORS LTD,2082408:156684150,"27,548.99",Legal Aid Lower Crime
MOJ,LAA,23/12/2020,Legal Aid Lower Crime,LEGAL AID FUND,THE JOHNSON PARTNERSHIP,2079121:156684791,"27,570.84",Legal Aid Lower Crime
MOJ,LAA,23/12/2020,Legal Aid Lower Crime,LEGAL AID FUND,SARFO SOLICITORS,2082200:156684157,"27,694.42",Legal Aid Lower Crime
MOJ,LAA,23/12/2020,Legal Aid Lower Crime,LEGAL AID FUND,ANDREW STORCH SOLICITORS LTD,2078666:156683933,"27,700.00",Legal Aid Lower Crime
MOJ,LAA,23/12/2020,Legal Aid Lower Crime,LEGAL AID FUND,WAINWRIGHT & CUMMINS LLP,2078524:156684268,"27,725.81",Legal Aid Lower Crime
MOJ,LAA,23/12/2020,Legal Aid Lower Crime,LEGAL AID FUND,THE JOHNSON PARTNERSHIP,2079122:156684790,"27,792.37",Legal Aid Lower Crime
MOJ,LAA,23/12/2020,Legal Aid Lower Crime,LEGAL AID FUND,BLACKWELLS,2082232:156683866,"27,800.00",Legal Aid Lower Crime
MOJ,LAA,23/12/2020,Legal Aid Lower Crime,LEGAL AID FUND,ASGHAR & CO SOLICITORS LTD,2082557:156684260,"27,851.04",Legal Aid Lower Crime
MOJ,LAA,23/12/2020,Legal Aid Lower Crime,LEGAL AID FUND,T S LAW LTD,2078592:156683804,"28,000.00",Legal Aid Lower Crime
MOJ,LAA,23/12/2020,Legal Aid Lower Crime,LEGAL AID FUND,BAL DHALIWAL SOLICITORS,2079793:156684158,"28,032.98",Legal Aid Lower Crime
MOJ,LAA,23/12/2020,Legal Aid Lower Crime,LEGAL AID FUND,HOWARDS & HENRY'S SOLICITORS LTD,2079045:156684923,"28,080.12",Legal Aid Lower Crime
MOJ,LAA,23/12/2020,Legal Aid Lower Crime,LEGAL AID FUND,PEPPERELLS SOLICITORS,2082161:156684653,"28,323.53",Legal Aid Lower Crime
MOJ,LAA,23/12/2020,Legal Aid Lower Crime,LEGAL AID FUND,DJMS SOLICITORS LTD,2082152:156684310,"28,398.18",Legal Aid Lower Crime
MOJ,LAA,23/12/2020,Legal Aid Lower Crime,LEGAL AID FUND,M K LAW SOLICITORS LTD,2078028:156684867,"28,500.00",Legal Aid Lower Crime
MOJ,LAA,23/12/2020,Legal Aid Lower Crime,LEGAL AID FUND,REEDS SOLICITORS LLP,2078350:156684667,"28,561.85",Legal Aid Lower Crime
MOJ,LAA,23/12/2020,Legal Aid Lower Crime,LEGAL AID FUND,HUMPHRYS DAWSON,2081050:156684056,"28,811.77",Legal Aid Lower Crime
MOJ,LAA,23/12/2020,Legal Aid Lower Crime,LEGAL AID FUND,BARKER AND COPEMAN,2082219:156684389,"28,956.05",Legal Aid Lower Crime
MOJ,LAA,23/12/2020,Legal Aid Lower Crime,LEGAL AID FUND,OBW PERERA LTD,2078457:156683779,"29,000.00",Legal Aid Lower Crime
MOJ,LAA,23/12/2020,Legal Aid Lower Crime,LEGAL AID FUND,SANSBURY DOUGLAS,2082160:156683986,"29,400.00",Legal Aid Lower Crime
MOJ,LAA,23/12/2020,Legal Aid Lower Crime,LEGAL AID FUND,COUSINS TYRER SOLICITORS,2079882:156684382,"29,531.30",Legal Aid Lower Crime
MOJ,LAA,23/12/2020,Legal Aid Lower Crime,LEGAL AID FUND,TYLER HOFFMAN LTD,2077843:156684894,"29,651.72",Legal Aid Lower Crime
MOJ,LAA,23/12/2020,Legal Aid Lower Crime,LEGAL AID FUND,GWB HARTHILLS LLP,2079057:156684918,"29,656.35",Legal Aid Lower Crime
MOJ,LAA,23/12/2020,Legal Aid Lower Crime,LEGAL AID FUND,DEVONALD GRIFFITHS JOHN,2078854:156685119,"29,694.78",Legal Aid Lower Crime
MOJ,LAA,23/12/2020,Legal Aid Lower Crime,LEGAL AID FUND,PAUL ROBINSON SOLICITORS LLP,2079077:156684971,"29,772.72",Legal Aid Lower Crime
MOJ,LAA,23/12/2020,Legal Aid Lower Crime,LEGAL AID FUND,TUCKERS SOLICITORS LLP,2079174:156683996,"30,000.00",Legal Aid Lower Crime
MOJ,LAA,23/12/2020,Legal Aid Lower Crime,LEGAL AID FUND,MAXIM LAW SOLICITORS LTD,2081458:156674666,"30,000.00",Legal Aid Lower Crime
MOJ,LAA,23/12/2020,Legal Aid Lower Crime,LEGAL AID FUND,SUSSEX DEFENCE SOLICITORS,2082122:156683990,"30,000.00",Legal Aid Lower Crime
MOJ,LAA,23/12/2020,Legal Aid Lower Crime,LEGAL AID FUND,EDWARD FAIL BRADSHAW & WATERSON,2081298:156684264,"30,055.45",Legal Aid Lower Crime
MOJ,LAA,23/12/2020,Legal Aid Lower Crime,LEGAL AID FUND,OSLERS SOLICITORS,2082111:156684141,"30,145.60",Legal Aid Lower Crime
MOJ,LAA,23/12/2020,Legal Aid Lower Crime,LEGAL AID FUND,HASKELL & CO,2080895:156684472,"30,273.81",Legal Aid Lower Crime
MOJ,LAA,23/12/2020,Legal Aid Lower Crime,LEGAL AID FUND,BLACKFORDS LLP,2081334:156684188,"30,363.18",Legal Aid Lower Crime
MOJ,LAA,23/12/2020,Legal Aid Lower Crime,LEGAL AID FUND,KIRWANS,2079807:156684283,"30,528.06",Legal Aid Lower Crime
MOJ,LAA,23/12/2020,Legal Aid Lower Crime,LEGAL AID FUND,LLOYDS PR SOLICITORS,2082187:156684107,"30,550.07",Legal Aid Lower Crime
MOJ,LAA,23/12/2020,Legal Aid Lower Crime,LEGAL AID FUND,BELMORES SOLICITORS LTD,2079713:156684130,"30,689.45",Legal Aid Lower Crime
MOJ,LAA,23/12/2020,Legal Aid Lower Crime,LEGAL AID FUND,CLARKE KIERNAN LLP,2080983:156684470,"30,744.94",Legal Aid Lower Crime
MOJ,LAA,23/12/2020,Legal Aid Lower Crime,LEGAL AID FUND,HAY & KILNER LLP,2078719:156684322,"30,869.89",Legal Aid Lower Crime
MOJ,LAA,23/12/2020,Legal Aid Lower Crime,LEGAL AID FUND,BOBBETTS MACKAN,2078766:156684542,"30,873.31",Legal Aid Lower Crime
MOJ,LAA,23/12/2020,Legal Aid Lower Crime,LEGAL AID FUND,DRISCOLL YOUNG SOLICITORS LTD,2079842:156684029,"30,993.95",Legal Aid Lower Crime
MOJ,LAA,23/12/2020,Legal Aid Lower Crime,LEGAL AID FUND,CRIMINAL DEFENCE MILTON KEYNES LTD,2082104:156683928,"31,000.00",Legal Aid Lower Crime
MOJ,LAA,23/12/2020,Legal Aid Lower Crime,LEGAL AID FUND,TEESSIDE LAW LTD,2079117:156684795,"31,456.32",Legal Aid Lower Crime
MOJ,LAA,23/12/2020,Legal Aid Lower Crime,LEGAL AID FUND,I B B LAW LLP,2078523:156683797,"31,500.00",Legal Aid Lower Crime
MOJ,LAA,23/12/2020,Legal Aid Lower Crime,LEGAL AID FUND,CROWE HUMBLE WESENCRAFT,2081059:156684329,"31,782.91",Legal Aid Lower Crime
MOJ,LAA,23/12/2020,Legal Aid Lower Crime,LEGAL AID FUND,TAYLOR HALDANE BARLEX LLP,2080370:156684870,"31,965.35",Legal Aid Lower Crime
MOJ,LAA,23/12/2020,Legal Aid Lower Crime,LEGAL AID FUND,GRECH GOODEN SOLICITORS LTD,2080942:156684049,"32,233.14",Legal Aid Lower Crime
MOJ,LAA,23/12/2020,Legal Aid Lower Crime,LEGAL AID FUND,LLM SOLICITORS (LONDON) LTD,2078359:156684736,"32,604.28",Legal Aid Lower Crime
MOJ,LAA,23/12/2020,Legal Aid Lower Crime,LEGAL AID FUND,JOHN DELANEY & CO SOLICITORS,2082260:156683872,"33,000.00",Legal Aid Lower Crime
MOJ,LAA,23/12/2020,Legal Aid Lower Crime,LEGAL AID FUND,TANG BENTLEY & JACKSON LIMITED,2077835:156684902,"33,069.07",Legal Aid Lower Crime
MOJ,LAA,23/12/2020,Legal Aid Lower Crime,LEGAL AID FUND,NORRIE WAITE & SLATER,2079951:156684349,"33,071.37",Legal Aid Lower Crime
MOJ,LAA,23/12/2020,Legal Aid Lower Crime,LEGAL AID FUND,NUMBER ONE LAW LLP,2082090:156684625,"33,261.38",Legal Aid Lower Crime
MOJ,LAA,23/12/2020,Legal Aid Lower Crime,LEGAL AID FUND,ROSS SOLICITORS LTD,2078749:156683950,"33,300.00",Legal Aid Lower Crime
MOJ,LAA,23/12/2020,Legal Aid Lower Crime,LEGAL AID FUND,G T STEWART LTD,2080282:156685050,"33,343.21",Legal Aid Lower Crime
MOJ,LAA,23/12/2020,Legal Aid Lower Crime,LEGAL AID FUND,SUNDIP MURRIA SOLICITORS,2078514:156683977,"33,400.00",Legal Aid Lower Crime
MOJ,LAA,23/12/2020,Legal Aid Lower Crime,LEGAL AID FUND,VHS FLETCHERS,2080395:156684804,"33,437.58",Legal Aid Lower Crime
MOJ,LAA,23/12/2020,Legal Aid Lower Crime,LEGAL AID FUND,DALTON HOLMES GRAY,2078599:156684251,"33,559.92",Legal Aid Lower Crime
MOJ,LAA,23/12/2020,Legal Aid Lower Crime,LEGAL AID FUND,MCSORLEY LEWIS LAW LTD,2078739:156684043,"33,583.91",Legal Aid Lower Crime
MOJ,LAA,23/12/2020,Legal Aid Lower Crime,LEGAL AID FUND,TAYLOR HALDANE BARLEX LLP,2081773:156684772,"33,592.51",Legal Aid Lower Crime
MOJ,LAA,23/12/2020,Legal Aid Lower Crime,LEGAL AID FUND,RENSHAW DERRICK & CO,2082539:156684522,"33,613.87",Legal Aid Lower Crime
MOJ,LAA,23/12/2020,Legal Aid Lower Crime,LEGAL AID FUND,ALLEN HOOLE LTD,2081102:156683943,"34,000.00",Legal Aid Lower Crime
MOJ,LAA,23/12/2020,Legal Aid Lower Crime,LEGAL AID FUND,HPJV SOLICITORS,2079978:156684028,"34,005.77",Legal Aid Lower Crime
MOJ,LAA,23/12/2020,Legal Aid Lower Crime,LEGAL AID FUND,TURNOCKS DEFENCE SOLICITORS LTD,2079994:156684587,"34,066.11",Legal Aid Lower Crime
MOJ,LAA,23/12/2020,Legal Aid Lower Crime,LEGAL AID FUND,BREYDONS SOLICITORS LTD,2080361:156684696,"34,139.48",Legal Aid Lower Crime
MOJ,LAA,23/12/2020,Legal Aid Lower Crime,LEGAL AID FUND,REEDS SOLICITORS LLP,2080306:156685029,"34,259.58",Legal Aid Lower Crime
MOJ,LAA,23/12/2020,Legal Aid Lower Crime,LEGAL AID FUND,K LEGAL SOLICITORS,2079621:156684741,"34,828.40",Legal Aid Lower Crime
MOJ,LAA,23/12/2020,Legal Aid Lower Crime,LEGAL AID FUND,CONNOR ROSS-BROWN SOLICITORS,2078019:156683995,"35,000.00",Legal Aid Lower Crime
MOJ,LAA,23/12/2020,Legal Aid Lower Crime,LEGAL AID FUND,HENNESSY & HAMMUDI,2080973:156683935,"35,000.00",Legal Aid Lower Crime
MOJ,LAA,23/12/2020,Legal Aid Lower Crime,LEGAL AID FUND,LANSBURY WORTHINGTON LTD,2082406:156683783,"35,000.00",Legal Aid Lower Crime
MOJ,LAA,23/12/2020,Legal Aid Lower Crime,LEGAL AID FUND,EVANS HAYES BURNELL SOLICITORS LTD,2080312:156684884,"35,513.14",Legal Aid Lower Crime
MOJ,LAA,23/12/2020,Legal Aid Lower Crime,LEGAL AID FUND,VHS FLETCHERS,2082313:156684085,"35,676.42",Legal Aid Lower Crime
MOJ,LAA,23/12/2020,Legal Aid Lower Crime,LEGAL AID FUND,WESSEX SOLICITORS CHAMBERS,2082172:156683984,"35,800.00",Legal Aid Lower Crime
MOJ,LAA,23/12/2020,Legal Aid Lower Crime,LEGAL AID FUND,HINE SOLICITORS,2079020:156684944,"35,829.11",Legal Aid Lower Crime
MOJ,LAA,23/12/2020,Legal Aid Lower Crime,LEGAL AID FUND,GEOFF WHITE & CO,2082100:156684480,"36,200.32",Legal Aid Lower Crime
MOJ,LAA,23/12/2020,Legal Aid Lower Crime,LEGAL AID FUND,THE JOHNSON PARTNERSHIP,2081159:156684082,"36,362.33",Legal Aid Lower Crime
MOJ,LAA,23/12/2020,Legal Aid Lower Crime,LEGAL AID FUND,BURTON COPELAND LLP,2082366:156684460,"36,539.63",Legal Aid Lower Crime
MOJ,LAA,23/12/2020,Legal Aid Lower Crime,LEGAL AID FUND,HILL TWINE SOLICITORS,2079147:156684789,"36,650.86",Legal Aid Lower Crime
MOJ,LAA,23/12/2020,Legal Aid Lower Crime,LEGAL AID FUND,BOND JOSEPH,2081064:156684478,"36,908.12",Legal Aid Lower Crime
MOJ,LAA,23/12/2020,Legal Aid Lower Crime,LEGAL AID FUND,THE JOHNSON PARTNERSHIP,2081605:156684841,"37,681.96",Legal Aid Lower Crime
MOJ,LAA,23/12/2020,Legal Aid Lower Crime,LEGAL AID FUND,LAWRENCE & CO SOLICITORS CDS LLP,2079934:156683812,"38,000.00",Legal Aid Lower Crime
MOJ,LAA,23/12/2020,Legal Aid Lower Crime,LEGAL AID FUND,EBR ATTRIDGE LLP,2079676:156684181,"38,113.19",Legal Aid Lower Crime
MOJ,LAA,23/12/2020,Legal Aid Lower Crime,LEGAL AID FUND,SWINBURNE SNOWBALL & JACKSON,2078677:156684299,"38,284.86",Legal Aid Lower Crime
MOJ,LAA,23/12/2020,Legal Aid Lower Crime,LEGAL AID FUND,REEDS SOLICITORS LLP,2077778:156684871,"38,548.16",Legal Aid Lower Crime
MOJ,LAA,23/12/2020,Legal Aid Lower Crime,LEGAL AID FUND,VYMAN SOLICITORS LTD,2082279:156684467,"38,887.32",Legal Aid Lower Crime
MOJ,LAA,23/12/2020,Legal Aid Lower Crime,LEGAL AID FUND,NELSON GUEST & PARTNERS,2081272:156684196,"39,039.78",Legal Aid Lower Crime
MOJ,LAA,23/12/2020,Legal Aid Lower Crime,LEGAL AID FUND,KEANEY WHITEHEAD PARTNERSHIP,2080934:156684296,"39,336.23",Legal Aid Lower Crime
MOJ,LAA,23/12/2020,Legal Aid Lower Crime,LEGAL AID FUND,EBR ATTRIDGE LLP,2079677:156684178,"39,429.15",Legal Aid Lower Crime
MOJ,LAA,23/12/2020,Legal Aid Lower Crime,LEGAL AID FUND,HOWELLS LLP,2079877:156683854,"39,500.00",Legal Aid Lower Crime
MOJ,LAA,23/12/2020,Legal Aid Lower Crime,LEGAL AID FUND,M K LAW SOLICITORS LTD,2078406:156684698,"40,000.00",Legal Aid Lower Crime
MOJ,LAA,23/12/2020,Legal Aid Lower Crime,LEGAL AID FUND,DEVONALD GRIFFITHS JOHN,2078569:156683747,"40,000.00",Legal Aid Lower Crime
MOJ,LAA,23/12/2020,Legal Aid Lower Crime,LEGAL AID FUND,LEWIS NEDAS LAW LTD,2080292:156684007,"40,000.00",Legal Aid Lower Crime
MOJ,LAA,23/12/2020,Legal Aid Lower Crime,LEGAL AID FUND,HARRIS CUFFARO & NICHOLS,2082409:156683775,"40,200.00",Legal Aid Lower Crime
MOJ,LAA,23/12/2020,Legal Aid Lower Crime,LEGAL AID FUND,PURE LAW CRIMINAL DEFENCE,2079063:156684888,"40,224.29",Legal Aid Lower Crime
MOJ,LAA,23/12/2020,Legal Aid Lower Crime,LEGAL AID FUND,GOMER WILLIAMS,2078733:156684037,"40,411.06",Legal Aid Lower Crime
MOJ,LAA,23/12/2020,Legal Aid Lower Crime,LEGAL AID FUND,HE LAW LTD,2078413:156684751,"41,115.69",Legal Aid Lower Crime
MOJ,LAA,23/12/2020,Legal Aid Lower Crime,LEGAL AID FUND,NOBLE SOLICITORS,2078408:156684654,"41,272.18",Legal Aid Lower Crime
MOJ,LAA,23/12/2020,Legal Aid Lower Crime,LEGAL AID FUND,WELLS BURCOMBE LLP,2082118:156684111,"41,470.10",Legal Aid Lower Crime
MOJ,LAA,23/12/2020,Legal Aid Lower Crime,LEGAL AID FUND,THE JOHNSON PARTNERSHIP,2082158:156684635,"41,768.61",Legal Aid Lower Crime
MOJ,LAA,23/12/2020,Legal Aid Lower Crime,LEGAL AID FUND,CARR & CO,2078652:156683864,"42,300.00",Legal Aid Lower Crime
MOJ,LAA,23/12/2020,Legal Aid Lower Crime,LEGAL AID FUND,ZMS LEGAL LTD TA ZMS SOLICITORS,2080898:156684074,"42,304.34",Legal Aid Lower Crime
MOJ,LAA,23/12/2020,Legal Aid Lower Crime,LEGAL AID FUND,MARTIN MURRAY & ASSOCIATES,2081266:156684192,"42,493.22",Legal Aid Lower Crime
MOJ,LAA,23/12/2020,Legal Aid Lower Crime,LEGAL AID FUND,HORSMAN SOLICITORS LTD,2082389:156684475,"42,566.57",Legal Aid Lower Crime
MOJ,LAA,23/12/2020,Legal Aid Lower Crime,LEGAL AID FUND,SONN MACMILLAN WALKER LTD,2081269:156683784,"42,900.00",Legal Aid Lower Crime
MOJ,LAA,23/12/2020,Legal Aid Lower Crime,LEGAL AID FUND,REEDS SOLICITORS LLP,2082357:156684514,"43,333.65",Legal Aid Lower Crime
MOJ,LAA,23/12/2020,Legal Aid Lower Crime,LEGAL AID FUND,DUNCAN LEWIS SOLICITORS  LTD,2079822:156683802,"43,400.00",Legal Aid Lower Crime
MOJ,LAA,23/12/2020,Legal Aid Lower Crime,LEGAL AID FUND,SHELLEY & CO,2078544:156684156,"43,443.76",Legal Aid Lower Crime
MOJ,LAA,23/12/2020,Legal Aid Lower Crime,LEGAL AID FUND,ABV SOLICITORS,2078499:156683799,"44,200.00",Legal Aid Lower Crime
MOJ,LAA,23/12/2020,Legal Aid Lower Crime,LEGAL AID FUND,KESAR & CO SOLICITORS,2079615:156684743,"44,708.90",Legal Aid Lower Crime
MOJ,LAA,23/12/2020,Legal Aid Lower Crime,LEGAL AID FUND,HENRY HYAMS LTD,2079889:156684380,"45,335.01",Legal Aid Lower Crime
MOJ,LAA,23/12/2020,Legal Aid Lower Crime,LEGAL AID FUND,T V EDWARDS LLP,2082407:156684226,"45,675.22",Legal Aid Lower Crime
MOJ,LAA,23/12/2020,Legal Aid Lower Crime,LEGAL AID FUND,BARK & CO,2082392:156684160,"45,805.95",Legal Aid Lower Crime
MOJ,LAA,23/12/2020,Legal Aid Lower Crime,LEGAL AID FUND,REECE THOMAS WATSON LTD,2081556:156684845,"46,111.33",Legal Aid Lower Crime
MOJ,LAA,23/12/2020,Legal Aid Lower Crime,LEGAL AID FUND,JACKSON LEES GROUP LTD,2081764:156684776,"46,185.62",Legal Aid Lower Crime
MOJ,LAA,23/12/2020,Legal Aid Lower Crime,LEGAL AID FUND,THE JOHNSON PARTNERSHIP,2081158:156684083,"46,357.86",Legal Aid Lower Crime
MOJ,LAA,23/12/2020,Legal Aid Lower Crime,LEGAL AID FUND,USMANI KING LTD,2081033:156684117,"47,760.17",Legal Aid Lower Crime
MOJ,LAA,23/12/2020,Legal Aid Lower Crime,LEGAL AID FUND,LLOYDS PR SOLICITORS,2082129:156684112,"47,953.59",Legal Aid Lower Crime
MOJ,LAA,23/12/2020,Legal Aid Lower Crime,LEGAL AID FUND,HOWARD & BYRNE SOLICITORS,2078473:156683863,"50,000.00",Legal Aid Lower Crime
MOJ,LAA,23/12/2020,Legal Aid Lower Crime,LEGAL AID FUND,GAMMON PIERCY & GAIGER LLP,2081308:156684494,"50,476.87",Legal Aid Lower Crime
MOJ,LAA,23/12/2020,Legal Aid Lower Crime,LEGAL AID FUND,BAILEY NICHOLSON GRAYSON,2079861:156683786,"50,800.00",Legal Aid Lower Crime
MOJ,LAA,23/12/2020,Legal Aid Lower Crime,LEGAL AID FUND,ABR SOLICITORS,2082242:156684384,"51,024.77",Legal Aid Lower Crime
MOJ,LAA,23/12/2020,Legal Aid Lower Crime,LEGAL AID FUND,M B LAW LTD,2077759:156685110,"52,899.19",Legal Aid Lower Crime
MOJ,LAA,23/12/2020,Legal Aid Lower Crime,LEGAL AID FUND,J D SPICER ZEB,2078781:156684200,"54,949.90",Legal Aid Lower Crime
MOJ,LAA,23/12/2020,Legal Aid Lower Crime,LEGAL AID FUND,THOMAS BOYD WHYTE SOLICITORS,2081305:156684199,"55,436.00",Legal Aid Lower Crime
MOJ,LAA,23/12/2020,Legal Aid Lower Crime,LEGAL AID FUND,GRAHAM & CO SOLICITORS LTD,2080285:156685047,"55,857.64",Legal Aid Lower Crime
MOJ,LAA,23/12/2020,Legal Aid Lower Crime,LEGAL AID FUND,STUART MILLER SOLICITORS LTD,2082384:156684244,"55,950.57",Legal Aid Lower Crime
MOJ,LAA,23/12/2020,Legal Aid Lower Crime,LEGAL AID FUND,GWB HARTHILLS LLP,2082272:156684356,"57,541.71",Legal Aid Lower Crime
MOJ,LAA,23/12/2020,Legal Aid Lower Crime,LEGAL AID FUND,ROBERT LIZAR,2081243:156684462,"57,717.64",Legal Aid Lower Crime
MOJ,LAA,23/12/2020,Legal Aid Lower Crime,LEGAL AID FUND,REEVES  & CO SOLICITORS,2080933:156684474,"58,459.51",Legal Aid Lower Crime
MOJ,LAA,23/12/2020,Legal Aid Lower Crime,LEGAL AID FUND,WILLIAMSONS SOLICITORS LTD,2078646:156683873,"58,600.00",Legal Aid Lower Crime
MOJ,LAA,23/12/2020,Legal Aid Lower Crime,LEGAL AID FUND,J D SOLICITORS,2079069:156684977,"58,921.34",Legal Aid Lower Crime
MOJ,LAA,23/12/2020,Legal Aid Lower Crime,LEGAL AID FUND,PURCELL PARKER LTD,2078549:156683967,"59,500.00",Legal Aid Lower Crime
MOJ,LAA,23/12/2020,Legal Aid Lower Crime,LEGAL AID FUND,WANNOPS LLP,2078407:156684762,"60,671.12",Legal Aid Lower Crime
MOJ,LAA,23/12/2020,Legal Aid Lower Crime,LEGAL AID FUND,CHURCHERS SOLICITORS LLP,2080960:156684500,"60,778.20",Legal Aid Lower Crime
MOJ,LAA,23/12/2020,Legal Aid Lower Crime,LEGAL AID FUND,OLD BAILEY SOLICITORS LTD,2078436:156684687,"64,249.85",Legal Aid Lower Crime
MOJ,LAA,23/12/2020,Legal Aid Lower Crime,LEGAL AID FUND,JERMAN SAMUELS & PEARSON LLP,2080253:156684001,"65,000.00",Legal Aid Lower Crime
MOJ,LAA,23/12/2020,Legal Aid Lower Crime,LEGAL AID FUND,HODGE JONES & ALLEN SOLICITORS LTD,2078778:156684243,"65,407.71",Legal Aid Lower Crime
MOJ,LAA,23/12/2020,Legal Aid Lower Crime,LEGAL AID FUND,BHATIA BEST LTD,2081089:156683753,"67,600.00",Legal Aid Lower Crime
MOJ,LAA,23/12/2020,Legal Aid Lower Crime,LEGAL AID FUND,G T STEWART LTD,2082142:156684686,"70,877.71",Legal Aid Lower Crime
MOJ,LAA,23/12/2020,Legal Aid Lower Crime,LEGAL AID FUND,G T STEWART LTD,2079694:156684257,"72,738.10",Legal Aid Lower Crime
MOJ,LAA,23/12/2020,Legal Aid Lower Crime,LEGAL AID FUND,REEDS SOLICITORS LLP,2080315:156685025,"79,260.83",Legal Aid Lower Crime
MOJ,LAA,23/12/2020,Legal Aid Lower Crime,LEGAL AID FUND,RMNJ SOLICITORS,2082347:156684282,"79,840.43",Legal Aid Lower Crime
MOJ,LAA,23/12/2020,Legal Aid Lower Crime,LEGAL AID FUND,WELLS BURCOMBE LLP,2079625:156684700,"85,289.51",Legal Aid Lower Crime
MOJ,LAA,23/12/2020,Legal Aid Lower Crime,LEGAL AID FUND,BIRDS SOLICITORS LTD,2078476:156683792,"90,000.00",Legal Aid Lower Crime
MOJ,LAA,23/12/2020,Legal Aid Lower Crime,LEGAL AID FUND,YOUNG & CO SOLICITORS T/A SWAIN & CO,2082208:156683926,"100,000.00",Legal Aid Lower Crime
MOJ,LAA,23/12/2020,Legal Aid Lower Crime,LEGAL AID FUND,H P GOWER SOLICITORS,2078369:156684726,"100,621.18",Legal Aid Lower Crime
MOJ,LAA,23/12/2020,Legal Aid Lower Crime,LEGAL AID FUND,THE JOHNSON PARTNERSHIP,2081160:156684079,"124,089.87",Legal Aid Lower Crime
MOJ,LAA,23/12/2020,Legal Aid Lower Crime,LEGAL AID FUND,INSTALAW,2081563:156684842,"128,933.38",Legal Aid Lower Crime
MOJ,LAA,23/12/2020,Legal Aid Lower Crime,LEGAL AID FUND,TUCKERS SOLICITORS LLP,2082382:156683811,"130,000.00",Legal Aid Lower Crime
MOJ,LAA,23/12/2020,Legal Aid Lower Crime,LEGAL AID FUND,CARTER OSBORNE LTD,2081130:156684081,"137,573.23",Legal Aid Lower Crime
MOJ,LAA,23/12/2020,Legal Aid Lower Crime,LEGAL AID FUND,TUCKERS SOLICITORS LLP,2082381:156683904,"175,700.00",Legal Aid Lower Crime
MOJ,LAA,23/12/2020,Legal Aid Lower Crime,LEGAL AID FUND,CARRINGTONS SOLICITORS,2079734:156684086,"188,801.48",Legal Aid Lower Crime
MOJ,LAA,23/12/2020,Legal Aid Lower Crime,LEGAL AID FUND,HINDUJA GLOBAL SOLUTIONS UK LTD,2078849:156680527,"315,563.59",Legal Aid Lower Crime
MOJ,LAA,24/12/2020,EXP - PURCHASE OF GOODS/SERVICES - OTHER - Translation / Interpreting Services,Central Funds,CLARION INTERPRETING LTD,64589,"48,973.81",Translation and interpreting services
MOJ,LAA,30/12/2020,Legal Aid Civil Representation,LEGAL AID FUND,GARRODS LAW LTD,2085243:3000005642710007,"25,219.40",Legal Aid Civil Representation
MOJ,LAA,30/12/2020,Legal Aid Civil Representation,LEGAL AID FUND,JULIE RICHARDSON,2084345:3000004394620006,"25,428.60",Legal Aid Civil Representation
MOJ,LAA,30/12/2020,Legal Aid Civil Representation,LEGAL AID FUND,COVENT GARDEN FAMILY LAW SOLICITORS,2084888:3000003385630015,"26,230.86",Legal Aid Civil Representation
MOJ,LAA,30/12/2020,Legal Aid Civil Representation,LEGAL AID FUND,LEIGH DAY & CO,2085078:3000006615460003,"26,296.63",Legal Aid Civil Representation
MOJ,LAA,30/12/2020,Legal Aid Civil Representation,LEGAL AID FUND,CLARKE WILLMOTT LLP,2083497:3000005916920008,"26,648.49",Legal Aid Civil Representation
MOJ,LAA,30/12/2020,Legal Aid Civil Representation,LEGAL AID FUND,PATRICK LAWRENCE PARTNERSHIP LLP,2082778:3000006168900013,"26,880.00",Legal Aid Civil Representation
MOJ,LAA,30/12/2020,Legal Aid Civil Representation,LEGAL AID FUND,ENOCH EVANS LLP,2084715:3000006290720027,"28,188.00",Legal Aid Civil Representation
MOJ,LAA,30/12/2020,Legal Aid Civil Representation,LEGAL AID FUND,HANNE & CO,2083692:3000006134370009,"28,316.72",Legal Aid Civil Representation
MOJ,LAA,30/12/2020,Legal Aid Civil Representation,LEGAL AID FUND,H E THOMAS & CO,2083689:3000006185400013,"28,823.21",Legal Aid Civil Representation
MOJ,LAA,30/12/2020,Legal Aid Civil Representation,LEGAL AID FUND,JACKSON WEST SOLICITORS,2084719:3000004108470027,"31,168.74",Legal Aid Civil Representation
MOJ,LAA,30/12/2020,Legal Aid Civil Representation,LEGAL AID FUND,MARGARET M PARR,2083951:3000005811790016,"31,933.44",Legal Aid Civil Representation
MOJ,LAA,30/12/2020,Legal Aid Civil Representation,LEGAL AID FUND,NOWELL MELLER SOLICITORS LTD.,2083114:3000001332780017,"33,496.80",Legal Aid Civil Representation
MOJ,LAA,30/12/2020,Legal Aid Civil Representation,LEGAL AID FUND,HANNAH METTAM,2083505:3000003625430029,"41,202.00",Legal Aid Civil Representation
MOJ,LAA,30/12/2020,Legal Aid Civil Representation,LEGAL AID FUND,WAINS,2084137:3000002590360052,"42,898.07",Legal Aid Civil Representation
MOJ,LAA,30/12/2020,Legal Aid Civil Representation,LEGAL AID FUND,NICHOLAS W STONOR,2083560:3000003794680024,"55,938.10",Legal Aid Civil Representation
MOJ,LAA,30/12/2020,Legal Aid Civil Representation,LEGAL AID FUND,HELAL AHMED,2083770:3000005725020040,"56,743.19",Legal Aid Civil Representation
MOJ,LAA,30/12/2020,Legal Aid Civil Representation,LEGAL AID FUND,NICHOLAS R JACK,2084570:3000003794680023,"59,735.45",Legal Aid Civil Representation
MOJ,LAA,30/12/2020,Legal Aid Civil Representation,LEGAL AID FUND,SPIRE SOLICITORS LLP,2084121:3000003794680022,"59,928.24",Legal Aid Civil Representation
MOJ,LAA,30/12/2020,Legal Aid Civil Representation,LEGAL AID FUND,SINCLAIRSLAW LTD,2085188:3000006477840003,"62,700.00",Legal Aid Civil Representation
MOJ,LAA,30/12/2020,Legal Aid Higher Crime,LEGAL AID FUND,THE JOHNSON PARTNERSHIP,2083085:156703767,"28,310.52",Legal Aid Higher Crime
MOJ,LAA,30/12/2020,Legal Aid Higher Crime,LEGAL AID FUND,EDWARDS DUTHIE SHAMASH SOLICITORS,2084249:156697263,"28,924.94",Legal Aid Higher Crime
MOJ,LAA,30/12/2020,Legal Aid Higher Crime,LEGAL AID FUND,J D SPICER ZEB,2084693:156697332,"28,952.49",Legal Aid Higher Crime
MOJ,LAA,30/12/2020,Legal Aid Higher Crime,LEGAL AID FUND,K LEGAL SOLICITORS,2083098:156697432,"29,002.13",Legal Aid Higher Crime
MOJ,LAA,30/12/2020,Legal Aid Higher Crime,LEGAL AID FUND,HUSSAIN SOLICITORS LTD,2084619:156722972,"29,532.85",Legal Aid Higher Crime
MOJ,LAA,30/12/2020,Legal Aid Higher Crime,LEGAL AID FUND,DAVIES & JONES SOLICITORS,2084730:156703690,"29,664.55",Legal Aid Higher Crime
MOJ,LAA,30/12/2020,Legal Aid Higher Crime,LEGAL AID FUND,BJ & CO SOLICITORS LTD,2084660:156690262,"34,635.31",Legal Aid Higher Crime
MOJ,LAA,30/12/2020,Legal Aid Higher Crime,LEGAL AID FUND,A & M SOLICITORS LTD,2084362:156697114,"34,830.65",Legal Aid Higher Crime
MOJ,LAA,30/12/2020,Legal Aid Higher Crime,LEGAL AID FUND,HARWOOD SOLICITORS,2083842:156690098,"35,597.46",Legal Aid Higher Crime
MOJ,LAA,30/12/2020,Legal Aid Higher Crime,LEGAL AID FUND,HAREWOOD LAW,2085062:156722236,"37,080.29",Legal Aid Higher Crime
MOJ,LAA,30/12/2020,Legal Aid Higher Crime,LEGAL AID FUND,HUSSAIN SOLICITORS LTD,2084619:156703521,"37,296.80",Legal Aid Higher Crime
MOJ,LAA,30/12/2020,Legal Aid Higher Crime,LEGAL AID FUND,LINCOLNS SOLICITORS,2083079:156689667,"37,812.65",Legal Aid Higher Crime
MOJ,LAA,30/12/2020,Legal Aid Higher Crime,LEGAL AID FUND,J D SPICER ZEB,2084693:156689663,"38,030.24",Legal Aid Higher Crime
MOJ,LAA,30/12/2020,Legal Aid Higher Crime,LEGAL AID FUND,FARLEYS SOLICITORS LLP,2084381:156722237,"40,636.90",Legal Aid Higher Crime
MOJ,LAA,30/12/2020,Legal Aid Higher Crime,LEGAL AID FUND,ENNON & CO LTD,2085093:156690476,"41,455.10",Legal Aid Higher Crime
MOJ,LAA,30/12/2020,Legal Aid Higher Crime,LEGAL AID FUND,COBLEYS SOLICITORS LTD,2084603:156689981,"43,351.18",Legal Aid Higher Crime
MOJ,LAA,30/12/2020,Legal Aid Higher Crime,LEGAL AID FUND,BANKS & PARTNERS LTD,2084366:156689937,"43,929.90",Legal Aid Higher Crime
MOJ,LAA,30/12/2020,Legal Aid Higher Crime,LEGAL AID FUND,BENJAMIN A O AINA QC,2082860:156689832,"47,892.00",Legal Aid Higher Crime
MOJ,LAA,30/12/2020,Legal Aid Higher Crime,LEGAL AID FUND,SALHAN & CO LTD,2084639:156697267,"64,724.40",Legal Aid Higher Crime
MOJ,LAA,30/12/2020,Legal Aid Higher Crime,LEGAL AID FUND,MPR SOLICITORS LLP,2084098:156690185,"67,726.70",Legal Aid Higher Crime
MOJ,LAA,30/12/2020,Legal Aid Higher Crime,LEGAL AID FUND,SALLIE A BENNETT JENKINS QC,2085005:156690164,"72,996.00",Legal Aid Higher Crime
MOJ,LAA,30/12/2020,Legal Aid Higher Crime,LEGAL AID FUND,EBR ATTRIDGE LLP,2083043:156690025,"76,504.94",Legal Aid Higher Crime
MOJ,LAA,30/12/2020,Legal Aid Higher Crime,LEGAL AID FUND,LEON KAZAKOS,2083007:156690022,"78,516.00",Legal Aid Higher Crime
MOJ,LAA,30/12/2020,Legal Aid Higher Crime,LEGAL AID FUND,RUSTEM GUARDIAN SOLICITORS LTD,2085060:156697212,"82,558.97",Legal Aid Higher Crime
MOJ,LAA,30/12/2020,Legal Aid Higher Crime,LEGAL AID FUND,THOMAS E CROWTHER QC,2082997:156724527,"115,360.01",Legal Aid Higher Crime
MOJ,LAA,30/12/2020,Legal Aid Legal Help,LEGAL AID FUND,WILSON SOLICITORS LLP,2084182:156692977,"26,679.96",Legal Aid Legal Help
MOJ,LAA,30/12/2020,Legal Aid Legal Help,LEGAL AID FUND,DUNCAN LEWIS SOLICITORS  LTD,2084168:156692898,"34,000.00",Legal Aid Legal Help
MOJ,LAA,30/12/2020,Legal Aid Legal Help,LEGAL AID FUND,DUNCAN LEWIS SOLICITORS  LTD,2084167:156692972,"79,400.00",Legal Aid Legal Help
MOJ,LAA,30/12/2020,Legal Aid Legal Help,LEGAL AID FUND,DUNCAN LEWIS SOLICITORS  LTD,2084168:156692889,"90,000.00",Legal Aid Legal Help
MOJ,LAA,30/12/2020,Legal Aid Legal Help,LEGAL AID FUND,DUNCAN LEWIS SOLICITORS  LTD,2084168:156692888,"91,000.00",Legal Aid Legal Help
MOJ,LAA,30/12/2020,Legal Aid Legal Help,LEGAL AID FUND,DUNCAN LEWIS SOLICITORS  LTD,2084168:156692887,"92,000.00",Legal Aid Legal Help
MOJ,LAA,30/12/2020,Legal Aid Legal Help,LEGAL AID FUND,DUNCAN LEWIS SOLICITORS  LTD,2084168:156692886,"93,000.00",Legal Aid Legal Help
MOJ,LAA,30/12/2020,Legal Aid Legal Help,LEGAL AID FUND,DUNCAN LEWIS SOLICITORS  LTD,2084167:156692971,"94,000.00",Legal Aid Legal Help
MOJ,LAA,30/12/2020,Legal Aid Legal Help,LEGAL AID FUND,DUNCAN LEWIS SOLICITORS  LTD,2084167:156692969,"95,000.00",Legal Aid Legal Help
MOJ,LAA,30/12/2020,Legal Aid Legal Help,LEGAL AID FUND,BURKE NIAZI  LTD,2085178:156692973,"96,000.00",Legal Aid Legal Help
MOJ,LAA,30/12/2020,Legal Aid Legal Help,LEGAL AID FUND,WILSON SOLICITORS LLP,2084182:156692975,"97,000.00",Legal Aid Legal Help
MOJ,LAA,30/12/2020,Legal Aid Legal Help,LEGAL AID FUND,JACKSON LEES GROUP LTD,2084452:156692978,"98,000.00",Legal Aid Legal Help
MOJ,LAA,30/12/2020,Legal Aid Legal Help,LEGAL AID FUND,BISON SOLICITORS LTD,2083380:156692980,"99,000.00",Legal Aid Legal Help
